Body Name,Body,Service Area Catergorisation,Service Division Catergorisation,Responsible Unit,Expenses Type,Detailed Expenses Type,Expenses Code,Date,Transaction Number,Amount,Capital / Revenue,Supplier Name,Supplier ID
North East Lincolnshire Council,http://statistics.data.gov.uk/id/local-authority/00FC),Finance Operations & Resources,Resources,Backlog Maintenance,Cap Land/Build-Prof Fees,Cap Land/Build-Prof Fees,YA103,8/23/2018,531569,434.59,CAPITAL,ENGIE SERVICES LTD,133267
North East Lincolnshire Council,http://statistics.data.gov.uk/id/local-authority/00FC),Finance Operations & Resources,Resources,Backlog Maintenance,Cap Land/Build-Prof Fees,Cap Land/Build-Prof Fees,YA103,8/23/2018,531566,1188.85,CAPITAL,ENGIE SERVICES LTD,133267
North East Lincolnshire Council,http://statistics.data.gov.uk/id/local-authority/00FC),Finance Operations & Resources,Resources,Backlog Maintenance,Cap Land/Build-Prof Fees,Cap Land/Build-Prof Fees,YA103,8/23/2018,531568,417.30,CAPITAL,ENGIE SERVICES LTD,133267
North East Lincolnshire Council,http://statistics.data.gov.uk/id/local-authority/00FC),Finance Operations & Resources,Resources,Backlog Maintenance,Cap Land/Build-Prof Fees,Cap Land/Build-Prof Fees,YA103,8/23/2018,531563,297.05,CAPITAL,ENGIE SERVICES LTD,133267
North East Lincolnshire Council,http://statistics.data.gov.uk/id/local-authority/00FC),Finance Operations & Resources,Resources,Backlog Maintenance,Cap Land/Build-Build Enh Wrk,Cap Land/Build-Build Enh Wrk,YA102,8/21/2018,531280,8052.00,CAPITAL,ETON-LINCS LIMITED,101510
North East Lincolnshire Council,http://statistics.data.gov.uk/id/local-authority/00FC),Finance Operations & Resources,Resources,Backlog Maintenance,Cap Land/Build-Build Enh Wrk,Cap Land/Build-Build Enh Wrk,YA102,8/21/2018,531116,8649.83,CAPITAL,HAITHS HEATING LTD,101342
North East Lincolnshire Council,http://statistics.data.gov.uk/id/local-authority/00FC),Finance Operations & Resources,Resources,Backlog Maintenance,Cap Land/Build-Build Enh Wrk,Cap Land/Build-Build Enh Wrk,YA102,8/21/2018,531223,14022.00,CAPITAL,TOPCON CONSTRUCTION LTD,108462
North East Lincolnshire Council,http://statistics.data.gov.uk/id/local-authority/00FC),Finance Operations & Resources,Resources,Backlog Maintenance,Cap Land/Build-Prof Fees,Cap Land/Build-Prof Fees,YA103,8/23/2018,531575,851.27,CAPITAL,ENGIE SERVICES LTD,133267
North East Lincolnshire Council,http://statistics.data.gov.uk/id/local-authority/00FC),Finance Operations & Resources,Resources,Backlog Maintenance,Cap Land/Build-Prof Fees,Cap Land/Build-Prof Fees,YA103,8/23/2018,531558,1214.85,CAPITAL,ENGIE SERVICES LTD,133267
North East Lincolnshire Council,http://statistics.data.gov.uk/id/local-authority/00FC),Finance Operations & Resources,Resources,Backlog Maintenance,Cap Land/Build-Build Enh Wrk,Cap Land/Build-Build Enh Wrk,YA102,8/21/2018,531106,5320.00,CAPITAL,ETON-LINCS LIMITED,101510
North East Lincolnshire Council,http://statistics.data.gov.uk/id/local-authority/00FC),Finance Operations & Resources,Resources,Backlog Maintenance,Cap Land/Build-Prof Fees,Cap Land/Build-Prof Fees,YA103,8/23/2018,531556,315.25,CAPITAL,ENGIE SERVICES LTD,133267
North East Lincolnshire Council,http://statistics.data.gov.uk/id/local-authority/00FC),Finance Operations & Resources,Resources,Backlog Maintenance,Cap Land/Build-Build Enh Wrk,Cap Land/Build-Build Enh Wrk,YA102,8/21/2018,531229,1463.82,CAPITAL,E BACON & CO LTD,104090
North East Lincolnshire Council,http://statistics.data.gov.uk/id/local-authority/00FC),Finance Operations & Resources,Resources,Backlog Maintenance,Cap Land/Build-Prof Fees,Cap Land/Build-Prof Fees,YA103,8/23/2018,531565,689.00,CAPITAL,ENGIE SERVICES LTD,133267
North East Lincolnshire Council,http://statistics.data.gov.uk/id/local-authority/00FC),Finance Operations & Resources,Resources,Backlog Maintenance,Cap Land/Build-Build Enh Wrk,Cap Land/Build-Build Enh Wrk,YA102,8/2/2018,528837,7724.00,CAPITAL,KES BUILDING MAINTENANCE LIMITED,100786
North East Lincolnshire Council,http://statistics.data.gov.uk/id/local-authority/00FC),Finance Operations & Resources,Resources,Backlog Maintenance,Cap Land/Build-Build Enh Wrk,Cap Land/Build-Build Enh Wrk,YA102,8/28/2018,531679,48960.00,CAPITAL,LINCS ELECTRICAL SERVICES LTD,102044
North East Lincolnshire Council,http://statistics.data.gov.uk/id/local-authority/00FC),Finance Operations & Resources,Resources,Backlog Maintenance,Cap Land/Build-Prof Fees,Cap Land/Build-Prof Fees,YA103,8/23/2018,531570,2081.33,CAPITAL,ENGIE SERVICES LTD,133267
North East Lincolnshire Council,http://statistics.data.gov.uk/id/local-authority/00FC),Finance Operations & Resources,Resources,Backlog Maintenance,Cap Land/Build-Prof Fees,Cap Land/Build-Prof Fees,YA103,8/23/2018,531572,1950.00,CAPITAL,ENGIE SERVICES LTD,133267
North East Lincolnshire Council,http://statistics.data.gov.uk/id/local-authority/00FC),Finance Operations & Resources,Resources,Backlog Maintenance,Cap Land/Build-Build Enh Wrk,Cap Land/Build-Build Enh Wrk,YA102,8/21/2018,531281,44389.34,CAPITAL,TOPCON CONSTRUCTION LTD,108462
North East Lincolnshire Council,http://statistics.data.gov.uk/id/local-authority/00FC),Finance Operations & Resources,Resources,Backlog Maintenance,Cap Land/Build-Prof Fees,Cap Land/Build-Prof Fees,YA103,8/23/2018,531571,274.85,CAPITAL,ENGIE SERVICES LTD,133267
North East Lincolnshire Council,http://statistics.data.gov.uk/id/local-authority/00FC),Finance Operations & Resources,Resources,Property Rationalisation Prog,Cap Land/Build-Build Enh Wrk,Cap Land/Build-Build Enh Wrk,YA102,8/21/2018,531135,15145.40,CAPITAL,TOPCON CONSTRUCTION LTD,108462
North East Lincolnshire Council,http://statistics.data.gov.uk/id/local-authority/00FC),Finance Operations & Resources,Resources,Property Rationalisation Prog,Cap Infrastr-Purchase,Cap Infrastr-Purchase,YC101,8/7/2018,528831,3030.25,CAPITAL,COMPUTACENTER UK LTD,101303
North East Lincolnshire Council,http://statistics.data.gov.uk/id/local-authority/00FC),Finance Operations & Resources,Resources,Property Rationalisation Prog,Cap Infrastr-Purchase,Cap Infrastr-Purchase,YC101,8/7/2018,529408,2400.00,CAPITAL,XMA LIMITED,100699
North East Lincolnshire Council,http://statistics.data.gov.uk/id/local-authority/00FC),Finance Operations & Resources,Resources,Property Rationalisation Prog,Cap Land/Build-Build Enh Wrk,Cap Land/Build-Build Enh Wrk,YA102,8/21/2018,531224,2426.60,CAPITAL,TOPCON CONSTRUCTION LTD,108462
North East Lincolnshire Council,http://statistics.data.gov.uk/id/local-authority/00FC),Finance Operations & Resources,Resources,Property Rationalisation Prog,Cap Land/Build-Build Enh Wrk,Cap Land/Build-Build Enh Wrk,YA102,8/2/2018,528835,3020.00,CAPITAL,J MELTON LTD,100636
North East Lincolnshire Council,http://statistics.data.gov.uk/id/local-authority/00FC),Finance Operations & Resources,Resources,Property Rationalisation Prog,Cap Land/Build-Prof Fees,Cap Land/Build-Prof Fees,YA103,8/23/2018,531564,548.47,CAPITAL,ENGIE SERVICES LTD,133267
North East Lincolnshire Council,http://statistics.data.gov.uk/id/local-authority/00FC),Finance Operations & Resources,Resources,Property Rationalisation Prog,Cap Land/Build-Build Enh Wrk,Cap Land/Build-Build Enh Wrk,YA102,8/7/2018,529597,147196.80,CAPITAL,TOPCON CONSTRUCTION LTD,108462
North East Lincolnshire Council,http://statistics.data.gov.uk/id/local-authority/00FC),Finance Operations & Resources,Resources,Property Rationalisation Prog,Cap Infrastr-Purchase,Cap Infrastr-Purchase,YC101,8/16/2018,530509,430.00,CAPITAL,LINCS ELECTRICAL SERVICES LTD,102044
North East Lincolnshire Council,http://statistics.data.gov.uk/id/local-authority/00FC),Finance Operations & Resources,Resources,Property Rationalisation Prog,Cap Infrastr-Purchase,Cap Infrastr-Purchase,YC101,8/7/2018,523245,382.00,CAPITAL,SAFE CONTROL LTD,100989
North East Lincolnshire Council,http://statistics.data.gov.uk/id/local-authority/00FC),Finance Operations & Resources,Resources,Property Rationalisation Prog,Cap Infrastr-Purchase,Cap Infrastr-Purchase,YC101,8/7/2018,528830,597.00,CAPITAL,COMPUTACENTER UK LTD,101303
North East Lincolnshire Council,http://statistics.data.gov.uk/id/local-authority/00FC),Finance Operations & Resources,Resources,Property Rationalisation Prog,Cap Infrastr-Purchase,Cap Infrastr-Purchase,YC101,8/23/2018,528812,969.68,CAPITAL,COMPUTACENTER UK LTD,101303
North East Lincolnshire Council,http://statistics.data.gov.uk/id/local-authority/00FC),Finance Operations & Resources,Resources,Property Rationalisation Prog,Cap Infrastr-Purchase,Cap Infrastr-Purchase,YC101,8/9/2018,529266,422.38,CAPITAL,INSIGHT DIRECT (UK) LTD,101011
North East Lincolnshire Council,http://statistics.data.gov.uk/id/local-authority/00FC),Finance Operations & Resources,Resources,Property Rationalisation Prog,Cap Infrastr-Purchase,Cap Infrastr-Purchase,YC101,8/7/2018,529265,3682.44,CAPITAL,INSIGHT DIRECT (UK) LTD,101011
North East Lincolnshire Council,http://statistics.data.gov.uk/id/local-authority/00FC),Finance Operations & Resources,Resources,Property Rationalisation Prog,Cap Infrastr-Purchase,Cap Infrastr-Purchase,YC101,8/23/2018,530034,3682.44,CAPITAL,INSIGHT DIRECT (UK) LTD,101011
North East Lincolnshire Council,http://statistics.data.gov.uk/id/local-authority/00FC),Finance Operations & Resources,Resources,Property Rationalisation Prog,Cap Infrastr-Purchase,Cap Infrastr-Purchase,YC101,8/14/2018,529658,3050.00,CAPITAL,INSIGHT DIRECT (UK) LTD,101011
North East Lincolnshire Council,http://statistics.data.gov.uk/id/local-authority/00FC),Finance Operations & Resources,Resources,Property Rationalisation Prog,Cap Infrastr-Purchase,Cap Infrastr-Purchase,YC101,8/2/2018,528245,469.99,CAPITAL,INSIGHT DIRECT (UK) LTD,101011
North East Lincolnshire Council,http://statistics.data.gov.uk/id/local-authority/00FC),Finance Operations & Resources,Resources,Property Rationalisation Prog,Cap Infrastr-Purchase,Cap Infrastr-Purchase,YC101,8/7/2018,529535,390.96,CAPITAL,COMPUTACENTER UK LTD,101303
North East Lincolnshire Council,http://statistics.data.gov.uk/id/local-authority/00FC),Finance Operations & Resources,Resources,Property Rationalisation Prog,Cap Infrastr-Purchase,Cap Infrastr-Purchase,YC101,8/23/2018,524157,398.00,CAPITAL,SAFE CONTROL LTD,100989
North East Lincolnshire Council,http://statistics.data.gov.uk/id/local-authority/00FC),Finance Operations & Resources,Shared Services,Ict Refresh 16-17,Cap Land/Build-Build Enh Wrk,Cap Land/Build-Build Enh Wrk,YA102,8/16/2018,530290,434.32,CAPITAL,DELL COMPUTER CORPORATION LTD,100892
North East Lincolnshire Council,http://statistics.data.gov.uk/id/local-authority/00FC),Finance Operations & Resources,Shared Services,Ict Refresh 16-17,Cap Land/Build-Build Enh Wrk,Cap Land/Build-Build Enh Wrk,YA102,8/16/2018,530290,257.72,CAPITAL,DELL COMPUTER CORPORATION LTD,100892
North East Lincolnshire Council,http://statistics.data.gov.uk/id/local-authority/00FC),Finance Operations & Resources,Shared Services,Ict Refresh 16-17,Cap Land/Build-Build Enh Wrk,Cap Land/Build-Build Enh Wrk,YA102,8/9/2018,529646,785.00,CAPITAL,CAPITA BUSINESS SERVICES LTD,102314
North East Lincolnshire Council,http://statistics.data.gov.uk/id/local-authority/00FC),Finance Operations & Resources,Shared Services,Ict Refresh 16-17,Cap Land/Build-Build Enh Wrk,Cap Land/Build-Build Enh Wrk,YA102,8/7/2018,528803,9629.20,CAPITAL,XMA LIMITED,100699
North East Lincolnshire Council,http://statistics.data.gov.uk/id/local-authority/00FC),Finance Operations & Resources,Shared Services,Ict Refresh 16-17,Cap Land/Build-Build Enh Wrk,Cap Land/Build-Build Enh Wrk,YA102,8/7/2018,529410,2720.60,CAPITAL,XMA LIMITED,100699
North East Lincolnshire Council,http://statistics.data.gov.uk/id/local-authority/00FC),Finance Operations & Resources,Shared Services,Ict Refresh 16-17,Cap Land/Build-Build Enh Wrk,Cap Land/Build-Build Enh Wrk,YA102,8/7/2018,528800,713.68,CAPITAL,XMA LIMITED,100699
North East Lincolnshire Council,http://statistics.data.gov.uk/id/local-authority/00FC),Finance Operations & Resources,Shared Services,Ict Refresh 16-17,Cap Land/Build-Build Enh Wrk,Cap Land/Build-Build Enh Wrk,YA102,8/14/2018,529843,6060.50,CAPITAL,COMPUTACENTER UK LTD,101303
North East Lincolnshire Council,http://statistics.data.gov.uk/id/local-authority/00FC),Finance Operations & Resources,Shared Services,Ict Refresh 16-17,Cap Land/Build-Build Enh Wrk,Cap Land/Build-Build Enh Wrk,YA102,8/14/2018,529918,14443.80,CAPITAL,XMA LIMITED,100699
North East Lincolnshire Council,http://statistics.data.gov.uk/id/local-authority/00FC),Finance Operations & Resources,Shared Services,Ict Refresh 16-17,Cap Land/Build-Build Enh Wrk,Cap Land/Build-Build Enh Wrk,YA102,8/14/2018,529844,6060.50,CAPITAL,COMPUTACENTER UK LTD,101303
North East Lincolnshire Council,http://statistics.data.gov.uk/id/local-authority/00FC),Finance Operations & Resources,Shared Services,Ict Refresh 16-17,Cap Land/Build-Build Enh Wrk,Cap Land/Build-Build Enh Wrk,YA102,8/28/2018,531519,2880.00,CAPITAL,INSIGHT DIRECT (UK) LTD,101011
North East Lincolnshire Council,http://statistics.data.gov.uk/id/local-authority/00FC),Finance Operations & Resources,Shared Services,Ict Refresh 16-17,Cap Land/Build-Build Enh Wrk,Cap Land/Build-Build Enh Wrk,YA102,8/28/2018,531518,420.00,CAPITAL,INSIGHT DIRECT (UK) LTD,101011
North East Lincolnshire Council,http://statistics.data.gov.uk/id/local-authority/00FC),Finance Operations & Resources,Environment,Fleet Replacement Programme,Cap Veh Plt Eqp-Purchase,Cap Veh Plt Eqp-Purchase,YB101,8/16/2018,529256,752.05,CAPITAL,ENGIE SERVICES LTD,133267
North East Lincolnshire Council,http://statistics.data.gov.uk/id/local-authority/00FC),Economy And Growth,Economy & Growth,Local Transport Plan Schemes,Cap Infrastr-Build Enh Wrk,Cap Infrastr-Build Enh Wrk,YC102,8/16/2018,529366,1000.00,CAPITAL,ENGIE SERVICES LTD,133267
North East Lincolnshire Council,http://statistics.data.gov.uk/id/local-authority/00FC),Economy And Growth,Economy & Growth,Local Transport Plan Schemes,Cap Land/Build-Build Enh Wrk,Cap Land/Build-Build Enh Wrk,YA102,8/21/2018,531277,5837.47,CAPITAL,J MCCANN & CO LTD,100841
North East Lincolnshire Council,http://statistics.data.gov.uk/id/local-authority/00FC),Economy And Growth,Economy & Growth,Local Transport Plan Schemes,Cap Land/Build-Build Enh Wrk,Cap Land/Build-Build Enh Wrk,YA102,8/21/2018,531278,10794.23,CAPITAL,J MCCANN & CO LTD,100841
North East Lincolnshire Council,http://statistics.data.gov.uk/id/local-authority/00FC),Economy And Growth,Economy & Growth,Local Transport Plan Schemes,Cap Infrastr-Build Enh Wrk,Cap Infrastr-Build Enh Wrk,YC102,8/16/2018,529369,2000.00,CAPITAL,ENGIE SERVICES LTD,133267
North East Lincolnshire Council,http://statistics.data.gov.uk/id/local-authority/00FC),Economy And Growth,Economy & Growth,Local Transport Plan Schemes,Cap Infrastr-Build Enh Wrk,Cap Infrastr-Build Enh Wrk,YC102,8/14/2018,530438,50000.00,CAPITAL,SPECIALIST SURFACING LIMITED,100579
North East Lincolnshire Council,http://statistics.data.gov.uk/id/local-authority/00FC),Economy And Growth,Economy & Growth,Local Transport Plan Schemes,Cap Infrastr-Build Enh Wrk,Cap Infrastr-Build Enh Wrk,YC102,8/21/2018,526776,420.00,CAPITAL,ADVANTAGE TSC & D LTD,109136
North East Lincolnshire Council,http://statistics.data.gov.uk/id/local-authority/00FC),Economy And Growth,Economy & Growth,Local Transport Plan Schemes,Cap Infrastr-Build Enh Wrk,Cap Infrastr-Build Enh Wrk,YC102,8/16/2018,527316,60701.11,CAPITAL,C R REYNOLDS (CONSTRUCTION) LTD,103021
North East Lincolnshire Council,http://statistics.data.gov.uk/id/local-authority/00FC),Economy And Growth,Economy & Growth,Local Transport Plan Schemes,Cap Infrastr-Build Enh Wrk,Cap Infrastr-Build Enh Wrk,YC102,8/30/2018,531856,64190.15,CAPITAL,C R REYNOLDS (CONSTRUCTION) LTD,103021
North East Lincolnshire Council,http://statistics.data.gov.uk/id/local-authority/00FC),Economy And Growth,Economy & Growth,Local Transport Plan Schemes,Cap Infrastr-Build Enh Wrk,Cap Infrastr-Build Enh Wrk,YC102,8/21/2018,528786,764.92,CAPITAL,J MCCANN & CO LTD,100841
North East Lincolnshire Council,http://statistics.data.gov.uk/id/local-authority/00FC),Economy And Growth,Economy & Growth,Local Transport Plan Schemes,Cap Infrastr-Build Enh Wrk,Cap Infrastr-Build Enh Wrk,YC102,8/16/2018,529368,1286.70,CAPITAL,ENGIE SERVICES LTD,133267
North East Lincolnshire Council,http://statistics.data.gov.uk/id/local-authority/00FC),Economy And Growth,Economy & Growth,Local Transport Plan Schemes,Cap Infrastr-Build Enh Wrk,Cap Infrastr-Build Enh Wrk,YC102,8/16/2018,529365,6000.00,CAPITAL,ENGIE SERVICES LTD,133267
North East Lincolnshire Council,http://statistics.data.gov.uk/id/local-authority/00FC),Economy And Growth,Economy & Growth,Clee Hlf Townscape Heritage,Cap Land/Build-Prof Fees,Cap Land/Build-Prof Fees,YA103,8/14/2018,530020,2246.70,CAPITAL,ELIZABETH MAYLE,140146
North East Lincolnshire Council,http://statistics.data.gov.uk/id/local-authority/00FC),Economy And Growth,Economy & Growth,Clee Hlf Townscape Heritage,Cap Infrastr-Prof Fees,Cap Infrastr-Prof Fees,YC103,8/7/2018,529371,1471.94,CAPITAL,ENGIE SERVICES LTD,133267
North East Lincolnshire Council,http://statistics.data.gov.uk/id/local-authority/00FC),Economy And Growth,Economy & Growth,Gllep Junction Improvement,Cap Land/Build-Build Enh Wrk,Cap Land/Build-Build Enh Wrk,YA102,8/16/2018,529367,6000.00,CAPITAL,ENGIE SERVICES LTD,133267
North East Lincolnshire Council,http://statistics.data.gov.uk/id/local-authority/00FC),Economy And Growth,Economy & Growth,Gllep Junction Improvement,Cap Infrastr-Build Enh Wrk,Cap Infrastr-Build Enh Wrk,YC102,8/16/2018,529364,5000.00,CAPITAL,ENGIE SERVICES LTD,133267
North East Lincolnshire Council,http://statistics.data.gov.uk/id/local-authority/00FC),Economy And Growth,Economy & Growth,Shiip Scheme,Cap Infrastr-Prof Fees,Cap Infrastr-Prof Fees,YC103,8/21/2018,529851,13710.00,CAPITAL,DELTA-SIMONS ENVIRONMENTAL CONSULTANTS LTD,122455
North East Lincolnshire Council,http://statistics.data.gov.uk/id/local-authority/00FC),Economy And Growth,Economy & Growth,Shiip Scheme,Cap Infrastr-Prof Fees,Cap Infrastr-Prof Fees,YC103,8/21/2018,530031,4435.00,CAPITAL,CLUGSTON SURVEY SERVICES,105668
North East Lincolnshire Council,http://statistics.data.gov.uk/id/local-authority/00FC),Economy And Growth,Economy & Growth,Shiip Scheme,Cap Infrastr-Prof Fees,Cap Infrastr-Prof Fees,YC103,8/31/2018,532031,1900.00,CAPITAL,MASON CLARK ASSOCIATES,100793
North East Lincolnshire Council,http://statistics.data.gov.uk/id/local-authority/00FC),Economy And Growth,Economy & Growth,Shiip Scheme,Cap Infrastr-Prof Fees,Cap Infrastr-Prof Fees,YC103,8/7/2018,527264,1753.30,CAPITAL,BEVAN BRITTAN LLP,131317
North East Lincolnshire Council,http://statistics.data.gov.uk/id/local-authority/00FC),Economy And Growth,Economy & Growth,Shiip Scheme,Cap Infrastr-Prof Fees,Cap Infrastr-Prof Fees,YC103,8/7/2018,527265,4068.84,CAPITAL,BEVAN BRITTAN LLP,131317
North East Lincolnshire Council,http://statistics.data.gov.uk/id/local-authority/00FC),Economy And Growth,Economy & Growth,Shiip Scheme,Cap Infrastr-Build Enh Wrk,Cap Infrastr-Build Enh Wrk,YC102,8/9/2018,529495,1672.50,CAPITAL,P & J HOYES & SONS,128721
North East Lincolnshire Council,http://statistics.data.gov.uk/id/local-authority/00FC),Economy And Growth,Economy & Growth,Shiip Scheme,Cap Infrastr-Prof Fees,Cap Infrastr-Prof Fees,YC103,8/9/2018,529372,3000.00,CAPITAL,ENGIE SERVICES LTD,133267
North East Lincolnshire Council,http://statistics.data.gov.uk/id/local-authority/00FC),Economy And Growth,Economy & Growth,Shiip Scheme,Cap Infrastr-Prof Fees,Cap Infrastr-Prof Fees,YC103,8/14/2018,530372,724.50,CAPITAL,BEVAN BRITTAN LLP,131317
North East Lincolnshire Council,http://statistics.data.gov.uk/id/local-authority/00FC),Economy And Growth,Economy & Growth,Shiip Scheme,Cap Infrastr-Prof Fees,Cap Infrastr-Prof Fees,YC103,8/16/2018,530884,400.00,CAPITAL,BEVAN BRITTAN LLP,131317
North East Lincolnshire Council,http://statistics.data.gov.uk/id/local-authority/00FC),Economy And Growth,Economy & Growth,Catch Offshore,Cap Land/Build-Build Enh Wrk,Cap Land/Build-Build Enh Wrk,YA102,8/2/2018,528767,55117.16,CAPITAL,THE GELDER GROUP,103601
North East Lincolnshire Council,http://statistics.data.gov.uk/id/local-authority/00FC),Economy And Growth,Economy & Growth,Unlocking The Potential,Cap Infrastr-Prof Fees,Cap Infrastr-Prof Fees,YC103,8/28/2018,531577,16849.50,CAPITAL,ENGIE SERVICES LTD,133267
North East Lincolnshire Council,http://statistics.data.gov.uk/id/local-authority/00FC),Economy And Growth,Economy & Growth,Terminal Groyne,Cap Land/Build-Build Enh Wrk,Cap Land/Build-Build Enh Wrk,YA102,8/21/2018,531124,21196.66,CAPITAL,JACKSON CIVILS LTD,136631
North East Lincolnshire Council,http://statistics.data.gov.uk/id/local-authority/00FC),Economy And Growth,Economy & Growth,Scartho Road Hosp Junc Imp,Cap Infrastr-Build Enh Wrk,Cap Infrastr-Build Enh Wrk,YC102,8/21/2018,529545,1482.00,CAPITAL,ADVANTAGE TSC & D LTD,109136
North East Lincolnshire Council,http://statistics.data.gov.uk/id/local-authority/00FC),Economy And Growth,Economy & Growth,Scartho Road Hosp Junc Imp,Cap Infrastr-Build Enh Wrk,Cap Infrastr-Build Enh Wrk,YC102,8/21/2018,528788,4999.78,CAPITAL,J MCCANN & CO LTD,100841
North East Lincolnshire Council,http://statistics.data.gov.uk/id/local-authority/00FC),Economy And Growth,Economy & Growth,Coastal Communities Fund,Cap Infrastr-Build Enh Wrk,Cap Infrastr-Build Enh Wrk,YC102,8/7/2018,529370,6743.52,CAPITAL,ENGIE SERVICES LTD,133267
North East Lincolnshire Council,http://statistics.data.gov.uk/id/local-authority/00FC),Economy And Growth,Economy & Growth,Coastal Communities Fund,Cap Infrastr-Build Enh Wrk,Cap Infrastr-Build Enh Wrk,YC102,8/21/2018,529640,360.00,CAPITAL,LOCAL TRANSPORT PROJECTS LTD,121248
North East Lincolnshire Council,http://statistics.data.gov.uk/id/local-authority/00FC),Economy And Growth,Economy & Growth,Coastal Communities Fund,Cap Infrastr-Build Enh Wrk,Cap Infrastr-Build Enh Wrk,YC102,8/21/2018,529908,4833.50,CAPITAL,LOCAL TRANSPORT PROJECTS LTD,121248
North East Lincolnshire Council,http://statistics.data.gov.uk/id/local-authority/00FC),Economy And Growth,Economy & Growth,Smart Energy For Business,Cap Land/Build-Build Enh Wrk,Cap Land/Build-Build Enh Wrk,YA102,8/9/2018,529373,12500.00,CAPITAL,ENGIE SERVICES LTD,133267
North East Lincolnshire Council,http://statistics.data.gov.uk/id/local-authority/00FC),Economy And Growth,Economy & Growth,Smart Energy For Business,Cap Land/Build-Build Enh Wrk,Cap Land/Build-Build Enh Wrk,YA102,8/7/2018,529617,270.00,CAPITAL,NPOWER,101368
North East Lincolnshire Council,http://statistics.data.gov.uk/id/local-authority/00FC),Public Health And Leisure,Leisure,Immingham Hub,Cap Land/Build-Build Enh Wrk,Cap Land/Build-Build Enh Wrk,YA102,8/23/2018,531184,5000.00,CAPITAL,XCEPTIONAL DESIGNS,111932
North East Lincolnshire Council,http://statistics.data.gov.uk/id/local-authority/00FC),Adult Services,Adult Services,Hps-Disabled Fac. Grants,Cap Grants To O/Side Sources,Cap Grants To O/Side Sources,YJ101,8/14/2018,530010,4582.36,CAPITAL,TOPCON CONSTRUCTION LTD,108462
North East Lincolnshire Council,http://statistics.data.gov.uk/id/local-authority/00FC),Adult Services,Adult Services,Hps-Disabled Fac. Grants,Cap Grants To O/Side Sources,Cap Grants To O/Side Sources,YJ101,8/28/2018,531666,2779.00,CAPITAL,OBAM LIFT SERVICES LTD,112666
North East Lincolnshire Council,http://statistics.data.gov.uk/id/local-authority/00FC),Adult Services,Adult Services,Hps-Disabled Fac. Grants,Cap Grants To O/Side Sources,Cap Grants To O/Side Sources,YJ101,8/7/2018,528822,19913.61,CAPITAL,F R TOWNSEND & CO LTD,104217
North East Lincolnshire Council,http://statistics.data.gov.uk/id/local-authority/00FC),Adult Services,Adult Services,Hps-Disabled Fac. Grants,Cap Grants To O/Side Sources,Cap Grants To O/Side Sources,YJ101,8/14/2018,530376,3070.78,CAPITAL,F R TOWNSEND & CO LTD,104217
North East Lincolnshire Council,http://statistics.data.gov.uk/id/local-authority/00FC),Adult Services,Adult Services,Hps-Disabled Fac. Grants,Cap Grants To O/Side Sources,Cap Grants To O/Side Sources,YJ101,8/14/2018,530517,1334.36,CAPITAL,TOPCON CONSTRUCTION LTD,108462
North East Lincolnshire Council,http://statistics.data.gov.uk/id/local-authority/00FC),Adult Services,Adult Services,Hps-Disabled Fac. Grants,Cap Grants To O/Side Sources,Cap Grants To O/Side Sources,YJ101,8/23/2018,531195,2990.00,CAPITAL,DH2 SOLUTIONS LTD,131392
North East Lincolnshire Council,http://statistics.data.gov.uk/id/local-authority/00FC),Adult Services,Adult Services,Hps-Disabled Fac. Grants,Cap Grants To O/Side Sources,Cap Grants To O/Side Sources,YJ101,8/14/2018,530358,282.77,CAPITAL,TOPCON CONSTRUCTION LTD,108462
North East Lincolnshire Council,http://statistics.data.gov.uk/id/local-authority/00FC),Adult Services,Adult Services,Hps-Disabled Fac. Grants,Cap Grants To O/Side Sources,Cap Grants To O/Side Sources,YJ101,8/14/2018,530516,9481.26,CAPITAL,TOPCON CONSTRUCTION LTD,108462
North East Lincolnshire Council,http://statistics.data.gov.uk/id/local-authority/00FC),Adult Services,Adult Services,Hps-Disabled Fac. Grants,Cap Grants To O/Side Sources,Cap Grants To O/Side Sources,YJ101,8/14/2018,530009,8859.98,CAPITAL,TOPCON CONSTRUCTION LTD,108462
North East Lincolnshire Council,http://statistics.data.gov.uk/id/local-authority/00FC),Adult Services,Adult Services,Hps-Disabled Fac. Grants,Cap Grants To O/Side Sources,Cap Grants To O/Side Sources,YJ101,8/28/2018,531648,5728.00,CAPITAL,OBAM LIFT SERVICES LTD,112666
North East Lincolnshire Council,http://statistics.data.gov.uk/id/local-authority/00FC),Adult Services,Adult Services,Hps-Disabled Fac. Grants,Cap Grants To O/Side Sources,Cap Grants To O/Side Sources,YJ101,8/28/2018,531882,4569.00,CAPITAL,VIC HANSEN BUILDING & JOINERY LTD,103981
North East Lincolnshire Council,http://statistics.data.gov.uk/id/local-authority/00FC),Adult Services,Adult Services,Hps-Disabled Fac. Grants,Cap Grants To O/Side Sources,Cap Grants To O/Side Sources,YJ101,8/14/2018,530361,4610.00,CAPITAL,OBAM LIFT SERVICES LTD,112666
North East Lincolnshire Council,http://statistics.data.gov.uk/id/local-authority/00FC),Adult Services,Adult Services,Hps-Disabled Fac. Grants,Cap Grants To O/Side Sources,Cap Grants To O/Side Sources,YJ101,8/21/2018,530507,6706.50,CAPITAL,VIC HANSEN BUILDING & JOINERY LTD,103981
North East Lincolnshire Council,http://statistics.data.gov.uk/id/local-authority/00FC),Adult Services,Adult Services,Hps-Disabled Fac. Grants,Cap Grants To O/Side Sources,Cap Grants To O/Side Sources,YJ101,8/14/2018,530051,5545.00,CAPITAL,MARK BENNETT,101838
North East Lincolnshire Council,http://statistics.data.gov.uk/id/local-authority/00FC),Adult Services,Adult Services,Hps-Disabled Fac. Grants,Cap Grants To O/Side Sources,Cap Grants To O/Side Sources,YJ101,8/23/2018,531185,1375.00,CAPITAL,VIC HANSEN BUILDING & JOINERY LTD,103981
North East Lincolnshire Council,http://statistics.data.gov.uk/id/local-authority/00FC),Adult Services,Adult Services,Hps-Disabled Fac. Grants,Cap Grants To O/Side Sources,Cap Grants To O/Side Sources,YJ101,8/30/2018,532198,4450.00,CAPITAL,OBAM LIFT SERVICES LTD,112666
North East Lincolnshire Council,http://statistics.data.gov.uk/id/local-authority/00FC),Adult Services,Adult Services,Hps-Disabled Fac. Grants,Cap Grants To O/Side Sources,Cap Grants To O/Side Sources,YJ101,8/14/2018,530514,9071.71,CAPITAL,E S RUDKIN LTD,100632
North East Lincolnshire Council,http://statistics.data.gov.uk/id/local-authority/00FC),Adult Services,Adult Services,Hps-Disabled Fac. Grants,Cap Grants To O/Side Sources,Cap Grants To O/Side Sources,YJ101,8/7/2018,529536,6841.41,CAPITAL,ABLE 4 ENTERPRISE LTD,120159
North East Lincolnshire Council,http://statistics.data.gov.uk/id/local-authority/00FC),Adult Services,Adult Services,Hps-Disabled Fac. Grants,Cap Grants To O/Side Sources,Cap Grants To O/Side Sources,YJ101,8/21/2018,530566,7077.00,CAPITAL,MARK BENNETT,101838
North East Lincolnshire Council,http://statistics.data.gov.uk/id/local-authority/00FC),Adult Services,Adult Services,Hps-Disabled Fac. Grants,Cap Grants To O/Side Sources,Cap Grants To O/Side Sources,YJ101,8/30/2018,531981,7735.90,CAPITAL,ABLE 4 ENTERPRISE LTD,120159
North East Lincolnshire Council,http://statistics.data.gov.uk/id/local-authority/00FC),Adult Services,Adult Services,Hps-Disabled Fac. Grants,Cap Grants To O/Side Sources,Cap Grants To O/Side Sources,YJ101,8/21/2018,531270,5386.89,CAPITAL,ABLE 4 ENTERPRISE LTD,120159
North East Lincolnshire Council,http://statistics.data.gov.uk/id/local-authority/00FC),Adult Services,Adult Services,Hps-Disabled Fac. Grants,Cap Grants To O/Side Sources,Cap Grants To O/Side Sources,YJ101,8/21/2018,530510,3352.00,CAPITAL,OBAM LIFT SERVICES LTD,112666
North East Lincolnshire Council,http://statistics.data.gov.uk/id/local-authority/00FC),Adult Services,Adult Services,Hps-Disabled Fac. Grants,Cap Grants To O/Side Sources,Cap Grants To O/Side Sources,YJ101,8/30/2018,531972,10160.00,CAPITAL,MARK BENNETT,101838
North East Lincolnshire Council,http://statistics.data.gov.uk/id/local-authority/00FC),Adult Services,Adult Services,Hps-Disabled Fac. Grants,Cap Grants To O/Side Sources,Cap Grants To O/Side Sources,YJ101,8/21/2018,530590,1569.00,CAPITAL,OBAM LIFT SERVICES LTD,112666
North East Lincolnshire Council,http://statistics.data.gov.uk/id/local-authority/00FC),Adult Services,Adult Services,Hps-Disabled Fac. Grants,Cap Grants To O/Side Sources,Cap Grants To O/Side Sources,YJ101,8/14/2018,529919,7178.00,CAPITAL,OBAM LIFT SERVICES LTD,112666
North East Lincolnshire Council,http://statistics.data.gov.uk/id/local-authority/00FC),Adult Services,Adult Services,Housing Assist Grants And Loan,Cap Grants To O/Side Sources,Cap Grants To O/Side Sources,YJ101,8/30/2018,532207,662.50,CAPITAL,MAYNE GAS HEATING LTD,101861
North East Lincolnshire Council,http://statistics.data.gov.uk/id/local-authority/00FC),Adult Services,Adult Services,Housing Assist Grants And Loan,Cap Grants To O/Side Sources,Cap Grants To O/Side Sources,YJ101,8/30/2018,532271,630.00,CAPITAL,JACKSON GREEN & PRESTON,111045
North East Lincolnshire Council,http://statistics.data.gov.uk/id/local-authority/00FC),Children & Family Services,Family Services,Prevention And Early Help,Private Contractors,Day Care Placements,PH111,8/9/2018,530109,384.00,REVENUE,HUMBERSTON DAY NURSERY,102006
North East Lincolnshire Council,http://statistics.data.gov.uk/id/local-authority/00FC),Children & Family Services,Family Services,Prevention And Early Help,Private Contractors,Third Party Prov - Private,PH101,8/28/2018,531609,12500.00,REVENUE,SAFE FAMILIES FOR CHILDREN,138122
North East Lincolnshire Council,http://statistics.data.gov.uk/id/local-authority/00FC),Children & Family Services,Family Services,Prevention And Early Help,Indirect Employee Expenses,Staff Training,EB122,8/28/2018,531657,3000.00,REVENUE,SPARK EQUIP,119341
North East Lincolnshire Council,http://statistics.data.gov.uk/id/local-authority/00FC),Children & Family Services,Family Services,Prevention And Early Help,Catering,Provisions,LB101,8/21/2018,531299,730.79,REVENUE,YOUTH OFFENDING SERVICES,110694
North East Lincolnshire Council,http://statistics.data.gov.uk/id/local-authority/00FC),Children & Family Services,Family Services,Prevention And Early Help,Miscellaneous Expenses,Activities - Service Users,LL114,8/2/2018,528647,345.00,REVENUE,EDGE INTERACTIVE LTD,105581
North East Lincolnshire Council,http://statistics.data.gov.uk/id/local-authority/00FC),Children & Family Services,Family Services,Prevention And Early Help,Miscellaneous Expenses,Activities - Service Users,LL114,8/16/2018,530287,399.20,REVENUE,SIGN OF THE TIMES,100575
North East Lincolnshire Council,http://statistics.data.gov.uk/id/local-authority/00FC),Children & Family Services,Family Services,Prevention And Early Help,Miscellaneous Expenses,Other Expenses General,LL119,8/2/2018,528646,415.00,REVENUE,IAN COXAN,103410
North East Lincolnshire Council,http://statistics.data.gov.uk/id/local-authority/00FC),Children & Family Services,Family Services,Prevention And Early Help,Miscellaneous Expenses,Other Supplies & Services,LL110,8/28/2018,531658,1140.00,REVENUE,GRIMSBY TOWN SPORTS & EDUCATIONAL TRUST,114701
North East Lincolnshire Council,http://statistics.data.gov.uk/id/local-authority/00FC),Children & Family Services,Family Services,Prevention And Early Help,Miscellaneous Expenses,Other Supplies & Services,LL110,8/28/2018,531660,280.00,REVENUE,GRIMSBY TOWN SPORTS & EDUCATIONAL TRUST,114701
North East Lincolnshire Council,http://statistics.data.gov.uk/id/local-authority/00FC),Children & Family Services,Family Services,Prevention And Early Help,Miscellaneous Expenses,Other Supplies & Services,LL110,8/28/2018,531663,5000.00,REVENUE,GRIMSBY TOWN SPORTS & EDUCATIONAL TRUST,114701
North East Lincolnshire Council,http://statistics.data.gov.uk/id/local-authority/00FC),Children & Family Services,Family Services,Prevention And Early Help,Miscellaneous Expenses,Other Supplies & Services,LL110,8/28/2018,531664,5000.00,REVENUE,GRIMSBY TOWN SPORTS & EDUCATIONAL TRUST,114701
North East Lincolnshire Council,http://statistics.data.gov.uk/id/local-authority/00FC),Children & Family Services,Family Services,Prevention And Early Help,Private Contractors,Third Party Prov - Private,PH101,8/7/2018,529380,2500.00,REVENUE,IAN COXAN,103410
North East Lincolnshire Council,http://statistics.data.gov.uk/id/local-authority/00FC),Children & Family Services,Family Services,Prevention And Early Help,Rents,Room Hire,GC103,8/9/2018,529614,253.33,REVENUE,CENTRE4 LIMITED,126893
North East Lincolnshire Council,http://statistics.data.gov.uk/id/local-authority/00FC),Children & Family Services,Family Services,Prevention And Early Help,Miscellaneous Expenses,Other Supplies & Services,LL110,8/30/2018,532281,286.13,REVENUE,PAUSE,137708
North East Lincolnshire Council,http://statistics.data.gov.uk/id/local-authority/00FC),Children & Family Services,Family Services,Prevention And Early Help,Miscellaneous Expenses,Other Supplies & Services,LL110,8/14/2018,530380,407.43,REVENUE,PAUSE,137708
North East Lincolnshire Council,http://statistics.data.gov.uk/id/local-authority/00FC),Children & Family Services,Family Services,Prevention And Early Help,Miscellaneous Expenses,Other Supplies & Services,LL110,8/2/2018,528768,294.09,REVENUE,PAUSE,137708
North East Lincolnshire Council,http://statistics.data.gov.uk/id/local-authority/00FC),Children & Family Services,Family Services,Prevention And Early Help,Miscellaneous Expenses,Other Supplies & Services,LL110,8/7/2018,529513,575.00,REVENUE,NAVIGO HEALTH AND SOCIAL CARE CIC,128894
North East Lincolnshire Council,http://statistics.data.gov.uk/id/local-authority/00FC),Children & Family Services,Family Services,Prevention And Early Help,Miscellaneous Expenses,Other Supplies & Services,LL110,8/30/2018,532247,520.00,REVENUE,URBAN DEVELOPMENT PROJECTS (2) LTD,127780
North East Lincolnshire Council,http://statistics.data.gov.uk/id/local-authority/00FC),Children & Family Services,Family Services,Childrens Health,Private Contractors,Contract Payments,PH105,8/28/2018,531635,1058.00,REVENUE,N LINCS & GOOLE HOSPITALS NHS FOUNDATION TRUS,111074
North East Lincolnshire Council,http://statistics.data.gov.uk/id/local-authority/00FC),Children & Family Services,Family Services,Family Hubs,Private Contractors,Third Party Prov - Private,PH101,8/7/2018,529262,8775.00,REVENUE,N LINCS & GOOLE HOSPITALS NHS FOUNDATION TRUS,111074
North East Lincolnshire Council,http://statistics.data.gov.uk/id/local-authority/00FC),Children & Family Services,Family Services,Family Hubs,Private Contractors,Third Party Prov - Private,PH101,8/30/2018,532194,8856.00,REVENUE,N LINCS & GOOLE HOSPITALS NHS FOUNDATION TRUS,111074
North East Lincolnshire Council,http://statistics.data.gov.uk/id/local-authority/00FC),Children & Family Services,Family Services,Family Hubs,Other Agencies,Child Care Payments,PJ104,8/14/2018,530395,627.00,REVENUE,CLEETHORPES CHILDCARE,101591
North East Lincolnshire Council,http://statistics.data.gov.uk/id/local-authority/00FC),Children & Family Services,Family Services,Family Hubs,Other Agencies,Educational Visits,PJ152,8/14/2018,530319,375.00,REVENUE,MILLMAN COACHES,100700
North East Lincolnshire Council,http://statistics.data.gov.uk/id/local-authority/00FC),Children & Family Services,Family Services,Family Hubs,Other Agencies,Educational Visits,PJ152,8/14/2018,530318,320.00,REVENUE,MILLMAN COACHES,100700
North East Lincolnshire Council,http://statistics.data.gov.uk/id/local-authority/00FC),Children & Family Services,Family Services,Community Learning Services,Voluntary Associations,Third Pp - Third Sector,PF101,8/21/2018,531073,2002.29,REVENUE,VOLUNTARY ACTION NORTH EAST LINCOLNSHIRE,103631
North East Lincolnshire Council,http://statistics.data.gov.uk/id/local-authority/00FC),Children & Family Services,Family Services,Community Learning Services,Contributions To Provisions,Contributions - Other,LK103,8/14/2018,530322,252.00,REVENUE,SHELLY AND SONJA,139603
North East Lincolnshire Council,http://statistics.data.gov.uk/id/local-authority/00FC),Children & Family Services,Family Services,Community Learning Services,Contributions To Provisions,Contributions - Other,LK103,8/14/2018,529522,497.00,REVENUE,THE COURTYARD CAFE,135980
North East Lincolnshire Council,http://statistics.data.gov.uk/id/local-authority/00FC),Children & Family Services,Family Services,Community Learning Services,Contributions To Provisions,Contributions - Other,LK103,8/23/2018,531267,332.50,REVENUE,THE COURTYARD CAFE,135980
North East Lincolnshire Council,http://statistics.data.gov.uk/id/local-authority/00FC),Children & Family Services,Family Services,Community Learning Services,Miscellaneous Expenses,Activities - Service Users,LL114,8/23/2018,531473,1938.00,REVENUE,MRS SONIA SMITH,132584
North East Lincolnshire Council,http://statistics.data.gov.uk/id/local-authority/00FC),Children & Family Services,Family Services,Community Learning Services,Miscellaneous Expenses,Activities - Service Users,LL114,8/14/2018,529526,562.50,REVENUE,LINKAGE COMMUNITY TRUST LTD,104471
North East Lincolnshire Council,http://statistics.data.gov.uk/id/local-authority/00FC),Children & Family Services,Family Services,Community Learning Services,Miscellaneous Expenses,Activities - Service Users,LL114,8/28/2018,531602,405.00,REVENUE,LINKAGE COMMUNITY TRUST LTD,104471
North East Lincolnshire Council,http://statistics.data.gov.uk/id/local-authority/00FC),Children & Family Services,Family Services,Community Learning Services,Miscellaneous Expenses,Activities - Service Users,LL114,8/7/2018,529527,360.00,REVENUE,LINKAGE COMMUNITY TRUST LTD,104471
North East Lincolnshire Council,http://statistics.data.gov.uk/id/local-authority/00FC),Children & Family Services,Family Services,Community Learning Services,Miscellaneous Expenses,Activities - Service Users,LL114,8/28/2018,531603,326.25,REVENUE,LINKAGE COMMUNITY TRUST LTD,104471
North East Lincolnshire Council,http://statistics.data.gov.uk/id/local-authority/00FC),Children & Family Services,Family Services,Community Learning Services,Private Contractors,Contract Payments,PH105,8/7/2018,529524,532.00,REVENUE,TOBY DEJONGE,140692
North East Lincolnshire Council,http://statistics.data.gov.uk/id/local-authority/00FC),Children & Family Services,Family Services,Community Learning Services,Miscellaneous Expenses,Activities - Service Users,LL114,8/21/2018,530479,507.15,REVENUE,PRE-SCHOOL LEARNING ALLIANCE,107441
North East Lincolnshire Council,http://statistics.data.gov.uk/id/local-authority/00FC),Children & Family Services,Family Services,Community Learning Services,Miscellaneous Expenses,Activities - Service Users,LL114,8/30/2018,531935,760.00,REVENUE,CLEETHORPES CHILDCARE,101591
North East Lincolnshire Council,http://statistics.data.gov.uk/id/local-authority/00FC),Children & Family Services,Family Services,Community Learning Services,Miscellaneous Expenses,Activities - Service Users,LL114,8/14/2018,530294,792.00,REVENUE,IMMINGHAM DAY CARE,122312
North East Lincolnshire Council,http://statistics.data.gov.uk/id/local-authority/00FC),Children & Family Services,Family Services,Community Learning Services,Miscellaneous Expenses,Activities - Service Users,LL114,8/14/2018,530292,936.00,REVENUE,IMMINGHAM DAY CARE,122312
North East Lincolnshire Council,http://statistics.data.gov.uk/id/local-authority/00FC),Children & Family Services,Family Services,Community Learning Services,Miscellaneous Expenses,Activities - Service Users,LL114,8/14/2018,530293,540.00,REVENUE,IMMINGHAM DAY CARE,122312
North East Lincolnshire Council,http://statistics.data.gov.uk/id/local-authority/00FC),Children & Family Services,Family Services,Community Learning Services,Miscellaneous Expenses,Activities - Service Users,LL114,8/14/2018,530481,347.00,REVENUE,LITTLE BLOSSOMS DAY NURSERY,111058
North East Lincolnshire Council,http://statistics.data.gov.uk/id/local-authority/00FC),Children & Family Services,Family Services,Community Learning Services,Miscellaneous Expenses,Activities - Service Users,LL114,8/14/2018,530312,675.00,REVENUE,FORESIGHT NEL LTD,102869
North East Lincolnshire Council,http://statistics.data.gov.uk/id/local-authority/00FC),Children & Family Services,Family Services,Community Learning Services,Miscellaneous Expenses,Activities - Service Users,LL114,8/14/2018,530327,665.00,REVENUE,CLEETHORPES CHILDCARE,101591
North East Lincolnshire Council,http://statistics.data.gov.uk/id/local-authority/00FC),Children & Family Services,Family Services,Community Learning Services,Miscellaneous Expenses,Activities - Service Users,LL114,8/14/2018,530565,980.00,REVENUE,PARK RETAIL LTD - LOVE2REWARD,111869
North East Lincolnshire Council,http://statistics.data.gov.uk/id/local-authority/00FC),Children & Family Services,Family Services,Community Learning Services,Miscellaneous Expenses,Activities - Service Users,LL114,8/2/2018,612326,316.00,REVENUE,REDACTED PERSONAL INFORMATION,REDACTED PERSONAL INFORMATION
North East Lincolnshire Council,http://statistics.data.gov.uk/id/local-authority/00FC),Children & Family Services,Family Services,Community Learning Services,Miscellaneous Expenses,Activities - Service Users,LL114,8/2/2018,612327,766.00,REVENUE,REDACTED PERSONAL INFORMATION,REDACTED PERSONAL INFORMATION
North East Lincolnshire Council,http://statistics.data.gov.uk/id/local-authority/00FC),Children & Family Services,Family Services,Community Learning Services,Indirect Employee Expenses,Staff Training,EB122,8/9/2018,529282,995.00,REVENUE,LINCOLN COLLEGE,140638
North East Lincolnshire Council,http://statistics.data.gov.uk/id/local-authority/00FC),Children & Family Services,Family Services,Community Learning Services,Rents,Rent,GC101,8/21/2018,531218,19500.00,REVENUE,FORESIGHT NEL LTD,102869
North East Lincolnshire Council,http://statistics.data.gov.uk/id/local-authority/00FC),Children & Family Services,Family Services,Community Learning Services,Rents,Rent,GC101,8/23/2018,531238,19500.00,REVENUE,FORESIGHT NEL LTD,102869
North East Lincolnshire Council,http://statistics.data.gov.uk/id/local-authority/00FC),Children & Family Services,Family Services,Community Learning Services,Communications And Computing,Computer S/Ware - Licences,LF103,8/21/2018,531222,-739.50,REVENUE,BKSB LTD,140323
North East Lincolnshire Council,http://statistics.data.gov.uk/id/local-authority/00FC),Children & Family Services,Family Services,Community Learning Services,Communications And Computing,Computer S/Ware - Licences,LF103,8/21/2018,531221,972.00,REVENUE,BKSB LTD,140323
North East Lincolnshire Council,http://statistics.data.gov.uk/id/local-authority/00FC),Children & Family Services,Family Services,Community Learning Services,Communications And Computing,Computer S/Ware - Licences,LF103,8/7/2018,528757,1250.00,REVENUE,SOFTWARE SOLUTIONS (WARWICK) LTD,105646
North East Lincolnshire Council,http://statistics.data.gov.uk/id/local-authority/00FC),Children & Family Services,Family Services,Community Learning Services,Miscellaneous Expenses,Exam Fees,LL115,8/31/2018,532534,2001.50,REVENUE,NOCN,123052
North East Lincolnshire Council,http://statistics.data.gov.uk/id/local-authority/00FC),Children & Family Services,Family Services,Community Learning Services,Equip / Furniture / Materials,Equipment - Hire,LA102,8/7/2018,529379,2500.00,REVENUE,GRIMSBY AUDITORIUM,128160
North East Lincolnshire Council,http://statistics.data.gov.uk/id/local-authority/00FC),Children & Family Services,Family Services,Community Learning Services,Equip / Furniture / Materials,Equipment - Hire,LA102,8/9/2018,529651,2220.00,REVENUE,WELLS & SONS MARQUEES LTD,129509
North East Lincolnshire Council,http://statistics.data.gov.uk/id/local-authority/00FC),Children & Family Services,Family Services,Community Learning Services,Catering,Catering Costs,LB102,8/7/2018,529385,488.71,REVENUE,GRIMSBY AUDITORIUM,128160
North East Lincolnshire Council,http://statistics.data.gov.uk/id/local-authority/00FC),Children & Family Services,Family Services,Safer Communities P/Ship,Government Departments,Third Party Prov - Govt Depts,PE101,8/21/2018,530938,6250.00,REVENUE,PCC HUMBERSIDE,120398
North East Lincolnshire Council,http://statistics.data.gov.uk/id/local-authority/00FC),Children & Family Services,Family Services,Palliative / Complex Care,Private Contractors,Third Party Prov - Private,PH101,8/14/2018,529583,3957.84,REVENUE,ST ANDREWS HOSPICE,103069
North East Lincolnshire Council,http://statistics.data.gov.uk/id/local-authority/00FC),Children & Family Services,Family Services,Palliative / Complex Care,Private Contractors,Third Party Prov - Private,PH101,8/14/2018,529583,1699.60,REVENUE,ST ANDREWS HOSPICE,103069
North East Lincolnshire Council,http://statistics.data.gov.uk/id/local-authority/00FC),Children & Family Services,Family Services,Palliative / Complex Care,Private Contractors,Third Party Prov - Private,PH101,8/14/2018,529584,616.50,REVENUE,APOLLO HOME HEALTHCARE LIMITED,138437
North East Lincolnshire Council,http://statistics.data.gov.uk/id/local-authority/00FC),Children & Family Services,Family Services,Palliative / Complex Care,Private Contractors,Third Party Prov - Private,PH101,8/28/2018,531670,1431.00,REVENUE,APOLLO HOME HEALTHCARE LIMITED,138437
North East Lincolnshire Council,http://statistics.data.gov.uk/id/local-authority/00FC),Children & Family Services,Family Services,Palliative / Complex Care,Private Contractors,Third Party Prov - Private,PH101,8/28/2018,531672,1498.50,REVENUE,APOLLO HOME HEALTHCARE LIMITED,138437
North East Lincolnshire Council,http://statistics.data.gov.uk/id/local-authority/00FC),Children & Family Services,Family Services,Palliative / Complex Care,Private Contractors,Third Party Prov - Private,PH101,8/28/2018,531671,1377.00,REVENUE,APOLLO HOME HEALTHCARE LIMITED,138437
North East Lincolnshire Council,http://statistics.data.gov.uk/id/local-authority/00FC),Children & Family Services,Family Services,Palliative / Complex Care,Private Contractors,Third Party Prov - Private,PH101,8/30/2018,531997,832.50,REVENUE,APOLLO HOME HEALTHCARE LIMITED,138437
North East Lincolnshire Council,http://statistics.data.gov.uk/id/local-authority/00FC),Children & Family Services,Family Services,Palliative / Complex Care,Private Contractors,Third Party Prov - Private,PH101,8/7/2018,529544,1599.00,REVENUE,THE ROWAN ORGANISATION,140036
North East Lincolnshire Council,http://statistics.data.gov.uk/id/local-authority/00FC),Children & Family Services,Family Services,Palliative / Complex Care,Private Contractors,Third Party Prov - Private,PH101,8/2/2018,528763,666.25,REVENUE,THE ROWAN ORGANISATION,140037
North East Lincolnshire Council,http://statistics.data.gov.uk/id/local-authority/00FC),Children & Family Services,Family Services,Palliative / Complex Care,Private Contractors,Third Party Prov - Private,PH101,8/7/2018,529547,319.80,REVENUE,THE ROWAN ORGANISATION,140038
North East Lincolnshire Council,http://statistics.data.gov.uk/id/local-authority/00FC),Children & Family Services,Family Services,Palliative / Complex Care,Private Contractors,Third Party Prov - Private,PH101,8/7/2018,529543,1599.00,REVENUE,THE ROWAN ORGANISATION,140039
North East Lincolnshire Council,http://statistics.data.gov.uk/id/local-authority/00FC),Children & Family Services,Family Services,Palliative / Complex Care,Private Contractors,Third Party Prov - Private,PH101,8/7/2018,529546,2132.00,REVENUE,THE ROWAN ORGANISATION,140040
North East Lincolnshire Council,http://statistics.data.gov.uk/id/local-authority/00FC),Children & Family Services,Family Services,Camhs Commissioned,Contributions To Provisions,Contributions - Other,LK103,8/21/2018,531101,5558.33,REVENUE,XENZONE LTD,135941
North East Lincolnshire Council,http://statistics.data.gov.uk/id/local-authority/00FC),Children & Family Services,Family Services,Camhs Commissioned,Private Contractors,Contract Payments,PH105,8/14/2018,530317,1210.92,REVENUE,LINCOLNSHIRE PARTNERSHIP NHS FOUNDATION TRUST,105021
North East Lincolnshire Council,http://statistics.data.gov.uk/id/local-authority/00FC),Children & Family Services,Family Services,Camhs Commissioned,Private Contractors,Third Party Prov - Private,PH101,8/14/2018,530315,229428.92,REVENUE,LINCOLNSHIRE PARTNERSHIP NHS FOUNDATION TRUST,105021
North East Lincolnshire Council,http://statistics.data.gov.uk/id/local-authority/00FC),Children & Family Services,Childrens Services,Access And Education Services,Contract Hire-Operating Leases,Vehicles - Contract Hire,JC101,8/2/2018,528772,650.00,REVENUE,LINKS TAXIS,100546
North East Lincolnshire Council,http://statistics.data.gov.uk/id/local-authority/00FC),Children & Family Services,Childrens Services,Access And Education Services,Contract Hire-Operating Leases,Vehicles - Contract Hire,JC101,8/16/2018,530834,480.00,REVENUE,LINKS TAXIS,100546
North East Lincolnshire Council,http://statistics.data.gov.uk/id/local-authority/00FC),Children & Family Services,Childrens Services,Access And Education Services,Contract Hire-Operating Leases,Vehicles - Contract Hire,JC101,8/16/2018,530887,741.00,REVENUE,MINICABS CLEETHORPES (LINCS) LTD,102124
North East Lincolnshire Council,http://statistics.data.gov.uk/id/local-authority/00FC),Children & Family Services,Childrens Services,Access And Education Services,Contract Hire-Operating Leases,Vehicles - Contract Hire,JC101,8/16/2018,530903,585.00,REVENUE,LINKS TAXIS,100546
North East Lincolnshire Council,http://statistics.data.gov.uk/id/local-authority/00FC),Children & Family Services,Childrens Services,Access And Education Services,Contract Hire-Operating Leases,Vehicles - Contract Hire,JC101,8/16/2018,530886,965.00,REVENUE,MINICABS CLEETHORPES (LINCS) LTD,102124
North East Lincolnshire Council,http://statistics.data.gov.uk/id/local-authority/00FC),Children & Family Services,Childrens Services,Access And Education Services,Contract Hire-Operating Leases,Vehicles - Contract Hire,JC101,8/21/2018,531215,280.00,REVENUE,LINKS TAXIS,100546
North East Lincolnshire Council,http://statistics.data.gov.uk/id/local-authority/00FC),Children & Family Services,Childrens Services,Access And Education Services,Contract Hire-Operating Leases,Vehicles - Contract Hire,JC101,8/21/2018,531061,280.00,REVENUE,COUNTRY CABS,101999
North East Lincolnshire Council,http://statistics.data.gov.uk/id/local-authority/00FC),Children & Family Services,Childrens Services,Access And Education Services,Contract Hire-Operating Leases,Vehicles - Contract Hire,JC101,8/7/2018,529244,660.00,REVENUE,LINKS TAXIS,100546
North East Lincolnshire Council,http://statistics.data.gov.uk/id/local-authority/00FC),Children & Family Services,Childrens Services,Access And Education Services,Contract Hire-Operating Leases,Vehicles - Contract Hire,JC101,8/16/2018,530837,412.50,REVENUE,LINKS TAXIS,100546
North East Lincolnshire Council,http://statistics.data.gov.uk/id/local-authority/00FC),Children & Family Services,Childrens Services,Access And Education Services,Contract Hire-Operating Leases,Vehicles - Contract Hire,JC101,8/16/2018,530876,528.00,REVENUE,REVELLS TAXIS (ED/SOC SERV),100559
North East Lincolnshire Council,http://statistics.data.gov.uk/id/local-authority/00FC),Children & Family Services,Childrens Services,Access And Education Services,Contract Hire-Operating Leases,Vehicles - Contract Hire,JC101,8/16/2018,530858,420.00,REVENUE,LINKS TAXIS,100546
North East Lincolnshire Council,http://statistics.data.gov.uk/id/local-authority/00FC),Children & Family Services,Childrens Services,Access And Education Services,Contract Hire-Operating Leases,Vehicles - Contract Hire,JC101,8/21/2018,531084,650.00,REVENUE,COUNTRY CABS,101999
North East Lincolnshire Council,http://statistics.data.gov.uk/id/local-authority/00FC),Children & Family Services,Childrens Services,Access And Education Services,Contract Hire-Operating Leases,Vehicles - Contract Hire,JC101,8/2/2018,528770,1840.00,REVENUE,LINKS TAXIS,100546
North East Lincolnshire Council,http://statistics.data.gov.uk/id/local-authority/00FC),Children & Family Services,Childrens Services,Access And Education Services,Contract Hire-Operating Leases,Vehicles - Contract Hire,JC101,8/16/2018,530902,1340.00,REVENUE,LINKS TAXIS,100546
North East Lincolnshire Council,http://statistics.data.gov.uk/id/local-authority/00FC),Children & Family Services,Childrens Services,Access And Education Services,Contract Hire-Operating Leases,Vehicles - Contract Hire,JC101,8/16/2018,530897,962.00,REVENUE,LINKS TAXIS,100546
North East Lincolnshire Council,http://statistics.data.gov.uk/id/local-authority/00FC),Children & Family Services,Childrens Services,Access And Education Services,Contract Hire-Operating Leases,Vehicles - Contract Hire,JC101,8/7/2018,529466,588.00,REVENUE,COXONS CARS LIMITED,100578
North East Lincolnshire Council,http://statistics.data.gov.uk/id/local-authority/00FC),Children & Family Services,Childrens Services,Access And Education Services,Contract Hire-Operating Leases,Vehicles - Contract Hire,JC101,8/16/2018,530856,672.00,REVENUE,LINKS TAXIS,100546
North East Lincolnshire Council,http://statistics.data.gov.uk/id/local-authority/00FC),Children & Family Services,Childrens Services,Access And Education Services,Contract Hire-Operating Leases,Vehicles - Contract Hire,JC101,8/16/2018,530894,264.00,REVENUE,LINKS TAXIS,100546
North East Lincolnshire Council,http://statistics.data.gov.uk/id/local-authority/00FC),Children & Family Services,Childrens Services,Access And Education Services,Contract Hire-Operating Leases,Vehicles - Contract Hire,JC101,8/16/2018,530843,728.63,REVENUE,LINKS TAXIS,100546
North East Lincolnshire Council,http://statistics.data.gov.uk/id/local-authority/00FC),Children & Family Services,Childrens Services,Access And Education Services,Contract Hire-Operating Leases,Vehicles - Contract Hire,JC101,8/16/2018,530843,358.87,REVENUE,LINKS TAXIS,100546
North East Lincolnshire Council,http://statistics.data.gov.uk/id/local-authority/00FC),Children & Family Services,Childrens Services,Access And Education Services,Contract Hire-Operating Leases,Vehicles - Contract Hire,JC101,8/21/2018,531086,1350.00,REVENUE,BEST FUTURES COMMUNITY INTEREST COMPANY,128600
North East Lincolnshire Council,http://statistics.data.gov.uk/id/local-authority/00FC),Children & Family Services,Childrens Services,Access And Education Services,Contract Hire-Operating Leases,Vehicles - Contract Hire,JC101,8/28/2018,531891,1629.00,REVENUE,MOTORVATION TRAINING LTD,138704
North East Lincolnshire Council,http://statistics.data.gov.uk/id/local-authority/00FC),Children & Family Services,Childrens Services,Access And Education Services,Contract Hire-Operating Leases,Vehicles - Contract Hire,JC101,8/9/2018,529427,2023.00,REVENUE,AMVALE MEDICAL TRANSPORT LTD,130777
North East Lincolnshire Council,http://statistics.data.gov.uk/id/local-authority/00FC),Children & Family Services,Childrens Services,Access And Education Services,Contract Hire-Operating Leases,Vehicles - Contract Hire,JC101,8/9/2018,529444,1989.00,REVENUE,AMVALE MEDICAL TRANSPORT LTD,130777
North East Lincolnshire Council,http://statistics.data.gov.uk/id/local-authority/00FC),Children & Family Services,Childrens Services,Access And Education Services,Contract Hire-Operating Leases,Vehicles - Contract Hire,JC101,8/16/2018,530873,705.00,REVENUE,AA RADIO CARS LTD,101222
North East Lincolnshire Council,http://statistics.data.gov.uk/id/local-authority/00FC),Children & Family Services,Childrens Services,Access And Education Services,Contract Hire-Operating Leases,Vehicles - Contract Hire,JC101,8/7/2018,529451,2475.00,REVENUE,AMVALE LIMITED,101030
North East Lincolnshire Council,http://statistics.data.gov.uk/id/local-authority/00FC),Children & Family Services,Childrens Services,Access And Education Services,Contract Hire-Operating Leases,Vehicles - Contract Hire,JC101,8/9/2018,529440,2625.00,REVENUE,AMVALE LIMITED,101030
North East Lincolnshire Council,http://statistics.data.gov.uk/id/local-authority/00FC),Children & Family Services,Childrens Services,Access And Education Services,Contract Hire-Operating Leases,Vehicles - Contract Hire,JC101,8/7/2018,529439,2475.00,REVENUE,AMVALE LIMITED,101030
North East Lincolnshire Council,http://statistics.data.gov.uk/id/local-authority/00FC),Children & Family Services,Childrens Services,Access And Education Services,Contract Hire-Operating Leases,Vehicles - Contract Hire,JC101,8/9/2018,529438,2325.00,REVENUE,AMVALE LIMITED,101030
North East Lincolnshire Council,http://statistics.data.gov.uk/id/local-authority/00FC),Children & Family Services,Childrens Services,Access And Education Services,Contract Hire-Operating Leases,Vehicles - Contract Hire,JC101,8/7/2018,529467,450.00,REVENUE,COXONS CARS LIMITED,100578
North East Lincolnshire Council,http://statistics.data.gov.uk/id/local-authority/00FC),Children & Family Services,Childrens Services,Access And Education Services,Contract Hire-Operating Leases,Vehicles - Contract Hire,JC101,8/16/2018,530880,672.00,REVENUE,AA RADIO CARS LTD,101222
North East Lincolnshire Council,http://statistics.data.gov.uk/id/local-authority/00FC),Children & Family Services,Childrens Services,Access And Education Services,Contract Hire-Operating Leases,Vehicles - Contract Hire,JC101,8/14/2018,530102,780.00,REVENUE,COXONS CARS LIMITED,100578
North East Lincolnshire Council,http://statistics.data.gov.uk/id/local-authority/00FC),Children & Family Services,Childrens Services,Access And Education Services,Contract Hire-Operating Leases,Vehicles - Contract Hire,JC101,8/21/2018,531058,3192.60,REVENUE,MILLMAN COACHES,100700
North East Lincolnshire Council,http://statistics.data.gov.uk/id/local-authority/00FC),Children & Family Services,Childrens Services,Access And Education Services,Contract Hire-Operating Leases,Vehicles - Contract Hire,JC101,8/31/2018,532347,903.12,REVENUE,GRIMSBY MINIBUSES LTD,121524
North East Lincolnshire Council,http://statistics.data.gov.uk/id/local-authority/00FC),Children & Family Services,Childrens Services,Access And Education Services,Contract Hire-Operating Leases,Vehicles - Contract Hire,JC101,8/23/2018,531263,5830.00,REVENUE,DONCASTER METROPOLITAN BOROUGH COUNCIL,122184
North East Lincolnshire Council,http://statistics.data.gov.uk/id/local-authority/00FC),Children & Family Services,Childrens Services,Access And Education Services,Contract Hire-Operating Leases,Vehicles - Contract Hire,JC101,8/21/2018,531064,532.00,REVENUE,COUNTRY CABS,101999
North East Lincolnshire Council,http://statistics.data.gov.uk/id/local-authority/00FC),Children & Family Services,Childrens Services,Access And Education Services,Contract Hire-Operating Leases,Vehicles - Contract Hire,JC101,8/16/2018,530885,405.00,REVENUE,AA RADIO CARS LTD,101222
North East Lincolnshire Council,http://statistics.data.gov.uk/id/local-authority/00FC),Children & Family Services,Childrens Services,Access And Education Services,Contract Hire-Operating Leases,Vehicles - Contract Hire,JC101,8/9/2018,529426,3080.00,REVENUE,AMVALE MEDICAL TRANSPORT LTD,130777
North East Lincolnshire Council,http://statistics.data.gov.uk/id/local-authority/00FC),Children & Family Services,Childrens Services,Access And Education Services,Contract Hire-Operating Leases,Vehicles - Contract Hire,JC101,8/16/2018,530889,700.00,REVENUE,MINICABS CLEETHORPES (LINCS) LTD,102124
North East Lincolnshire Council,http://statistics.data.gov.uk/id/local-authority/00FC),Children & Family Services,Childrens Services,Access And Education Services,Contract Hire-Operating Leases,Vehicles - Contract Hire,JC101,8/21/2018,531087,1531.50,REVENUE,WHEELCHAIR FRIENDLY TAXI SERVICE,101915
North East Lincolnshire Council,http://statistics.data.gov.uk/id/local-authority/00FC),Children & Family Services,Childrens Services,Access And Education Services,Contract Hire-Operating Leases,Vehicles - Contract Hire,JC101,8/21/2018,531102,1522.50,REVENUE,REDACTED PERSONAL INFORMATION,REDACTED PERSONAL INFORMATION
North East Lincolnshire Council,http://statistics.data.gov.uk/id/local-authority/00FC),Children & Family Services,Childrens Services,Access And Education Services,Contract Hire-Operating Leases,Vehicles - Contract Hire,JC101,8/21/2018,531066,1702.40,REVENUE,GRIMSBY MINIBUSES LTD,121524
North East Lincolnshire Council,http://statistics.data.gov.uk/id/local-authority/00FC),Children & Family Services,Childrens Services,Access And Education Services,Contract Hire-Operating Leases,Vehicles - Contract Hire,JC101,8/16/2018,530855,546.00,REVENUE,LINKS TAXIS,100546
North East Lincolnshire Council,http://statistics.data.gov.uk/id/local-authority/00FC),Children & Family Services,Childrens Services,Access And Education Services,Contract Hire-Operating Leases,Vehicles - Contract Hire,JC101,8/21/2018,531067,680.40,REVENUE,GRIMSBY MINIBUSES LTD,121524
North East Lincolnshire Council,http://statistics.data.gov.uk/id/local-authority/00FC),Children & Family Services,Childrens Services,Access And Education Services,Contract Hire-Operating Leases,Vehicles - Contract Hire,JC101,8/21/2018,531065,1680.00,REVENUE,THE BUS RUN,101522
North East Lincolnshire Council,http://statistics.data.gov.uk/id/local-authority/00FC),Children & Family Services,Childrens Services,Access And Education Services,Contract Hire-Operating Leases,Vehicles - Contract Hire,JC101,8/21/2018,531069,1971.20,REVENUE,GRIMSBY MINIBUSES LTD,121524
North East Lincolnshire Council,http://statistics.data.gov.uk/id/local-authority/00FC),Children & Family Services,Childrens Services,Access And Education Services,Contract Hire-Operating Leases,Vehicles - Contract Hire,JC101,8/21/2018,531068,1964.20,REVENUE,GRIMSBY MINIBUSES LTD,121524
North East Lincolnshire Council,http://statistics.data.gov.uk/id/local-authority/00FC),Children & Family Services,Childrens Services,Access And Education Services,Contract Hire-Operating Leases,Vehicles - Contract Hire,JC101,8/7/2018,529458,386.50,REVENUE,COXONS CARS LIMITED,100578
North East Lincolnshire Council,http://statistics.data.gov.uk/id/local-authority/00FC),Children & Family Services,Childrens Services,Access And Education Services,Contract Hire-Operating Leases,Vehicles - Contract Hire,JC101,8/7/2018,529457,399.00,REVENUE,COXONS CARS LIMITED,100578
North East Lincolnshire Council,http://statistics.data.gov.uk/id/local-authority/00FC),Children & Family Services,Childrens Services,Access And Education Services,Contract Hire-Operating Leases,Vehicles - Contract Hire,JC101,8/7/2018,529459,616.00,REVENUE,COXONS CARS LIMITED,100578
North East Lincolnshire Council,http://statistics.data.gov.uk/id/local-authority/00FC),Children & Family Services,Childrens Services,Access And Education Services,Contract Hire-Operating Leases,Vehicles - Contract Hire,JC101,8/16/2018,530850,462.00,REVENUE,LINKS TAXIS,100546
North East Lincolnshire Council,http://statistics.data.gov.uk/id/local-authority/00FC),Children & Family Services,Childrens Services,Access And Education Services,Contract Hire-Operating Leases,Vehicles - Contract Hire,JC101,8/7/2018,529462,392.00,REVENUE,COXONS CARS LIMITED,100578
North East Lincolnshire Council,http://statistics.data.gov.uk/id/local-authority/00FC),Children & Family Services,Childrens Services,Access And Education Services,Contract Hire-Operating Leases,Vehicles - Contract Hire,JC101,8/16/2018,530838,480.00,REVENUE,LINKS TAXIS,100546
North East Lincolnshire Council,http://statistics.data.gov.uk/id/local-authority/00FC),Children & Family Services,Childrens Services,Access And Education Services,Contract Hire-Operating Leases,Vehicles - Contract Hire,JC101,8/7/2018,529405,616.00,REVENUE,COXONS CARS LIMITED,100578
North East Lincolnshire Council,http://statistics.data.gov.uk/id/local-authority/00FC),Children & Family Services,Childrens Services,Access And Education Services,Contract Hire-Operating Leases,Vehicles - Contract Hire,JC101,8/16/2018,530896,532.00,REVENUE,LINKS TAXIS,100546
North East Lincolnshire Council,http://statistics.data.gov.uk/id/local-authority/00FC),Children & Family Services,Childrens Services,Access And Education Services,Contract Hire-Operating Leases,Vehicles - Contract Hire,JC101,8/16/2018,530904,532.00,REVENUE,LINKS TAXIS,100546
North East Lincolnshire Council,http://statistics.data.gov.uk/id/local-authority/00FC),Children & Family Services,Childrens Services,Access And Education Services,Contract Hire-Operating Leases,Vehicles - Contract Hire,JC101,8/16/2018,530906,658.00,REVENUE,LINKS TAXIS,100546
North East Lincolnshire Council,http://statistics.data.gov.uk/id/local-authority/00FC),Children & Family Services,Childrens Services,Access And Education Services,Contract Hire-Operating Leases,Vehicles - Contract Hire,JC101,8/16/2018,530836,490.00,REVENUE,LINKS TAXIS,100546
North East Lincolnshire Council,http://statistics.data.gov.uk/id/local-authority/00FC),Children & Family Services,Childrens Services,Access And Education Services,Contract Hire-Operating Leases,Vehicles - Contract Hire,JC101,8/16/2018,530835,516.00,REVENUE,LINKS TAXIS,100546
North East Lincolnshire Council,http://statistics.data.gov.uk/id/local-authority/00FC),Children & Family Services,Childrens Services,Access And Education Services,Contract Hire-Operating Leases,Vehicles - Contract Hire,JC101,8/9/2018,529449,1666.00,REVENUE,AMVALE MEDICAL TRANSPORT LTD,130777
North East Lincolnshire Council,http://statistics.data.gov.uk/id/local-authority/00FC),Children & Family Services,Childrens Services,Access And Education Services,Contract Hire-Operating Leases,Vehicles - Contract Hire,JC101,8/16/2018,530898,826.00,REVENUE,LINKS TAXIS,100546
North East Lincolnshire Council,http://statistics.data.gov.uk/id/local-authority/00FC),Children & Family Services,Childrens Services,Access And Education Services,Contract Hire-Operating Leases,Vehicles - Contract Hire,JC101,8/9/2018,529448,1638.00,REVENUE,AMVALE MEDICAL TRANSPORT LTD,130777
North East Lincolnshire Council,http://statistics.data.gov.uk/id/local-authority/00FC),Children & Family Services,Childrens Services,Access And Education Services,Contract Hire-Operating Leases,Vehicles - Contract Hire,JC101,8/16/2018,530891,1176.00,REVENUE,MINICABS CLEETHORPES (LINCS) LTD,102124
North East Lincolnshire Council,http://statistics.data.gov.uk/id/local-authority/00FC),Children & Family Services,Childrens Services,Access And Education Services,Contract Hire-Operating Leases,Vehicles - Contract Hire,JC101,8/7/2018,529412,1470.00,REVENUE,HANSONS AIRPORT EXPRESS,111879
North East Lincolnshire Council,http://statistics.data.gov.uk/id/local-authority/00FC),Children & Family Services,Childrens Services,Access And Education Services,Contract Hire-Operating Leases,Vehicles - Contract Hire,JC101,8/9/2018,529430,567.17,REVENUE,AMVALE LIMITED,101030
North East Lincolnshire Council,http://statistics.data.gov.uk/id/local-authority/00FC),Children & Family Services,Childrens Services,Access And Education Services,Contract Hire-Operating Leases,Vehicles - Contract Hire,JC101,8/16/2018,530890,938.00,REVENUE,MINICABS CLEETHORPES (LINCS) LTD,102124
North East Lincolnshire Council,http://statistics.data.gov.uk/id/local-authority/00FC),Children & Family Services,Childrens Services,Access And Education Services,Contract Hire-Operating Leases,Vehicles - Contract Hire,JC101,8/16/2018,530875,540.00,REVENUE,REVELLS TAXIS (ED/SOC SERV),100559
North East Lincolnshire Council,http://statistics.data.gov.uk/id/local-authority/00FC),Children & Family Services,Childrens Services,Access And Education Services,Contract Hire-Operating Leases,Vehicles - Contract Hire,JC101,8/16/2018,530869,1008.00,REVENUE,MINICABS CLEETHORPES (LINCS) LTD,102124
North East Lincolnshire Council,http://statistics.data.gov.uk/id/local-authority/00FC),Children & Family Services,Childrens Services,Access And Education Services,Contract Hire-Operating Leases,Vehicles - Contract Hire,JC101,8/7/2018,529453,448.00,REVENUE,COXONS CARS LIMITED,100578
North East Lincolnshire Council,http://statistics.data.gov.uk/id/local-authority/00FC),Children & Family Services,Childrens Services,Access And Education Services,Contract Hire-Operating Leases,Vehicles - Contract Hire,JC101,8/16/2018,530868,400.00,REVENUE,LINKS TAXIS,100546
North East Lincolnshire Council,http://statistics.data.gov.uk/id/local-authority/00FC),Children & Family Services,Childrens Services,Access And Education Services,Contract Hire-Operating Leases,Vehicles - Contract Hire,JC101,8/9/2018,529425,1600.00,REVENUE,AMVALE MEDICAL TRANSPORT LTD,130777
North East Lincolnshire Council,http://statistics.data.gov.uk/id/local-authority/00FC),Children & Family Services,Childrens Services,Access And Education Services,Contract Hire-Operating Leases,Vehicles - Contract Hire,JC101,8/16/2018,530888,808.00,REVENUE,MINICABS CLEETHORPES (LINCS) LTD,102124
North East Lincolnshire Council,http://statistics.data.gov.uk/id/local-authority/00FC),Children & Family Services,Childrens Services,Access And Education Services,Contract Hire-Operating Leases,Vehicles - Contract Hire,JC101,8/16/2018,530892,1170.00,REVENUE,MINICABS CLEETHORPES (LINCS) LTD,102124
North East Lincolnshire Council,http://statistics.data.gov.uk/id/local-authority/00FC),Children & Family Services,Childrens Services,Access And Education Services,Contract Hire-Operating Leases,Vehicles - Contract Hire,JC101,8/16/2018,530845,980.00,REVENUE,LINKS TAXIS,100546
North East Lincolnshire Council,http://statistics.data.gov.uk/id/local-authority/00FC),Children & Family Services,Childrens Services,Access And Education Services,Contract Hire-Operating Leases,Vehicles - Contract Hire,JC101,8/21/2018,531217,810.00,REVENUE,LINKS TAXIS,100546
North East Lincolnshire Council,http://statistics.data.gov.uk/id/local-authority/00FC),Children & Family Services,Childrens Services,Access And Education Services,Contract Hire-Operating Leases,Vehicles - Contract Hire,JC101,8/9/2018,529424,4500.00,REVENUE,AMVALE MEDICAL TRANSPORT LTD,130777
North East Lincolnshire Council,http://statistics.data.gov.uk/id/local-authority/00FC),Children & Family Services,Childrens Services,Access And Education Services,Contract Hire-Operating Leases,Vehicles - Contract Hire,JC101,8/7/2018,529450,3225.00,REVENUE,AMVALE MEDICAL TRANSPORT LTD,130777
North East Lincolnshire Council,http://statistics.data.gov.uk/id/local-authority/00FC),Children & Family Services,Childrens Services,Access And Education Services,Contract Hire-Operating Leases,Vehicles - Contract Hire,JC101,8/16/2018,530853,1575.00,REVENUE,LINKS TAXIS,100546
North East Lincolnshire Council,http://statistics.data.gov.uk/id/local-authority/00FC),Children & Family Services,Childrens Services,Access And Education Services,Contract Hire-Operating Leases,Vehicles - Contract Hire,JC101,8/21/2018,531219,475.00,REVENUE,LINKS TAXIS,100546
North East Lincolnshire Council,http://statistics.data.gov.uk/id/local-authority/00FC),Children & Family Services,Childrens Services,Access And Education Services,Contract Hire-Operating Leases,Vehicles - Contract Hire,JC101,8/16/2018,530895,645.00,REVENUE,LINKS TAXIS,100546
North East Lincolnshire Council,http://statistics.data.gov.uk/id/local-authority/00FC),Children & Family Services,Childrens Services,Access And Education Services,Contract Hire-Operating Leases,Vehicles - Contract Hire,JC101,8/9/2018,529446,1425.00,REVENUE,AMVALE MEDICAL TRANSPORT LTD,130777
North East Lincolnshire Council,http://statistics.data.gov.uk/id/local-authority/00FC),Children & Family Services,Childrens Services,Access And Education Services,Contract Hire-Operating Leases,Vehicles - Contract Hire,JC101,8/9/2018,529445,3689.00,REVENUE,AMVALE MEDICAL TRANSPORT LTD,130777
North East Lincolnshire Council,http://statistics.data.gov.uk/id/local-authority/00FC),Children & Family Services,Childrens Services,Access And Education Services,Contract Hire-Operating Leases,Vehicles - Contract Hire,JC101,8/16/2018,530874,799.00,REVENUE,AA RADIO CARS LTD,101222
North East Lincolnshire Council,http://statistics.data.gov.uk/id/local-authority/00FC),Children & Family Services,Childrens Services,Access And Education Services,Contract Hire-Operating Leases,Vehicles - Contract Hire,JC101,8/16/2018,530899,1275.00,REVENUE,LINKS TAXIS,100546
North East Lincolnshire Council,http://statistics.data.gov.uk/id/local-authority/00FC),Children & Family Services,Childrens Services,Access And Education Services,Contract Hire-Operating Leases,Vehicles - Contract Hire,JC101,8/9/2018,529435,452.90,REVENUE,AMVALE LIMITED,101030
North East Lincolnshire Council,http://statistics.data.gov.uk/id/local-authority/00FC),Children & Family Services,Childrens Services,Access And Education Services,Contract Hire-Operating Leases,Vehicles - Contract Hire,JC101,8/16/2018,530871,750.00,REVENUE,MINICABS CLEETHORPES (LINCS) LTD,102124
North East Lincolnshire Council,http://statistics.data.gov.uk/id/local-authority/00FC),Children & Family Services,Childrens Services,Access And Education Services,Contract Hire-Operating Leases,Vehicles - Contract Hire,JC101,8/21/2018,531060,1020.00,REVENUE,AIRPORT TRAVEL,101208
North East Lincolnshire Council,http://statistics.data.gov.uk/id/local-authority/00FC),Children & Family Services,Childrens Services,Access And Education Services,Contract Hire-Operating Leases,Vehicles - Contract Hire,JC101,8/7/2018,529472,2805.00,REVENUE,AMVALE MEDICAL TRANSPORT LTD,130777
North East Lincolnshire Council,http://statistics.data.gov.uk/id/local-authority/00FC),Children & Family Services,Childrens Services,Access And Education Services,Contract Hire-Operating Leases,Vehicles - Contract Hire,JC101,8/9/2018,529447,2465.00,REVENUE,AMVALE MEDICAL TRANSPORT LTD,130777
North East Lincolnshire Council,http://statistics.data.gov.uk/id/local-authority/00FC),Children & Family Services,Childrens Services,Access And Education Services,Contract Hire-Operating Leases,Vehicles - Contract Hire,JC101,8/16/2018,530844,936.00,REVENUE,LINKS TAXIS,100546
North East Lincolnshire Council,http://statistics.data.gov.uk/id/local-authority/00FC),Children & Family Services,Childrens Services,Access And Education Services,Contract Hire-Operating Leases,Vehicles - Contract Hire,JC101,8/9/2018,529423,1700.00,REVENUE,AMVALE MEDICAL TRANSPORT LTD,130777
North East Lincolnshire Council,http://statistics.data.gov.uk/id/local-authority/00FC),Children & Family Services,Childrens Services,Access And Education Services,Contract Hire-Operating Leases,Vehicles - Contract Hire,JC101,8/16/2018,530901,1185.00,REVENUE,LINKS TAXIS,100546
North East Lincolnshire Council,http://statistics.data.gov.uk/id/local-authority/00FC),Children & Family Services,Childrens Services,Access And Education Services,Contract Hire-Operating Leases,Vehicles - Contract Hire,JC101,8/16/2018,530846,884.00,REVENUE,LINKS TAXIS,100546
North East Lincolnshire Council,http://statistics.data.gov.uk/id/local-authority/00FC),Children & Family Services,Childrens Services,Access And Education Services,Contract Hire-Operating Leases,Vehicles - Contract Hire,JC101,8/16/2018,530847,1125.00,REVENUE,LINKS TAXIS,100546
North East Lincolnshire Council,http://statistics.data.gov.uk/id/local-authority/00FC),Children & Family Services,Childrens Services,Access And Education Services,Contract Hire-Operating Leases,Vehicles - Contract Hire,JC101,8/16/2018,530900,1297.00,REVENUE,LINKS TAXIS,100546
North East Lincolnshire Council,http://statistics.data.gov.uk/id/local-authority/00FC),Children & Family Services,Childrens Services,Access And Education Services,Contract Hire-Operating Leases,Vehicles - Contract Hire,JC101,8/16/2018,530841,300.00,REVENUE,LINKS TAXIS,100546
North East Lincolnshire Council,http://statistics.data.gov.uk/id/local-authority/00FC),Children & Family Services,Childrens Services,Access And Education Services,Contract Hire-Operating Leases,Vehicles - Contract Hire,JC101,8/7/2018,529463,300.00,REVENUE,COXONS CARS LIMITED,100578
North East Lincolnshire Council,http://statistics.data.gov.uk/id/local-authority/00FC),Children & Family Services,Childrens Services,Access And Education Services,Contract Hire-Operating Leases,Vehicles - Contract Hire,JC101,8/7/2018,529465,392.00,REVENUE,COXONS CARS LIMITED,100578
North East Lincolnshire Council,http://statistics.data.gov.uk/id/local-authority/00FC),Children & Family Services,Childrens Services,Access And Education Services,Contract Hire-Operating Leases,Vehicles - Contract Hire,JC101,8/7/2018,529455,462.00,REVENUE,COXONS CARS LIMITED,100578
North East Lincolnshire Council,http://statistics.data.gov.uk/id/local-authority/00FC),Children & Family Services,Childrens Services,Access And Education Services,Contract Hire-Operating Leases,Vehicles - Contract Hire,JC101,8/16/2018,530870,682.50,REVENUE,MINICABS CLEETHORPES (LINCS) LTD,102124
North East Lincolnshire Council,http://statistics.data.gov.uk/id/local-authority/00FC),Children & Family Services,Childrens Services,Access And Education Services,Contract Hire-Operating Leases,Vehicles - Contract Hire,JC101,8/16/2018,530833,1302.00,REVENUE,LINKS TAXIS,100546
North East Lincolnshire Council,http://statistics.data.gov.uk/id/local-authority/00FC),Children & Family Services,Childrens Services,Access And Education Services,Contract Hire-Operating Leases,Vehicles - Contract Hire,JC101,8/21/2018,531085,900.00,REVENUE,AIRPORT TRAVEL,102393
North East Lincolnshire Council,http://statistics.data.gov.uk/id/local-authority/00FC),Children & Family Services,Childrens Services,Access And Education Services,Contract Hire-Operating Leases,Vehicles - Contract Hire,JC101,8/16/2018,530864,418.50,REVENUE,LINKS TAXIS,100546
North East Lincolnshire Council,http://statistics.data.gov.uk/id/local-authority/00FC),Children & Family Services,Childrens Services,Access And Education Services,Contract Hire-Operating Leases,Vehicles - Contract Hire,JC101,8/16/2018,530862,731.00,REVENUE,LINKS TAXIS,100546
North East Lincolnshire Council,http://statistics.data.gov.uk/id/local-authority/00FC),Children & Family Services,Childrens Services,Access And Education Services,Contract Hire-Operating Leases,Vehicles - Contract Hire,JC101,8/16/2018,530832,849.40,REVENUE,LINKS TAXIS,100546
North East Lincolnshire Council,http://statistics.data.gov.uk/id/local-authority/00FC),Children & Family Services,Childrens Services,Access And Education Services,Contract Hire-Operating Leases,Vehicles - Contract Hire,JC101,8/16/2018,530851,1493.50,REVENUE,LINKS TAXIS,100546
North East Lincolnshire Council,http://statistics.data.gov.uk/id/local-authority/00FC),Children & Family Services,Childrens Services,Access And Education Services,Contract Hire-Operating Leases,Vehicles - Contract Hire,JC101,8/21/2018,531214,704.00,REVENUE,LINKS TAXIS,100546
North East Lincolnshire Council,http://statistics.data.gov.uk/id/local-authority/00FC),Children & Family Services,Childrens Services,Access And Education Services,Contract Hire-Operating Leases,Vehicles - Contract Hire,JC101,8/16/2018,530842,725.00,REVENUE,LINKS TAXIS,100546
North East Lincolnshire Council,http://statistics.data.gov.uk/id/local-authority/00FC),Children & Family Services,Childrens Services,Access And Education Services,Contract Hire-Operating Leases,Vehicles - Contract Hire,JC101,8/16/2018,530881,564.00,REVENUE,AA RADIO CARS LTD,101222
North East Lincolnshire Council,http://statistics.data.gov.uk/id/local-authority/00FC),Children & Family Services,Childrens Services,Access And Education Services,Contract Hire-Operating Leases,Vehicles - Contract Hire,JC101,8/16/2018,530866,500.00,REVENUE,LINKS TAXIS,100546
North East Lincolnshire Council,http://statistics.data.gov.uk/id/local-authority/00FC),Children & Family Services,Childrens Services,Access And Education Services,Contract Hire-Operating Leases,Vehicles - Contract Hire,JC101,8/21/2018,531088,645.00,REVENUE,WHEELCHAIR FRIENDLY TAXI SERVICE,101915
North East Lincolnshire Council,http://statistics.data.gov.uk/id/local-authority/00FC),Children & Family Services,Childrens Services,Access And Education Services,Contract Hire-Operating Leases,Vehicles - Contract Hire,JC101,8/16/2018,530849,330.00,REVENUE,LINKS TAXIS,100546
North East Lincolnshire Council,http://statistics.data.gov.uk/id/local-authority/00FC),Children & Family Services,Childrens Services,Access And Education Services,Contract Hire-Operating Leases,Vehicles - Contract Hire,JC101,8/21/2018,531083,660.00,REVENUE,REDACTED PERSONAL INFORMATION,REDACTED PERSONAL INFORMATION
North East Lincolnshire Council,http://statistics.data.gov.uk/id/local-authority/00FC),Children & Family Services,Childrens Services,Access And Education Services,Contract Hire-Operating Leases,Vehicles - Contract Hire,JC101,8/7/2018,529475,504.00,REVENUE,COXONS CARS LIMITED,100578
North East Lincolnshire Council,http://statistics.data.gov.uk/id/local-authority/00FC),Children & Family Services,Childrens Services,Access And Education Services,Contract Hire-Operating Leases,Vehicles - Contract Hire,JC101,8/16/2018,530872,1800.00,REVENUE,AA RADIO CARS LTD,101222
North East Lincolnshire Council,http://statistics.data.gov.uk/id/local-authority/00FC),Children & Family Services,Childrens Services,Access And Education Services,Contract Hire-Operating Leases,Vehicles - Contract Hire,JC101,8/7/2018,529454,350.00,REVENUE,COXONS CARS LIMITED,100578
North East Lincolnshire Council,http://statistics.data.gov.uk/id/local-authority/00FC),Children & Family Services,Childrens Services,Access And Education Services,Contract Hire-Operating Leases,Vehicles - Contract Hire,JC101,8/16/2018,530905,860.00,REVENUE,LINKS TAXIS,100546
North East Lincolnshire Council,http://statistics.data.gov.uk/id/local-authority/00FC),Children & Family Services,Childrens Services,Access And Education Services,Contract Hire-Operating Leases,Vehicles - Contract Hire,JC101,8/21/2018,531216,360.00,REVENUE,LINKS TAXIS,100546
North East Lincolnshire Council,http://statistics.data.gov.uk/id/local-authority/00FC),Children & Family Services,Childrens Services,Access And Education Services,Contract Hire-Operating Leases,Vehicles - Contract Hire,JC101,8/7/2018,529469,360.00,REVENUE,HANSONS AIRPORT EXPRESS,111879
North East Lincolnshire Council,http://statistics.data.gov.uk/id/local-authority/00FC),Children & Family Services,Childrens Services,Access And Education Services,Contract Hire-Operating Leases,Vehicles - Contract Hire,JC101,8/21/2018,531093,775.00,REVENUE,AMVALE LIMITED,101030
North East Lincolnshire Council,http://statistics.data.gov.uk/id/local-authority/00FC),Children & Family Services,Childrens Services,Access And Education Services,Contributions To Provisions,Contributions - Other,LK103,8/7/2018,613172,251.40,REVENUE,REDACTED PERSONAL INFORMATION,REDACTED PERSONAL INFORMATION
North East Lincolnshire Council,http://statistics.data.gov.uk/id/local-authority/00FC),Children & Family Services,Childrens Services,Access And Education Services,Direct Employee Expenses,Agency Supply Teachers,EA104,8/14/2018,530077,750.00,REVENUE,MRS RUTH HART,101928
North East Lincolnshire Council,http://statistics.data.gov.uk/id/local-authority/00FC),Children & Family Services,Childrens Services,Access And Education Services,Direct Employee Expenses,Agency Supply Teachers,EA104,8/7/2018,529343,700.00,REVENUE,KALA HYNES,104808
North East Lincolnshire Council,http://statistics.data.gov.uk/id/local-authority/00FC),Children & Family Services,Childrens Services,Access And Education Services,Direct Employee Expenses,Agency Supply Teachers,EA104,8/23/2018,531496,450.00,REVENUE,AMY NAYLOR,133863
North East Lincolnshire Council,http://statistics.data.gov.uk/id/local-authority/00FC),Children & Family Services,Childrens Services,Access And Education Services,Direct Employee Expenses,Agency Supply Teachers,EA104,8/21/2018,530935,1950.00,REVENUE,LISA OLIVER,101318
North East Lincolnshire Council,http://statistics.data.gov.uk/id/local-authority/00FC),Children & Family Services,Childrens Services,Access And Education Services,Direct Employee Expenses,Agency Supply Teachers,EA104,8/28/2018,531865,500.00,REVENUE,DAVID J COOK,100937
North East Lincolnshire Council,http://statistics.data.gov.uk/id/local-authority/00FC),Children & Family Services,Childrens Services,Access And Education Services,Direct Employee Expenses,Agency Supply Teachers,EA104,8/28/2018,531867,2625.00,REVENUE,DAVID J COOK,100937
North East Lincolnshire Council,http://statistics.data.gov.uk/id/local-authority/00FC),Children & Family Services,Childrens Services,Access And Education Services,Direct Employee Expenses,Agency Supply Teachers,EA104,8/31/2018,529415,1550.00,REVENUE,STEVE WALKER,103219
North East Lincolnshire Council,http://statistics.data.gov.uk/id/local-authority/00FC),Children & Family Services,Childrens Services,Access And Education Services,Rents,Rent,GC101,8/9/2018,529612,1250.00,REVENUE,JOHN WHITGIFT ACADEMY,106898
North East Lincolnshire Council,http://statistics.data.gov.uk/id/local-authority/00FC),Children & Family Services,Childrens Services,Access And Education Services,Services,Internal Sla'S,LE102,8/21/2018,530932,250.00,REVENUE,LISA OLIVER,101318
North East Lincolnshire Council,http://statistics.data.gov.uk/id/local-authority/00FC),Children & Family Services,Childrens Services,Access And Education Services,Services,Internal Sla'S,LE102,8/28/2018,531864,450.00,REVENUE,DAVID J COOK,100937
North East Lincolnshire Council,http://statistics.data.gov.uk/id/local-authority/00FC),Children & Family Services,Childrens Services,Access And Education Services,Services,Internal Sla'S,LE102,8/28/2018,531866,600.00,REVENUE,DAVID J COOK,100937
North East Lincolnshire Council,http://statistics.data.gov.uk/id/local-authority/00FC),Children & Family Services,Childrens Services,Access And Education Services,Miscellaneous Expenses,Other Expenses General,LL119,8/9/2018,529637,260.00,REVENUE,ROY LAUGHTON,100543
North East Lincolnshire Council,http://statistics.data.gov.uk/id/local-authority/00FC),Children & Family Services,Childrens Services,Access And Education Services,Other Agencies,Performers,PJ101,8/21/2018,530936,297.00,REVENUE,LISA OLIVER,101318
North East Lincolnshire Council,http://statistics.data.gov.uk/id/local-authority/00FC),Children & Family Services,Childrens Services,Access And Education Services,Other Agencies,Performers,PJ101,8/21/2018,530930,500.00,REVENUE,LISA OLIVER,101318
North East Lincolnshire Council,http://statistics.data.gov.uk/id/local-authority/00FC),Children & Family Services,Childrens Services,Access And Education Services,Other Agencies,Tuition,PJ112,8/14/2018,530032,714.00,REVENUE,KIP MCGRATH TUITION SCUNTHORPE LP,140787
North East Lincolnshire Council,http://statistics.data.gov.uk/id/local-authority/00FC),Children & Family Services,Childrens Services,Access And Education Services,Other Agencies,Tuition,PJ112,8/30/2018,532231,875.00,REVENUE,BEST FUTURES COMMUNITY INTEREST COMPANY,128600
North East Lincolnshire Council,http://statistics.data.gov.uk/id/local-authority/00FC),Children & Family Services,Childrens Services,Access And Education Services,Other Agencies,Tuition,PJ112,8/30/2018,532227,2590.00,REVENUE,BEST FUTURES COMMUNITY INTEREST COMPANY,128600
North East Lincolnshire Council,http://statistics.data.gov.uk/id/local-authority/00FC),Children & Family Services,Childrens Services,Access And Education Services,Other Agencies,Tuition,PJ112,8/30/2018,532226,4500.00,REVENUE,BEST FUTURES COMMUNITY INTEREST COMPANY,128600
North East Lincolnshire Council,http://statistics.data.gov.uk/id/local-authority/00FC),Children & Family Services,Childrens Services,Strategic Management,Consultancy,Consultancy,PL101,8/21/2018,531220,1825.00,REVENUE,PENNA PLC,122954
North East Lincolnshire Council,http://statistics.data.gov.uk/id/local-authority/00FC),Children & Family Services,Childrens Services,Sen/Inclusion,Contributions To Provisions,Contributions - Other,LK103,8/23/2018,531539,400.00,REVENUE,THE GRIMSBY INSTITUTE OF FURTHER,102742
North East Lincolnshire Council,http://statistics.data.gov.uk/id/local-authority/00FC),Children & Family Services,Childrens Services,Sen/Inclusion,Other Local Authorities,Third Pp - Other Local Auth,PC101,8/23/2018,531201,2226.00,REVENUE,REDACTED PERSONAL INFORMATION,REDACTED PERSONAL INFORMATION
North East Lincolnshire Council,http://statistics.data.gov.uk/id/local-authority/00FC),Children & Family Services,Childrens Services,Sen/Inclusion,Other Local Authorities,Third Pp - Other Local Auth,PC101,8/23/2018,531202,1875.00,REVENUE,REDACTED PERSONAL INFORMATION,REDACTED PERSONAL INFORMATION
North East Lincolnshire Council,http://statistics.data.gov.uk/id/local-authority/00FC),Children & Family Services,Childrens Services,Sen/Inclusion,Other Local Authorities,Third Pp - Other Local Auth,PC101,8/23/2018,531200,1875.00,REVENUE,REDACTED PERSONAL INFORMATION,REDACTED PERSONAL INFORMATION
North East Lincolnshire Council,http://statistics.data.gov.uk/id/local-authority/00FC),Children & Family Services,Childrens Services,Sen/Inclusion,Other Local Authorities,Third Pp - Other Local Auth,PC101,8/14/2018,529831,2978.57,REVENUE,REDACTED PERSONAL INFORMATION,REDACTED PERSONAL INFORMATION
North East Lincolnshire Council,http://statistics.data.gov.uk/id/local-authority/00FC),Children & Family Services,Childrens Services,Sen/Inclusion,Other Local Authorities,Third Pp - Other Local Auth,PC101,8/30/2018,531973,3077.87,REVENUE,REDACTED PERSONAL INFORMATION,REDACTED PERSONAL INFORMATION
North East Lincolnshire Council,http://statistics.data.gov.uk/id/local-authority/00FC),Children & Family Services,Childrens Services,Sen/Inclusion,Other Local Authorities,Third Pp - Other Local Auth,PC101,8/14/2018,529663,2028.53,REVENUE,REDACTED PERSONAL INFORMATION,REDACTED PERSONAL INFORMATION
North East Lincolnshire Council,http://statistics.data.gov.uk/id/local-authority/00FC),Children & Family Services,Childrens Services,Sen/Inclusion,Other Local Authorities,Third Pp - Other Local Auth,PC101,8/9/2018,529834,9810.75,REVENUE,REDACTED PERSONAL INFORMATION,REDACTED PERSONAL INFORMATION
North East Lincolnshire Council,http://statistics.data.gov.uk/id/local-authority/00FC),Children & Family Services,Childrens Services,Sen/Inclusion,Other Local Authorities,Third Pp - Other Local Auth,PC101,8/9/2018,529666,8321.25,REVENUE,REDACTED PERSONAL INFORMATION,REDACTED PERSONAL INFORMATION
North East Lincolnshire Council,http://statistics.data.gov.uk/id/local-authority/00FC),Children & Family Services,Childrens Services,Sen/Inclusion,Other Local Authorities,Third Pp - Other Local Auth,PC101,8/21/2018,531148,8321.25,REVENUE,REDACTED PERSONAL INFORMATION,REDACTED PERSONAL INFORMATION
North East Lincolnshire Council,http://statistics.data.gov.uk/id/local-authority/00FC),Children & Family Services,Childrens Services,Sen/Inclusion,Other Local Authorities,Third Pp - Other Local Auth,PC101,8/30/2018,531974,10608.54,REVENUE,REDACTED PERSONAL INFORMATION,REDACTED PERSONAL INFORMATION
North East Lincolnshire Council,http://statistics.data.gov.uk/id/local-authority/00FC),Children & Family Services,Childrens Services,Sen/Inclusion,Other Local Authorities,Third Pp - Other Local Auth,PC101,8/14/2018,529862,2078.41,REVENUE,REDACTED PERSONAL INFORMATION,REDACTED PERSONAL INFORMATION
North East Lincolnshire Council,http://statistics.data.gov.uk/id/local-authority/00FC),Children & Family Services,Childrens Services,Sen/Inclusion,Other Local Authorities,Third Pp - Other Local Auth,PC101,8/14/2018,529862,2078.41,REVENUE,REDACTED PERSONAL INFORMATION,REDACTED PERSONAL INFORMATION
North East Lincolnshire Council,http://statistics.data.gov.uk/id/local-authority/00FC),Children & Family Services,Childrens Services,Sen/Inclusion,Other Local Authorities,Third Pp - Other Local Auth,PC101,8/14/2018,529862,2534.98,REVENUE,REDACTED PERSONAL INFORMATION,REDACTED PERSONAL INFORMATION
North East Lincolnshire Council,http://statistics.data.gov.uk/id/local-authority/00FC),Children & Family Services,Childrens Services,Sen/Inclusion,Other Local Authorities,Third Pp - Other Local Auth,PC101,8/14/2018,529862,283.48,REVENUE,REDACTED PERSONAL INFORMATION,REDACTED PERSONAL INFORMATION
North East Lincolnshire Council,http://statistics.data.gov.uk/id/local-authority/00FC),Children & Family Services,Childrens Services,Sen/Inclusion,Other Local Authorities,Third Pp - Other Local Auth,PC101,8/14/2018,529833,1875.00,REVENUE,REDACTED PERSONAL INFORMATION,REDACTED PERSONAL INFORMATION
North East Lincolnshire Council,http://statistics.data.gov.uk/id/local-authority/00FC),Children & Family Services,Childrens Services,Sen/Inclusion,Other Local Authorities,Third Pp - Other Local Auth,PC101,8/2/2018,526736,5588.40,REVENUE,REDACTED PERSONAL INFORMATION,REDACTED PERSONAL INFORMATION
North East Lincolnshire Council,http://statistics.data.gov.uk/id/local-authority/00FC),Children & Family Services,Childrens Services,Sen/Inclusion,Other Local Authorities,Third Pp - Other Local Auth,PC101,8/9/2018,529661,3256.00,REVENUE,REDACTED PERSONAL INFORMATION,REDACTED PERSONAL INFORMATION
North East Lincolnshire Council,http://statistics.data.gov.uk/id/local-authority/00FC),Children & Family Services,Childrens Services,Sen/Inclusion,Other Local Authorities,Third Pp - Other Local Auth,PC101,8/9/2018,529660,2886.00,REVENUE,REDACTED PERSONAL INFORMATION,REDACTED PERSONAL INFORMATION
North East Lincolnshire Council,http://statistics.data.gov.uk/id/local-authority/00FC),Children & Family Services,Childrens Services,Sen/Inclusion,Other Local Authorities,Third Pp - Other Local Auth,PC101,8/9/2018,529657,2886.00,REVENUE,REDACTED PERSONAL INFORMATION,REDACTED PERSONAL INFORMATION
North East Lincolnshire Council,http://statistics.data.gov.uk/id/local-authority/00FC),Children & Family Services,Childrens Services,Sen/Inclusion,Other Local Authorities,Third Pp - Other Local Auth,PC101,8/9/2018,529662,3256.00,REVENUE,REDACTED PERSONAL INFORMATION,REDACTED PERSONAL INFORMATION
North East Lincolnshire Council,http://statistics.data.gov.uk/id/local-authority/00FC),Children & Family Services,Childrens Services,Sen/Inclusion,Other Local Authorities,Third Pp - Other Local Auth,PC101,8/14/2018,529665,451.66,REVENUE,REDACTED PERSONAL INFORMATION,REDACTED PERSONAL INFORMATION
North East Lincolnshire Council,http://statistics.data.gov.uk/id/local-authority/00FC),Children & Family Services,Childrens Services,Sen/Inclusion,Other Local Authorities,Third Pp - Other Local Auth,PC101,8/14/2018,530104,6090.06,REVENUE,REDACTED PERSONAL INFORMATION,REDACTED PERSONAL INFORMATION
North East Lincolnshire Council,http://statistics.data.gov.uk/id/local-authority/00FC),Children & Family Services,Childrens Services,Sen/Inclusion,Other Local Authorities,Third Pp - Other Local Auth,PC101,8/14/2018,530083,10063.70,REVENUE,REDACTED PERSONAL INFORMATION,REDACTED PERSONAL INFORMATION
North East Lincolnshire Council,http://statistics.data.gov.uk/id/local-authority/00FC),Children & Family Services,Childrens Services,Sen/Inclusion,Other Local Authorities,Third Pp - Other Local Auth,PC101,8/14/2018,530107,53505.78,REVENUE,REDACTED PERSONAL INFORMATION,REDACTED PERSONAL INFORMATION
North East Lincolnshire Council,http://statistics.data.gov.uk/id/local-authority/00FC),Children & Family Services,Childrens Services,Sen/Inclusion,Other Local Authorities,Third Pp - Other Local Auth,PC101,8/14/2018,530092,13942.89,REVENUE,REDACTED PERSONAL INFORMATION,REDACTED PERSONAL INFORMATION
North East Lincolnshire Council,http://statistics.data.gov.uk/id/local-authority/00FC),Children & Family Services,Childrens Services,Sen/Inclusion,Other Local Authorities,Third Pp - Other Local Auth,PC101,8/23/2018,531538,79267.50,REVENUE,REDACTED PERSONAL INFORMATION,REDACTED PERSONAL INFORMATION
North East Lincolnshire Council,http://statistics.data.gov.uk/id/local-authority/00FC),Children & Family Services,Childrens Services,Sen/Inclusion,Other Local Authorities,Third Pp - Other Local Auth,PC101,8/23/2018,531541,6035.67,REVENUE,REDACTED PERSONAL INFORMATION,REDACTED PERSONAL INFORMATION
North East Lincolnshire Council,http://statistics.data.gov.uk/id/local-authority/00FC),Children & Family Services,Childrens Services,Sen/Inclusion,Other Local Authorities,Third Pp - Other Local Auth,PC101,8/30/2018,532246,2226.00,REVENUE,REDACTED PERSONAL INFORMATION,REDACTED PERSONAL INFORMATION
North East Lincolnshire Council,http://statistics.data.gov.uk/id/local-authority/00FC),Children & Family Services,Childrens Services,Sen/Inclusion,Other Local Authorities,Third Pp - Other Local Auth,PC101,8/30/2018,532245,2226.00,REVENUE,REDACTED PERSONAL INFORMATION,REDACTED PERSONAL INFORMATION
North East Lincolnshire Council,http://statistics.data.gov.uk/id/local-authority/00FC),Children & Family Services,Childrens Services,Sen/Inclusion,Private Contractors,Third Party Prov - Private,PH101,8/14/2018,529839,16692.90,REVENUE,CARE TODAY CHILDRENS SERVICES,128284
North East Lincolnshire Council,http://statistics.data.gov.uk/id/local-authority/00FC),Children & Family Services,Childrens Services,Sen/Inclusion,Private Contractors,Third Party Prov - Private,PH101,8/14/2018,529831,15857.13,REVENUE,REFLEXION CARE GROUP LIMITED,106975
North East Lincolnshire Council,http://statistics.data.gov.uk/id/local-authority/00FC),Children & Family Services,Childrens Services,Sen/Inclusion,Private Contractors,Third Party Prov - Private,PH101,8/30/2018,531973,16385.69,REVENUE,REFLEXION CARE GROUP LIMITED,106975
North East Lincolnshire Council,http://statistics.data.gov.uk/id/local-authority/00FC),Children & Family Services,Childrens Services,Sen/Inclusion,Private Contractors,Third Party Prov - Private,PH101,8/14/2018,529667,10302.63,REVENUE,HORTON ESTABLISHMENTS LTD,101329
North East Lincolnshire Council,http://statistics.data.gov.uk/id/local-authority/00FC),Children & Family Services,Childrens Services,Sen/Inclusion,Private Contractors,Third Party Prov - Private,PH101,8/14/2018,529663,17176.22,REVENUE,NUGENT HOUSE SCHOOL,126029
North East Lincolnshire Council,http://statistics.data.gov.uk/id/local-authority/00FC),Children & Family Services,Childrens Services,Sen/Inclusion,Private Contractors,Third Party Prov - Private,PH101,8/21/2018,530584,19303.02,REVENUE,NUGENT HOUSE SCHOOL,126029
North East Lincolnshire Council,http://statistics.data.gov.uk/id/local-authority/00FC),Children & Family Services,Childrens Services,Sen/Inclusion,Private Contractors,Third Party Prov - Private,PH101,8/9/2018,529836,14171.43,REVENUE,RADICAL SERVICES LIMITED,131315
North East Lincolnshire Council,http://statistics.data.gov.uk/id/local-authority/00FC),Children & Family Services,Childrens Services,Sen/Inclusion,Private Contractors,Third Party Prov - Private,PH101,8/9/2018,529664,14804.71,REVENUE,KEDLESTON GROUP,136352
North East Lincolnshire Council,http://statistics.data.gov.uk/id/local-authority/00FC),Children & Family Services,Childrens Services,Sen/Inclusion,Private Contractors,Third Party Prov - Private,PH101,8/2/2018,526736,22953.61,REVENUE,A WILDERNESS WAY LTD,102537
North East Lincolnshire Council,http://statistics.data.gov.uk/id/local-authority/00FC),Children & Family Services,Childrens Services,Sen/Inclusion,Private Contractors,Third Party Prov - Private,PH101,8/2/2018,528641,27621.30,REVENUE,A WILDERNESS WAY LTD,102537
North East Lincolnshire Council,http://statistics.data.gov.uk/id/local-authority/00FC),Children & Family Services,Childrens Services,Sen/Inclusion,Private Contractors,Third Party Prov - Private,PH101,8/14/2018,530089,19906.43,REVENUE,HALLIWELL HOMES LTD,137992
North East Lincolnshire Council,http://statistics.data.gov.uk/id/local-authority/00FC),Children & Family Services,Childrens Services,Sen/Inclusion,Private Contractors,Third Party Prov - Private,PH101,8/14/2018,530090,27030.00,REVENUE,LASKA CARE AND EDUCATION LTD,140222
North East Lincolnshire Council,http://statistics.data.gov.uk/id/local-authority/00FC),Children & Family Services,Childrens Services,Sen/Inclusion,Private Contractors,Third Party Prov - Private,PH101,8/14/2018,530087,14802.59,REVENUE,KEDLESTON GROUP,136352
North East Lincolnshire Council,http://statistics.data.gov.uk/id/local-authority/00FC),Children & Family Services,Childrens Services,Sen/Inclusion,Private Contractors,Third Party Prov - Private,PH101,8/14/2018,530088,13714.29,REVENUE,RADICAL SERVICES LIMITED,131315
North East Lincolnshire Council,http://statistics.data.gov.uk/id/local-authority/00FC),Children & Family Services,Childrens Services,Sen/Inclusion,Private Contractors,Third Party Prov - Private,PH101,8/14/2018,530605,28542.01,REVENUE,A WILDERNESS WAY LTD,102537
North East Lincolnshire Council,http://statistics.data.gov.uk/id/local-authority/00FC),Children & Family Services,Childrens Services,Sen/Inclusion,Private Contractors,Third Party Prov - Private,PH101,8/14/2018,530093,13176.86,REVENUE,CAMBIAN CHILDCARE LIMITED,129587
North East Lincolnshire Council,http://statistics.data.gov.uk/id/local-authority/00FC),Children & Family Services,Childrens Services,Sen/Inclusion,Private Contractors,Third Party Prov - Private,PH101,8/14/2018,530091,14171.43,REVENUE,RADICAL SERVICES LIMITED,131315
North East Lincolnshire Council,http://statistics.data.gov.uk/id/local-authority/00FC),Children & Family Services,Childrens Services,Sen/Inclusion,Private Contractors,Third Party Prov - Private,PH101,8/14/2018,530092,48884.00,REVENUE,WITHERSLACK GROUP LIMITED,140391
North East Lincolnshire Council,http://statistics.data.gov.uk/id/local-authority/00FC),Children & Family Services,Childrens Services,Sen/Inclusion,Private Contractors,Third Party Prov - Private,PH101,8/23/2018,531540,6857.14,REVENUE,RADICAL SERVICES LIMITED,131315
North East Lincolnshire Council,http://statistics.data.gov.uk/id/local-authority/00FC),Children & Family Services,Childrens Services,Sen/Inclusion,Private Contractors,Third Party Prov - Private,PH101,8/23/2018,531541,4933.06,REVENUE,CAMBIAN CHILDCARE LIMITED,129587
North East Lincolnshire Council,http://statistics.data.gov.uk/id/local-authority/00FC),Children & Family Services,Childrens Services,Sen/Inclusion,Private Contractors,Third Party Prov - Private,PH101,8/23/2018,531542,2208.13,REVENUE,CAMBIAN CHILDCARE LIMITED,129587
North East Lincolnshire Council,http://statistics.data.gov.uk/id/local-authority/00FC),Children & Family Services,Childrens Services,Sen/Inclusion,Private Contractors,Third Party Prov - Private,PH101,8/23/2018,531545,17249.33,REVENUE,CARE TODAY CHILDRENS SERVICES,128284
North East Lincolnshire Council,http://statistics.data.gov.uk/id/local-authority/00FC),Children & Family Services,Childrens Services,Sen/Inclusion,Miscellaneous Expenses,Contingency Reserve,LL123,8/28/2018,531869,12825.00,REVENUE,THE CAMBRIDGE PARK ACADEMY,107472
North East Lincolnshire Council,http://statistics.data.gov.uk/id/local-authority/00FC),Children & Family Services,Childrens Services,Sen/Inclusion,Voluntary Associations,Third Pp - Third Sector,PF101,8/21/2018,531149,19500.00,REVENUE,BARNARDO SERVICES LTD,101050
North East Lincolnshire Council,http://statistics.data.gov.uk/id/local-authority/00FC),Children & Family Services,Childrens Services,Sen/Inclusion,Contributions To Provisions,Contributions - Other,LK103,8/14/2018,530086,16687.25,REVENUE,BARNARDO SERVICES LTD,101050
North East Lincolnshire Council,http://statistics.data.gov.uk/id/local-authority/00FC),Children & Family Services,Childrens Services,Sen/Inclusion,Contributions To Provisions,Contributions - Other,LK103,8/14/2018,530084,23989.50,REVENUE,BARNARDO SERVICES LTD,101050
North East Lincolnshire Council,http://statistics.data.gov.uk/id/local-authority/00FC),Children & Family Services,Childrens Services,Sen/Inclusion,Rep Alterations Maint Building,Buildings - Repairs And Maint,GA102,8/21/2018,531163,285.00,REVENUE,ENGIE SERVICES LTD,133267
North East Lincolnshire Council,http://statistics.data.gov.uk/id/local-authority/00FC),Children & Family Services,Childrens Services,Sen/Inclusion,Private Contractors,Third Party Prov - Private,PH101,8/9/2018,614425,605.24,REVENUE,REDACTED PERSONAL INFORMATION,REDACTED PERSONAL INFORMATION
North East Lincolnshire Council,http://statistics.data.gov.uk/id/local-authority/00FC),Children & Family Services,Childrens Services,Sen/Inclusion,Private Contractors,Third Party Prov - Private,PH101,8/9/2018,614426,605.24,REVENUE,REDACTED PERSONAL INFORMATION,REDACTED PERSONAL INFORMATION
North East Lincolnshire Council,http://statistics.data.gov.uk/id/local-authority/00FC),Children & Family Services,Childrens Services,Sen/Inclusion,Private Contractors,Third Party Prov - Private,PH101,8/9/2018,529659,405.00,REVENUE,LINKAGE COMMUNITY TRUST LTD,104471
North East Lincolnshire Council,http://statistics.data.gov.uk/id/local-authority/00FC),Children & Family Services,Childrens Services,Sen/Inclusion,Private Contractors,Third Party Prov - Private,PH101,8/21/2018,530518,360.00,REVENUE,LINKAGE COMMUNITY TRUST LTD,104471
North East Lincolnshire Council,http://statistics.data.gov.uk/id/local-authority/00FC),Children & Family Services,Childrens Services,Sen/Inclusion,Private Contractors,Third Party Prov - Private,PH101,8/9/2018,529832,313.33,REVENUE,LINKAGE COMMUNITY TRUST LTD,104471
North East Lincolnshire Council,http://statistics.data.gov.uk/id/local-authority/00FC),Children & Family Services,Childrens Services,Sen/Inclusion,Private Contractors,Third Party Prov - Private,PH101,8/14/2018,529829,4304.00,REVENUE,LINKAGE COMMUNITY TRUST LTD,104471
North East Lincolnshire Council,http://statistics.data.gov.uk/id/local-authority/00FC),Children & Family Services,Childrens Services,Sen/Inclusion,Private Contractors,Third Party Prov - Private,PH101,8/9/2018,529835,1732.00,REVENUE,DONCASTER DEAF TRUST,101268
North East Lincolnshire Council,http://statistics.data.gov.uk/id/local-authority/00FC),Children & Family Services,Childrens Services,Sen/Inclusion,Private Contractors,Third Party Prov - Private,PH101,8/23/2018,531463,4304.00,REVENUE,LINKAGE COMMUNITY TRUST LTD,104471
North East Lincolnshire Council,http://statistics.data.gov.uk/id/local-authority/00FC),Children & Family Services,Childrens Services,Sen/Inclusion,Miscellaneous Expenses,Contingency Reserve,LL123,8/28/2018,531879,1317.00,REVENUE,PHOENIX PARK ACADEMY,126685
North East Lincolnshire Council,http://statistics.data.gov.uk/id/local-authority/00FC),Children & Family Services,Childrens Services,Sen/Inclusion,Miscellaneous Expenses,Contingency Reserve,LL123,8/28/2018,531877,4654.00,REVENUE,PHOENIX PARK ACADEMY,126685
North East Lincolnshire Council,http://statistics.data.gov.uk/id/local-authority/00FC),Children & Family Services,Childrens Services,Sen/Inclusion,Miscellaneous Expenses,Contingency Reserve,LL123,8/28/2018,531876,15800.00,REVENUE,PHOENIX PARK ACADEMY,126685
North East Lincolnshire Council,http://statistics.data.gov.uk/id/local-authority/00FC),Children & Family Services,Childrens Services,Sen/Inclusion,Miscellaneous Expenses,Contingency Reserve,LL123,8/28/2018,531878,44767.00,REVENUE,PHOENIX PARK ACADEMY,126685
North East Lincolnshire Council,http://statistics.data.gov.uk/id/local-authority/00FC),Children & Family Services,Childrens Services,Sen/Inclusion,Miscellaneous Expenses,Contingency Reserve,LL123,8/28/2018,531881,26333.00,REVENUE,SEVENHILLS ACADEMY,128660
North East Lincolnshire Council,http://statistics.data.gov.uk/id/local-authority/00FC),Children & Family Services,Childrens Services,Sen/Inclusion,Miscellaneous Expenses,Contingency Reserve,LL123,8/28/2018,531880,26333.00,REVENUE,SEVENHILLS ACADEMY,128660
North East Lincolnshire Council,http://statistics.data.gov.uk/id/local-authority/00FC),Children & Family Services,Childrens Services,Sen/Inclusion,Contributions To Provisions,Contributions - Other,LK103,8/14/2018,530457,1820.00,REVENUE,CANON PETER HALL CE PRIMARY ACADEMY,126646
North East Lincolnshire Council,http://statistics.data.gov.uk/id/local-authority/00FC),Children & Family Services,Childrens Services,Sen/Inclusion,Contributions To Provisions,Contributions - Other,LK103,8/14/2018,530456,959.00,REVENUE,EASTFIELD PRIMARY ACADEMY,121907
North East Lincolnshire Council,http://statistics.data.gov.uk/id/local-authority/00FC),Children & Family Services,Childrens Services,Sen/Inclusion,Contributions To Provisions,Contributions - Other,LK103,8/14/2018,530449,12429.00,REVENUE,EDWARD HENEAGE PRIMARY (ACADEMY),111742
North East Lincolnshire Council,http://statistics.data.gov.uk/id/local-authority/00FC),Children & Family Services,Childrens Services,Sen/Inclusion,Contributions To Provisions,Contributions - Other,LK103,8/14/2018,530459,5913.00,REVENUE,ELLISTON PRIMARY ACADEMY,129629
North East Lincolnshire Council,http://statistics.data.gov.uk/id/local-authority/00FC),Children & Family Services,Childrens Services,Sen/Inclusion,Contributions To Provisions,Contributions - Other,LK103,8/14/2018,530461,10357.00,REVENUE,GREAT COATES PRIMARY ACADEMY,134467
North East Lincolnshire Council,http://statistics.data.gov.uk/id/local-authority/00FC),Children & Family Services,Childrens Services,Sen/Inclusion,Contributions To Provisions,Contributions - Other,LK103,8/14/2018,530443,1510.00,REVENUE,HAVELOCK ACADEMY,101968
North East Lincolnshire Council,http://statistics.data.gov.uk/id/local-authority/00FC),Children & Family Services,Childrens Services,Sen/Inclusion,Contributions To Provisions,Contributions - Other,LK103,8/14/2018,530444,16849.00,REVENUE,HEALING SCIENCE ACADEMY LTD,102702
North East Lincolnshire Council,http://statistics.data.gov.uk/id/local-authority/00FC),Children & Family Services,Childrens Services,Sen/Inclusion,Contributions To Provisions,Contributions - Other,LK103,8/14/2018,530445,7807.00,REVENUE,HUMBERSTON ACADEMY,106067
North East Lincolnshire Council,http://statistics.data.gov.uk/id/local-authority/00FC),Children & Family Services,Childrens Services,Sen/Inclusion,Contributions To Provisions,Contributions - Other,LK103,8/14/2018,530442,11647.00,REVENUE,OASIS ACADEMY IMMINGHAM,101947
North East Lincolnshire Council,http://statistics.data.gov.uk/id/local-authority/00FC),Children & Family Services,Childrens Services,Sen/Inclusion,Contributions To Provisions,Contributions - Other,LK103,8/14/2018,530446,3282.00,REVENUE,JOHN WHITGIFT ACADEMY,106898
North East Lincolnshire Council,http://statistics.data.gov.uk/id/local-authority/00FC),Children & Family Services,Childrens Services,Sen/Inclusion,Contributions To Provisions,Contributions - Other,LK103,8/14/2018,530447,5882.00,REVENUE,LISLE MARSDEN C OF E PRIMARY ACADEMY,107922
North East Lincolnshire Council,http://statistics.data.gov.uk/id/local-authority/00FC),Children & Family Services,Childrens Services,Sen/Inclusion,Contributions To Provisions,Contributions - Other,LK103,8/14/2018,530460,6485.00,REVENUE,LITTLECOATES PRIMARY ACADEMY,134261
North East Lincolnshire Council,http://statistics.data.gov.uk/id/local-authority/00FC),Children & Family Services,Childrens Services,Sen/Inclusion,Contributions To Provisions,Contributions - Other,LK103,8/14/2018,530462,2976.00,REVENUE,PILGRIM ACADEMY,136366
North East Lincolnshire Council,http://statistics.data.gov.uk/id/local-authority/00FC),Children & Family Services,Childrens Services,Sen/Inclusion,Contributions To Provisions,Contributions - Other,LK103,8/14/2018,530450,4241.00,REVENUE,ORMISTON SOUTH PARADE ACADEMY,111750
North East Lincolnshire Council,http://statistics.data.gov.uk/id/local-authority/00FC),Children & Family Services,Childrens Services,Sen/Inclusion,Contributions To Provisions,Contributions - Other,LK103,8/14/2018,530448,5913.00,REVENUE,ST JOSEPH'S RC PRIMARY ACADEMY,110066
North East Lincolnshire Council,http://statistics.data.gov.uk/id/local-authority/00FC),Children & Family Services,Childrens Services,Sen/Inclusion,Contributions To Provisions,Contributions - Other,LK103,8/14/2018,530454,2393.00,REVENUE,ST MARYS CATHOLIC PRIMARY VOLUNTARY ACADEMY,115108
North East Lincolnshire Council,http://statistics.data.gov.uk/id/local-authority/00FC),Children & Family Services,Childrens Services,Sen/Inclusion,Contributions To Provisions,Contributions - Other,LK103,8/14/2018,530451,2630.00,REVENUE,STRAND PRIMARY ACADEMY,111862
North East Lincolnshire Council,http://statistics.data.gov.uk/id/local-authority/00FC),Children & Family Services,Childrens Services,Sen/Inclusion,Contributions To Provisions,Contributions - Other,LK103,8/14/2018,530458,2165.00,REVENUE,WELHOLME ACADEMY,127227
North East Lincolnshire Council,http://statistics.data.gov.uk/id/local-authority/00FC),Children & Family Services,Childrens Services,Sen/Inclusion,Contributions To Provisions,Contributions - Other,LK103,8/14/2018,530455,1904.00,REVENUE,WILLOWS PRIMARY ACADEMY,120478
North East Lincolnshire Council,http://statistics.data.gov.uk/id/local-authority/00FC),Children & Family Services,Childrens Services,Sen/Inclusion,Contributions To Provisions,Contributions - Other,LK103,8/14/2018,530441,1731.00,REVENUE,OASIS ACADEMY WINTRINGHAM,101939
North East Lincolnshire Council,http://statistics.data.gov.uk/id/local-authority/00FC),Children & Family Services,Childrens Services,Sen/Inclusion,Contributions To Provisions,Contributions - Other,LK103,8/14/2018,530453,5330.00,REVENUE,WYBERS WOOD PRIMARY ACADEMY,115078
North East Lincolnshire Council,http://statistics.data.gov.uk/id/local-authority/00FC),Children & Family Services,Childrens Services,Sen/Inclusion,Contributions To Provisions,Contributions - Other,LK103,8/9/2018,529656,2014.95,REVENUE,ORCHARD TRAINING & EDUCATION LTD,101643
North East Lincolnshire Council,http://statistics.data.gov.uk/id/local-authority/00FC),Children & Family Services,Childrens Services,Sen/Inclusion,Contributions To Provisions,Contributions - Other,LK103,8/14/2018,530452,1738.00,REVENUE,YARBOROUGH ACADEMY,112852
North East Lincolnshire Council,http://statistics.data.gov.uk/id/local-authority/00FC),Children & Family Services,Childrens Services,Sen/Inclusion,Contributions To Provisions,Contributions - Third Sector,LK102,8/28/2018,618529,470.75,REVENUE,REDACTED PERSONAL INFORMATION,REDACTED PERSONAL INFORMATION
North East Lincolnshire Council,http://statistics.data.gov.uk/id/local-authority/00FC),Children & Family Services,Childrens Services,Sen/Inclusion,Miscellaneous Expenses,Contingency Reserve,LL123,8/28/2018,531870,1666.00,REVENUE,THE CAMBRIDGE PARK ACADEMY,107472
North East Lincolnshire Council,http://statistics.data.gov.uk/id/local-authority/00FC),Children & Family Services,Childrens Services,Sen/Inclusion,Miscellaneous Expenses,Contingency Reserve,LL123,8/28/2018,531868,135751.00,REVENUE,THE CAMBRIDGE PARK ACADEMY,107472
North East Lincolnshire Council,http://statistics.data.gov.uk/id/local-authority/00FC),Children & Family Services,Childrens Services,Sen/Inclusion,Miscellaneous Expenses,Contingency Reserve,LL123,8/28/2018,531871,6666.00,REVENUE,HUMBERSTON PARK SPECIAL SCHOOL,107911
North East Lincolnshire Council,http://statistics.data.gov.uk/id/local-authority/00FC),Children & Family Services,Childrens Services,Sen/Inclusion,Miscellaneous Expenses,Contingency Reserve,LL123,8/28/2018,531872,108009.00,REVENUE,HUMBERSTON PARK SPECIAL SCHOOL,107911
North East Lincolnshire Council,http://statistics.data.gov.uk/id/local-authority/00FC),Children & Family Services,Childrens Services,Sen/Inclusion,Miscellaneous Expenses,Other Expenses General,LL119,8/28/2018,531875,5833.00,REVENUE,EASTFIELD PRIMARY ACADEMY,121907
North East Lincolnshire Council,http://statistics.data.gov.uk/id/local-authority/00FC),Children & Family Services,Childrens Services,Sen/Inclusion,Miscellaneous Expenses,Other Expenses General,LL119,8/28/2018,531873,1944.92,REVENUE,EASTFIELD PRIMARY ACADEMY,121907
North East Lincolnshire Council,http://statistics.data.gov.uk/id/local-authority/00FC),Children & Family Services,Childrens Services,Sen/Inclusion,Miscellaneous Expenses,Other Expenses General,LL119,8/28/2018,531874,8750.00,REVENUE,EASTFIELD PRIMARY ACADEMY,121907
North East Lincolnshire Council,http://statistics.data.gov.uk/id/local-authority/00FC),Children & Family Services,Childrens Services,Placement & Support,Miscellaneous Expenses,Activities - Service Users,LL114,8/9/2018,530113,320.90,REVENUE,VULNERABLE YOUNG PEOPLE PROJECT HENEAGE,110637
North East Lincolnshire Council,http://statistics.data.gov.uk/id/local-authority/00FC),Children & Family Services,Childrens Services,Placement & Support,Miscellaneous Expenses,Activities - Service Users,LL114,8/23/2018,531618,268.95,REVENUE,VULNERABLE YOUNG PEOPLE PROJECT HENEAGE,110637
North East Lincolnshire Council,http://statistics.data.gov.uk/id/local-authority/00FC),Children & Family Services,Childrens Services,Placement & Support,Miscellaneous Expenses,Activities - Service Users,LL114,8/31/2018,531855,500.00,REVENUE,PARKWAY ENTERTAINMENT CO LTD,101537
North East Lincolnshire Council,http://statistics.data.gov.uk/id/local-authority/00FC),Children & Family Services,Childrens Services,Placement & Support,Other Agencies,Additional Cost,PJ114,8/28/2018,618335,294.00,REVENUE,REDACTED PERSONAL INFORMATION,REDACTED PERSONAL INFORMATION
North East Lincolnshire Council,http://statistics.data.gov.uk/id/local-authority/00FC),Children & Family Services,Childrens Services,Placement & Support,Other Agencies,Additional Cost,PJ114,8/23/2018,531243,300.00,REVENUE,READY RENT A CAR,100557
North East Lincolnshire Council,http://statistics.data.gov.uk/id/local-authority/00FC),Children & Family Services,Childrens Services,Placement & Support,Other Agencies,Birthday,PJ110,8/28/2018,618476,852.00,REVENUE,REDACTED PERSONAL INFORMATION,REDACTED PERSONAL INFORMATION
North East Lincolnshire Council,http://statistics.data.gov.uk/id/local-authority/00FC),Children & Family Services,Childrens Services,Placement & Support,Other Agencies,Child Care Payments,PJ104,8/6/2018,613332,312.00,REVENUE,REDACTED PERSONAL INFORMATION,REDACTED PERSONAL INFORMATION
North East Lincolnshire Council,http://statistics.data.gov.uk/id/local-authority/00FC),Children & Family Services,Childrens Services,Placement & Support,Other Agencies,Child Care Payments,PJ104,8/6/2018,613473,996.00,REVENUE,REDACTED PERSONAL INFORMATION,REDACTED PERSONAL INFORMATION
North East Lincolnshire Council,http://statistics.data.gov.uk/id/local-authority/00FC),Children & Family Services,Childrens Services,Placement & Support,Other Agencies,Child Care Payments,PJ104,8/6/2018,613480,650.00,REVENUE,REDACTED PERSONAL INFORMATION,REDACTED PERSONAL INFORMATION
North East Lincolnshire Council,http://statistics.data.gov.uk/id/local-authority/00FC),Children & Family Services,Childrens Services,Placement & Support,Other Agencies,Child Care Payments,PJ104,8/6/2018,613483,1348.00,REVENUE,REDACTED PERSONAL INFORMATION,REDACTED PERSONAL INFORMATION
North East Lincolnshire Council,http://statistics.data.gov.uk/id/local-authority/00FC),Children & Family Services,Childrens Services,Placement & Support,Other Agencies,Child Care Payments,PJ104,8/6/2018,613496,1017.00,REVENUE,REDACTED PERSONAL INFORMATION,REDACTED PERSONAL INFORMATION
North East Lincolnshire Council,http://statistics.data.gov.uk/id/local-authority/00FC),Children & Family Services,Childrens Services,Placement & Support,Other Agencies,Child Care Payments,PJ104,8/6/2018,613499,325.00,REVENUE,REDACTED PERSONAL INFORMATION,REDACTED PERSONAL INFORMATION
North East Lincolnshire Council,http://statistics.data.gov.uk/id/local-authority/00FC),Children & Family Services,Childrens Services,Placement & Support,Other Agencies,Child Care Payments,PJ104,8/6/2018,613512,996.00,REVENUE,REDACTED PERSONAL INFORMATION,REDACTED PERSONAL INFORMATION
North East Lincolnshire Council,http://statistics.data.gov.uk/id/local-authority/00FC),Children & Family Services,Childrens Services,Placement & Support,Other Agencies,Child Care Payments,PJ104,8/6/2018,613523,650.00,REVENUE,REDACTED PERSONAL INFORMATION,REDACTED PERSONAL INFORMATION
North East Lincolnshire Council,http://statistics.data.gov.uk/id/local-authority/00FC),Children & Family Services,Childrens Services,Placement & Support,Other Agencies,Child Care Payments,PJ104,8/6/2018,613537,325.00,REVENUE,REDACTED PERSONAL INFORMATION,REDACTED PERSONAL INFORMATION
North East Lincolnshire Council,http://statistics.data.gov.uk/id/local-authority/00FC),Children & Family Services,Childrens Services,Placement & Support,Other Agencies,Child Care Payments,PJ104,8/6/2018,613537,692.00,REVENUE,REDACTED PERSONAL INFORMATION,REDACTED PERSONAL INFORMATION
North East Lincolnshire Council,http://statistics.data.gov.uk/id/local-authority/00FC),Children & Family Services,Childrens Services,Placement & Support,Other Agencies,Child Care Payments,PJ104,8/6/2018,613538,692.00,REVENUE,REDACTED PERSONAL INFORMATION,REDACTED PERSONAL INFORMATION
North East Lincolnshire Council,http://statistics.data.gov.uk/id/local-authority/00FC),Children & Family Services,Childrens Services,Placement & Support,Other Agencies,Child Care Payments,PJ104,8/6/2018,613540,962.00,REVENUE,REDACTED PERSONAL INFORMATION,REDACTED PERSONAL INFORMATION
North East Lincolnshire Council,http://statistics.data.gov.uk/id/local-authority/00FC),Children & Family Services,Childrens Services,Placement & Support,Other Agencies,Child Care Payments,PJ104,8/6/2018,613545,650.00,REVENUE,REDACTED PERSONAL INFORMATION,REDACTED PERSONAL INFORMATION
North East Lincolnshire Council,http://statistics.data.gov.uk/id/local-authority/00FC),Children & Family Services,Childrens Services,Placement & Support,Other Agencies,Child Care Payments,PJ104,8/6/2018,613546,312.00,REVENUE,REDACTED PERSONAL INFORMATION,REDACTED PERSONAL INFORMATION
North East Lincolnshire Council,http://statistics.data.gov.uk/id/local-authority/00FC),Children & Family Services,Childrens Services,Placement & Support,Other Agencies,Child Care Payments,PJ104,8/6/2018,613548,312.00,REVENUE,REDACTED PERSONAL INFORMATION,REDACTED PERSONAL INFORMATION
North East Lincolnshire Council,http://statistics.data.gov.uk/id/local-authority/00FC),Children & Family Services,Childrens Services,Placement & Support,Other Agencies,Child Care Payments,PJ104,8/6/2018,613553,637.00,REVENUE,REDACTED PERSONAL INFORMATION,REDACTED PERSONAL INFORMATION
North East Lincolnshire Council,http://statistics.data.gov.uk/id/local-authority/00FC),Children & Family Services,Childrens Services,Placement & Support,Other Agencies,Child Care Payments,PJ104,8/6/2018,613564,1316.00,REVENUE,REDACTED PERSONAL INFORMATION,REDACTED PERSONAL INFORMATION
North East Lincolnshire Council,http://statistics.data.gov.uk/id/local-authority/00FC),Children & Family Services,Childrens Services,Placement & Support,Other Agencies,Child Care Payments,PJ104,8/6/2018,613583,650.00,REVENUE,REDACTED PERSONAL INFORMATION,REDACTED PERSONAL INFORMATION
North East Lincolnshire Council,http://statistics.data.gov.uk/id/local-authority/00FC),Children & Family Services,Childrens Services,Placement & Support,Other Agencies,Child Care Payments,PJ104,8/6/2018,613584,996.00,REVENUE,REDACTED PERSONAL INFORMATION,REDACTED PERSONAL INFORMATION
North East Lincolnshire Council,http://statistics.data.gov.uk/id/local-authority/00FC),Children & Family Services,Childrens Services,Placement & Support,Other Agencies,Child Care Payments,PJ104,8/6/2018,613607,840.29,REVENUE,REDACTED PERSONAL INFORMATION,REDACTED PERSONAL INFORMATION
North East Lincolnshire Council,http://statistics.data.gov.uk/id/local-authority/00FC),Children & Family Services,Childrens Services,Placement & Support,Other Agencies,Child Care Payments,PJ104,8/6/2018,613608,325.00,REVENUE,REDACTED PERSONAL INFORMATION,REDACTED PERSONAL INFORMATION
North East Lincolnshire Council,http://statistics.data.gov.uk/id/local-authority/00FC),Children & Family Services,Childrens Services,Placement & Support,Other Agencies,Child Care Payments,PJ104,8/6/2018,613619,503.72,REVENUE,REDACTED PERSONAL INFORMATION,REDACTED PERSONAL INFORMATION
North East Lincolnshire Council,http://statistics.data.gov.uk/id/local-authority/00FC),Children & Family Services,Childrens Services,Placement & Support,Other Agencies,Child Care Payments,PJ104,8/6/2018,613622,325.00,REVENUE,REDACTED PERSONAL INFORMATION,REDACTED PERSONAL INFORMATION
North East Lincolnshire Council,http://statistics.data.gov.uk/id/local-authority/00FC),Children & Family Services,Childrens Services,Placement & Support,Other Agencies,Child Care Payments,PJ104,8/6/2018,613643,650.00,REVENUE,REDACTED PERSONAL INFORMATION,REDACTED PERSONAL INFORMATION
North East Lincolnshire Council,http://statistics.data.gov.uk/id/local-authority/00FC),Children & Family Services,Childrens Services,Placement & Support,Other Agencies,Child Care Payments,PJ104,8/6/2018,613661,346.00,REVENUE,REDACTED PERSONAL INFORMATION,REDACTED PERSONAL INFORMATION
North East Lincolnshire Council,http://statistics.data.gov.uk/id/local-authority/00FC),Children & Family Services,Childrens Services,Placement & Support,Other Agencies,Child Care Payments,PJ104,8/6/2018,613678,637.00,REVENUE,REDACTED PERSONAL INFORMATION,REDACTED PERSONAL INFORMATION
North East Lincolnshire Council,http://statistics.data.gov.uk/id/local-authority/00FC),Children & Family Services,Childrens Services,Placement & Support,Other Agencies,Child Care Payments,PJ104,8/6/2018,613319,671.00,REVENUE,REDACTED PERSONAL INFORMATION,REDACTED PERSONAL INFORMATION
North East Lincolnshire Council,http://statistics.data.gov.uk/id/local-authority/00FC),Children & Family Services,Childrens Services,Placement & Support,Other Agencies,Child Care Payments,PJ104,8/6/2018,613320,692.00,REVENUE,REDACTED PERSONAL INFORMATION,REDACTED PERSONAL INFORMATION
North East Lincolnshire Council,http://statistics.data.gov.uk/id/local-authority/00FC),Children & Family Services,Childrens Services,Placement & Support,Other Agencies,Child Care Payments,PJ104,8/6/2018,613323,949.00,REVENUE,REDACTED PERSONAL INFORMATION,REDACTED PERSONAL INFORMATION
North East Lincolnshire Council,http://statistics.data.gov.uk/id/local-authority/00FC),Children & Family Services,Childrens Services,Placement & Support,Other Agencies,Child Care Payments,PJ104,8/6/2018,613324,278.58,REVENUE,REDACTED PERSONAL INFORMATION,REDACTED PERSONAL INFORMATION
North East Lincolnshire Council,http://statistics.data.gov.uk/id/local-authority/00FC),Children & Family Services,Childrens Services,Placement & Support,Other Agencies,Child Care Payments,PJ104,8/6/2018,613327,325.00,REVENUE,REDACTED PERSONAL INFORMATION,REDACTED PERSONAL INFORMATION
North East Lincolnshire Council,http://statistics.data.gov.uk/id/local-authority/00FC),Children & Family Services,Childrens Services,Placement & Support,Other Agencies,Child Care Payments,PJ104,8/6/2018,613328,346.00,REVENUE,REDACTED PERSONAL INFORMATION,REDACTED PERSONAL INFORMATION
North East Lincolnshire Council,http://statistics.data.gov.uk/id/local-authority/00FC),Children & Family Services,Childrens Services,Placement & Support,Other Agencies,Child Care Payments,PJ104,8/6/2018,613331,692.00,REVENUE,REDACTED PERSONAL INFORMATION,REDACTED PERSONAL INFORMATION
North East Lincolnshire Council,http://statistics.data.gov.uk/id/local-authority/00FC),Children & Family Services,Childrens Services,Placement & Support,Other Agencies,Child Care Payments,PJ104,8/6/2018,613332,410.86,REVENUE,REDACTED PERSONAL INFORMATION,REDACTED PERSONAL INFORMATION
North East Lincolnshire Council,http://statistics.data.gov.uk/id/local-authority/00FC),Children & Family Services,Childrens Services,Placement & Support,Other Agencies,Child Care Payments,PJ104,8/6/2018,613334,346.00,REVENUE,REDACTED PERSONAL INFORMATION,REDACTED PERSONAL INFORMATION
North East Lincolnshire Council,http://statistics.data.gov.uk/id/local-authority/00FC),Children & Family Services,Childrens Services,Placement & Support,Other Agencies,Child Care Payments,PJ104,8/6/2018,613338,1023.00,REVENUE,REDACTED PERSONAL INFORMATION,REDACTED PERSONAL INFORMATION
North East Lincolnshire Council,http://statistics.data.gov.uk/id/local-authority/00FC),Children & Family Services,Childrens Services,Placement & Support,Other Agencies,Child Care Payments,PJ104,8/6/2018,613342,996.00,REVENUE,REDACTED PERSONAL INFORMATION,REDACTED PERSONAL INFORMATION
North East Lincolnshire Council,http://statistics.data.gov.uk/id/local-authority/00FC),Children & Family Services,Childrens Services,Placement & Support,Other Agencies,Child Care Payments,PJ104,8/6/2018,613344,671.00,REVENUE,REDACTED PERSONAL INFORMATION,REDACTED PERSONAL INFORMATION
North East Lincolnshire Council,http://statistics.data.gov.uk/id/local-authority/00FC),Children & Family Services,Childrens Services,Placement & Support,Other Agencies,Child Care Payments,PJ104,8/6/2018,613345,949.00,REVENUE,REDACTED PERSONAL INFORMATION,REDACTED PERSONAL INFORMATION
North East Lincolnshire Council,http://statistics.data.gov.uk/id/local-authority/00FC),Children & Family Services,Childrens Services,Placement & Support,Other Agencies,Child Care Payments,PJ104,8/6/2018,613347,1038.00,REVENUE,REDACTED PERSONAL INFORMATION,REDACTED PERSONAL INFORMATION
North East Lincolnshire Council,http://statistics.data.gov.uk/id/local-authority/00FC),Children & Family Services,Childrens Services,Placement & Support,Other Agencies,Child Care Payments,PJ104,8/6/2018,613348,650.00,REVENUE,REDACTED PERSONAL INFORMATION,REDACTED PERSONAL INFORMATION
North East Lincolnshire Council,http://statistics.data.gov.uk/id/local-authority/00FC),Children & Family Services,Childrens Services,Placement & Support,Other Agencies,Child Care Payments,PJ104,8/6/2018,613351,698.00,REVENUE,REDACTED PERSONAL INFORMATION,REDACTED PERSONAL INFORMATION
North East Lincolnshire Council,http://statistics.data.gov.uk/id/local-authority/00FC),Children & Family Services,Childrens Services,Placement & Support,Other Agencies,Child Care Payments,PJ104,8/6/2018,613364,637.00,REVENUE,REDACTED PERSONAL INFORMATION,REDACTED PERSONAL INFORMATION
North East Lincolnshire Council,http://statistics.data.gov.uk/id/local-authority/00FC),Children & Family Services,Childrens Services,Placement & Support,Other Agencies,Child Care Payments,PJ104,8/6/2018,613368,1017.00,REVENUE,REDACTED PERSONAL INFORMATION,REDACTED PERSONAL INFORMATION
North East Lincolnshire Council,http://statistics.data.gov.uk/id/local-authority/00FC),Children & Family Services,Childrens Services,Placement & Support,Other Agencies,Child Care Payments,PJ104,8/6/2018,613371,1017.00,REVENUE,REDACTED PERSONAL INFORMATION,REDACTED PERSONAL INFORMATION
North East Lincolnshire Council,http://statistics.data.gov.uk/id/local-authority/00FC),Children & Family Services,Childrens Services,Placement & Support,Other Agencies,Child Care Payments,PJ104,8/6/2018,613373,692.00,REVENUE,REDACTED PERSONAL INFORMATION,REDACTED PERSONAL INFORMATION
North East Lincolnshire Council,http://statistics.data.gov.uk/id/local-authority/00FC),Children & Family Services,Childrens Services,Placement & Support,Other Agencies,Child Care Payments,PJ104,8/6/2018,613375,373.00,REVENUE,REDACTED PERSONAL INFORMATION,REDACTED PERSONAL INFORMATION
North East Lincolnshire Council,http://statistics.data.gov.uk/id/local-authority/00FC),Children & Family Services,Childrens Services,Placement & Support,Other Agencies,Child Care Payments,PJ104,8/6/2018,613376,373.00,REVENUE,REDACTED PERSONAL INFORMATION,REDACTED PERSONAL INFORMATION
North East Lincolnshire Council,http://statistics.data.gov.uk/id/local-authority/00FC),Children & Family Services,Childrens Services,Placement & Support,Other Agencies,Child Care Payments,PJ104,8/6/2018,613378,637.00,REVENUE,REDACTED PERSONAL INFORMATION,REDACTED PERSONAL INFORMATION
North East Lincolnshire Council,http://statistics.data.gov.uk/id/local-authority/00FC),Children & Family Services,Childrens Services,Placement & Support,Other Agencies,Child Care Payments,PJ104,8/6/2018,613391,1017.00,REVENUE,REDACTED PERSONAL INFORMATION,REDACTED PERSONAL INFORMATION
North East Lincolnshire Council,http://statistics.data.gov.uk/id/local-authority/00FC),Children & Family Services,Childrens Services,Placement & Support,Other Agencies,Child Care Payments,PJ104,8/6/2018,613396,970.00,REVENUE,REDACTED PERSONAL INFORMATION,REDACTED PERSONAL INFORMATION
North East Lincolnshire Council,http://statistics.data.gov.uk/id/local-authority/00FC),Children & Family Services,Childrens Services,Placement & Support,Other Agencies,Child Care Payments,PJ104,8/6/2018,613397,346.00,REVENUE,REDACTED PERSONAL INFORMATION,REDACTED PERSONAL INFORMATION
North East Lincolnshire Council,http://statistics.data.gov.uk/id/local-authority/00FC),Children & Family Services,Childrens Services,Placement & Support,Other Agencies,Child Care Payments,PJ104,8/6/2018,613399,962.00,REVENUE,REDACTED PERSONAL INFORMATION,REDACTED PERSONAL INFORMATION
North East Lincolnshire Council,http://statistics.data.gov.uk/id/local-authority/00FC),Children & Family Services,Childrens Services,Placement & Support,Other Agencies,Child Care Payments,PJ104,8/6/2018,613400,278.58,REVENUE,REDACTED PERSONAL INFORMATION,REDACTED PERSONAL INFORMATION
North East Lincolnshire Council,http://statistics.data.gov.uk/id/local-authority/00FC),Children & Family Services,Childrens Services,Placement & Support,Other Agencies,Child Care Payments,PJ104,8/6/2018,613407,650.00,REVENUE,REDACTED PERSONAL INFORMATION,REDACTED PERSONAL INFORMATION
North East Lincolnshire Council,http://statistics.data.gov.uk/id/local-authority/00FC),Children & Family Services,Childrens Services,Placement & Support,Other Agencies,Child Care Payments,PJ104,8/6/2018,613412,1017.00,REVENUE,REDACTED PERSONAL INFORMATION,REDACTED PERSONAL INFORMATION
North East Lincolnshire Council,http://statistics.data.gov.uk/id/local-authority/00FC),Children & Family Services,Childrens Services,Placement & Support,Other Agencies,Child Care Payments,PJ104,8/6/2018,613431,346.00,REVENUE,REDACTED PERSONAL INFORMATION,REDACTED PERSONAL INFORMATION
North East Lincolnshire Council,http://statistics.data.gov.uk/id/local-authority/00FC),Children & Family Services,Childrens Services,Placement & Support,Other Agencies,Child Care Payments,PJ104,8/6/2018,613437,346.00,REVENUE,REDACTED PERSONAL INFORMATION,REDACTED PERSONAL INFORMATION
North East Lincolnshire Council,http://statistics.data.gov.uk/id/local-authority/00FC),Children & Family Services,Childrens Services,Placement & Support,Other Agencies,Child Care Payments,PJ104,8/6/2018,613451,1329.00,REVENUE,REDACTED PERSONAL INFORMATION,REDACTED PERSONAL INFORMATION
North East Lincolnshire Council,http://statistics.data.gov.uk/id/local-authority/00FC),Children & Family Services,Childrens Services,Placement & Support,Other Agencies,Child Care Payments,PJ104,8/6/2018,613454,698.00,REVENUE,REDACTED PERSONAL INFORMATION,REDACTED PERSONAL INFORMATION
North East Lincolnshire Council,http://statistics.data.gov.uk/id/local-authority/00FC),Children & Family Services,Childrens Services,Placement & Support,Other Agencies,Child Care Payments,PJ104,8/6/2018,613459,996.00,REVENUE,REDACTED PERSONAL INFORMATION,REDACTED PERSONAL INFORMATION
North East Lincolnshire Council,http://statistics.data.gov.uk/id/local-authority/00FC),Children & Family Services,Childrens Services,Placement & Support,Other Agencies,Child Care Payments,PJ104,8/6/2018,613461,1017.00,REVENUE,REDACTED PERSONAL INFORMATION,REDACTED PERSONAL INFORMATION
North East Lincolnshire Council,http://statistics.data.gov.uk/id/local-authority/00FC),Children & Family Services,Childrens Services,Placement & Support,Other Agencies,Child Care Payments,PJ104,8/14/2018,614960,802.30,REVENUE,REDACTED PERSONAL INFORMATION,REDACTED PERSONAL INFORMATION
North East Lincolnshire Council,http://statistics.data.gov.uk/id/local-authority/00FC),Children & Family Services,Childrens Services,Placement & Support,Other Agencies,Child Care Payments,PJ104,8/14/2018,614967,637.00,REVENUE,REDACTED PERSONAL INFORMATION,REDACTED PERSONAL INFORMATION
North East Lincolnshire Council,http://statistics.data.gov.uk/id/local-authority/00FC),Children & Family Services,Childrens Services,Placement & Support,Other Agencies,Child Care Payments,PJ104,8/14/2018,614971,1017.00,REVENUE,REDACTED PERSONAL INFORMATION,REDACTED PERSONAL INFORMATION
North East Lincolnshire Council,http://statistics.data.gov.uk/id/local-authority/00FC),Children & Family Services,Childrens Services,Placement & Support,Other Agencies,Child Care Payments,PJ104,8/14/2018,614974,1017.00,REVENUE,REDACTED PERSONAL INFORMATION,REDACTED PERSONAL INFORMATION
North East Lincolnshire Council,http://statistics.data.gov.uk/id/local-authority/00FC),Children & Family Services,Childrens Services,Placement & Support,Other Agencies,Child Care Payments,PJ104,8/14/2018,614976,692.00,REVENUE,REDACTED PERSONAL INFORMATION,REDACTED PERSONAL INFORMATION
North East Lincolnshire Council,http://statistics.data.gov.uk/id/local-authority/00FC),Children & Family Services,Childrens Services,Placement & Support,Other Agencies,Child Care Payments,PJ104,8/14/2018,614978,373.00,REVENUE,REDACTED PERSONAL INFORMATION,REDACTED PERSONAL INFORMATION
North East Lincolnshire Council,http://statistics.data.gov.uk/id/local-authority/00FC),Children & Family Services,Childrens Services,Placement & Support,Other Agencies,Child Care Payments,PJ104,8/14/2018,614979,373.00,REVENUE,REDACTED PERSONAL INFORMATION,REDACTED PERSONAL INFORMATION
North East Lincolnshire Council,http://statistics.data.gov.uk/id/local-authority/00FC),Children & Family Services,Childrens Services,Placement & Support,Other Agencies,Child Care Payments,PJ104,8/14/2018,614981,637.00,REVENUE,REDACTED PERSONAL INFORMATION,REDACTED PERSONAL INFORMATION
North East Lincolnshire Council,http://statistics.data.gov.uk/id/local-authority/00FC),Children & Family Services,Childrens Services,Placement & Support,Other Agencies,Child Care Payments,PJ104,8/14/2018,614994,1017.00,REVENUE,REDACTED PERSONAL INFORMATION,REDACTED PERSONAL INFORMATION
North East Lincolnshire Council,http://statistics.data.gov.uk/id/local-authority/00FC),Children & Family Services,Childrens Services,Placement & Support,Other Agencies,Child Care Payments,PJ104,8/14/2018,614999,970.00,REVENUE,REDACTED PERSONAL INFORMATION,REDACTED PERSONAL INFORMATION
North East Lincolnshire Council,http://statistics.data.gov.uk/id/local-authority/00FC),Children & Family Services,Childrens Services,Placement & Support,Other Agencies,Child Care Payments,PJ104,8/14/2018,615000,346.00,REVENUE,REDACTED PERSONAL INFORMATION,REDACTED PERSONAL INFORMATION
North East Lincolnshire Council,http://statistics.data.gov.uk/id/local-authority/00FC),Children & Family Services,Childrens Services,Placement & Support,Other Agencies,Child Care Payments,PJ104,8/14/2018,615002,962.00,REVENUE,REDACTED PERSONAL INFORMATION,REDACTED PERSONAL INFORMATION
North East Lincolnshire Council,http://statistics.data.gov.uk/id/local-authority/00FC),Children & Family Services,Childrens Services,Placement & Support,Other Agencies,Child Care Payments,PJ104,8/14/2018,615008,650.00,REVENUE,REDACTED PERSONAL INFORMATION,REDACTED PERSONAL INFORMATION
North East Lincolnshire Council,http://statistics.data.gov.uk/id/local-authority/00FC),Children & Family Services,Childrens Services,Placement & Support,Other Agencies,Child Care Payments,PJ104,8/14/2018,615013,2018.00,REVENUE,REDACTED PERSONAL INFORMATION,REDACTED PERSONAL INFORMATION
North East Lincolnshire Council,http://statistics.data.gov.uk/id/local-authority/00FC),Children & Family Services,Childrens Services,Placement & Support,Other Agencies,Child Care Payments,PJ104,8/14/2018,615033,346.00,REVENUE,REDACTED PERSONAL INFORMATION,REDACTED PERSONAL INFORMATION
North East Lincolnshire Council,http://statistics.data.gov.uk/id/local-authority/00FC),Children & Family Services,Childrens Services,Placement & Support,Other Agencies,Child Care Payments,PJ104,8/14/2018,615039,524.29,REVENUE,REDACTED PERSONAL INFORMATION,REDACTED PERSONAL INFORMATION
North East Lincolnshire Council,http://statistics.data.gov.uk/id/local-authority/00FC),Children & Family Services,Childrens Services,Placement & Support,Other Agencies,Child Care Payments,PJ104,8/14/2018,615053,1329.00,REVENUE,REDACTED PERSONAL INFORMATION,REDACTED PERSONAL INFORMATION
North East Lincolnshire Council,http://statistics.data.gov.uk/id/local-authority/00FC),Children & Family Services,Childrens Services,Placement & Support,Other Agencies,Child Care Payments,PJ104,8/14/2018,615056,698.00,REVENUE,REDACTED PERSONAL INFORMATION,REDACTED PERSONAL INFORMATION
North East Lincolnshire Council,http://statistics.data.gov.uk/id/local-authority/00FC),Children & Family Services,Childrens Services,Placement & Support,Other Agencies,Child Care Payments,PJ104,8/14/2018,615061,996.00,REVENUE,REDACTED PERSONAL INFORMATION,REDACTED PERSONAL INFORMATION
North East Lincolnshire Council,http://statistics.data.gov.uk/id/local-authority/00FC),Children & Family Services,Childrens Services,Placement & Support,Other Agencies,Child Care Payments,PJ104,8/14/2018,615063,1017.00,REVENUE,REDACTED PERSONAL INFORMATION,REDACTED PERSONAL INFORMATION
North East Lincolnshire Council,http://statistics.data.gov.uk/id/local-authority/00FC),Children & Family Services,Childrens Services,Placement & Support,Other Agencies,Child Care Payments,PJ104,8/14/2018,615075,996.00,REVENUE,REDACTED PERSONAL INFORMATION,REDACTED PERSONAL INFORMATION
North East Lincolnshire Council,http://statistics.data.gov.uk/id/local-authority/00FC),Children & Family Services,Childrens Services,Placement & Support,Other Agencies,Child Care Payments,PJ104,8/14/2018,615082,650.00,REVENUE,REDACTED PERSONAL INFORMATION,REDACTED PERSONAL INFORMATION
North East Lincolnshire Council,http://statistics.data.gov.uk/id/local-authority/00FC),Children & Family Services,Childrens Services,Placement & Support,Other Agencies,Child Care Payments,PJ104,8/14/2018,615085,1348.00,REVENUE,REDACTED PERSONAL INFORMATION,REDACTED PERSONAL INFORMATION
North East Lincolnshire Council,http://statistics.data.gov.uk/id/local-authority/00FC),Children & Family Services,Childrens Services,Placement & Support,Other Agencies,Child Care Payments,PJ104,8/14/2018,615098,1017.00,REVENUE,REDACTED PERSONAL INFORMATION,REDACTED PERSONAL INFORMATION
North East Lincolnshire Council,http://statistics.data.gov.uk/id/local-authority/00FC),Children & Family Services,Childrens Services,Placement & Support,Other Agencies,Child Care Payments,PJ104,8/14/2018,615101,325.00,REVENUE,REDACTED PERSONAL INFORMATION,REDACTED PERSONAL INFORMATION
North East Lincolnshire Council,http://statistics.data.gov.uk/id/local-authority/00FC),Children & Family Services,Childrens Services,Placement & Support,Other Agencies,Child Care Payments,PJ104,8/14/2018,615115,996.00,REVENUE,REDACTED PERSONAL INFORMATION,REDACTED PERSONAL INFORMATION
North East Lincolnshire Council,http://statistics.data.gov.uk/id/local-authority/00FC),Children & Family Services,Childrens Services,Placement & Support,Other Agencies,Child Care Payments,PJ104,8/14/2018,615126,828.29,REVENUE,REDACTED PERSONAL INFORMATION,REDACTED PERSONAL INFORMATION
North East Lincolnshire Council,http://statistics.data.gov.uk/id/local-authority/00FC),Children & Family Services,Childrens Services,Placement & Support,Other Agencies,Child Care Payments,PJ104,8/14/2018,615140,1017.00,REVENUE,REDACTED PERSONAL INFORMATION,REDACTED PERSONAL INFORMATION
North East Lincolnshire Council,http://statistics.data.gov.uk/id/local-authority/00FC),Children & Family Services,Childrens Services,Placement & Support,Other Agencies,Child Care Payments,PJ104,8/14/2018,615141,692.00,REVENUE,REDACTED PERSONAL INFORMATION,REDACTED PERSONAL INFORMATION
North East Lincolnshire Council,http://statistics.data.gov.uk/id/local-authority/00FC),Children & Family Services,Childrens Services,Placement & Support,Other Agencies,Child Care Payments,PJ104,8/14/2018,615143,962.00,REVENUE,REDACTED PERSONAL INFORMATION,REDACTED PERSONAL INFORMATION
North East Lincolnshire Council,http://statistics.data.gov.uk/id/local-authority/00FC),Children & Family Services,Childrens Services,Placement & Support,Other Agencies,Child Care Payments,PJ104,8/14/2018,615148,650.00,REVENUE,REDACTED PERSONAL INFORMATION,REDACTED PERSONAL INFORMATION
North East Lincolnshire Council,http://statistics.data.gov.uk/id/local-authority/00FC),Children & Family Services,Childrens Services,Placement & Support,Other Agencies,Child Care Payments,PJ104,8/14/2018,615149,312.00,REVENUE,REDACTED PERSONAL INFORMATION,REDACTED PERSONAL INFORMATION
North East Lincolnshire Council,http://statistics.data.gov.uk/id/local-authority/00FC),Children & Family Services,Childrens Services,Placement & Support,Other Agencies,Child Care Payments,PJ104,8/14/2018,615151,312.00,REVENUE,REDACTED PERSONAL INFORMATION,REDACTED PERSONAL INFORMATION
North East Lincolnshire Council,http://statistics.data.gov.uk/id/local-authority/00FC),Children & Family Services,Childrens Services,Placement & Support,Other Agencies,Child Care Payments,PJ104,8/14/2018,615156,637.00,REVENUE,REDACTED PERSONAL INFORMATION,REDACTED PERSONAL INFORMATION
North East Lincolnshire Council,http://statistics.data.gov.uk/id/local-authority/00FC),Children & Family Services,Childrens Services,Placement & Support,Other Agencies,Child Care Payments,PJ104,8/14/2018,615167,1316.00,REVENUE,REDACTED PERSONAL INFORMATION,REDACTED PERSONAL INFORMATION
North East Lincolnshire Council,http://statistics.data.gov.uk/id/local-authority/00FC),Children & Family Services,Childrens Services,Placement & Support,Other Agencies,Child Care Payments,PJ104,8/14/2018,615186,650.00,REVENUE,REDACTED PERSONAL INFORMATION,REDACTED PERSONAL INFORMATION
North East Lincolnshire Council,http://statistics.data.gov.uk/id/local-authority/00FC),Children & Family Services,Childrens Services,Placement & Support,Other Agencies,Child Care Payments,PJ104,8/14/2018,615187,996.00,REVENUE,REDACTED PERSONAL INFORMATION,REDACTED PERSONAL INFORMATION
North East Lincolnshire Council,http://statistics.data.gov.uk/id/local-authority/00FC),Children & Family Services,Childrens Services,Placement & Support,Other Agencies,Child Care Payments,PJ104,8/14/2018,615210,692.00,REVENUE,REDACTED PERSONAL INFORMATION,REDACTED PERSONAL INFORMATION
North East Lincolnshire Council,http://statistics.data.gov.uk/id/local-authority/00FC),Children & Family Services,Childrens Services,Placement & Support,Other Agencies,Child Care Payments,PJ104,8/14/2018,615211,325.00,REVENUE,REDACTED PERSONAL INFORMATION,REDACTED PERSONAL INFORMATION
North East Lincolnshire Council,http://statistics.data.gov.uk/id/local-authority/00FC),Children & Family Services,Childrens Services,Placement & Support,Other Agencies,Child Care Payments,PJ104,8/14/2018,615221,312.00,REVENUE,REDACTED PERSONAL INFORMATION,REDACTED PERSONAL INFORMATION
North East Lincolnshire Council,http://statistics.data.gov.uk/id/local-authority/00FC),Children & Family Services,Childrens Services,Placement & Support,Other Agencies,Child Care Payments,PJ104,8/14/2018,615224,325.00,REVENUE,REDACTED PERSONAL INFORMATION,REDACTED PERSONAL INFORMATION
North East Lincolnshire Council,http://statistics.data.gov.uk/id/local-authority/00FC),Children & Family Services,Childrens Services,Placement & Support,Other Agencies,Child Care Payments,PJ104,8/14/2018,615245,650.00,REVENUE,REDACTED PERSONAL INFORMATION,REDACTED PERSONAL INFORMATION
North East Lincolnshire Council,http://statistics.data.gov.uk/id/local-authority/00FC),Children & Family Services,Childrens Services,Placement & Support,Other Agencies,Child Care Payments,PJ104,8/14/2018,615263,346.00,REVENUE,REDACTED PERSONAL INFORMATION,REDACTED PERSONAL INFORMATION
North East Lincolnshire Council,http://statistics.data.gov.uk/id/local-authority/00FC),Children & Family Services,Childrens Services,Placement & Support,Other Agencies,Child Care Payments,PJ104,8/14/2018,615280,637.00,REVENUE,REDACTED PERSONAL INFORMATION,REDACTED PERSONAL INFORMATION
North East Lincolnshire Council,http://statistics.data.gov.uk/id/local-authority/00FC),Children & Family Services,Childrens Services,Placement & Support,Other Agencies,Child Care Payments,PJ104,8/14/2018,614922,671.00,REVENUE,REDACTED PERSONAL INFORMATION,REDACTED PERSONAL INFORMATION
North East Lincolnshire Council,http://statistics.data.gov.uk/id/local-authority/00FC),Children & Family Services,Childrens Services,Placement & Support,Other Agencies,Child Care Payments,PJ104,8/14/2018,614923,692.00,REVENUE,REDACTED PERSONAL INFORMATION,REDACTED PERSONAL INFORMATION
North East Lincolnshire Council,http://statistics.data.gov.uk/id/local-authority/00FC),Children & Family Services,Childrens Services,Placement & Support,Other Agencies,Child Care Payments,PJ104,8/14/2018,614926,949.00,REVENUE,REDACTED PERSONAL INFORMATION,REDACTED PERSONAL INFORMATION
North East Lincolnshire Council,http://statistics.data.gov.uk/id/local-authority/00FC),Children & Family Services,Childrens Services,Placement & Support,Other Agencies,Child Care Payments,PJ104,8/14/2018,614927,1162.29,REVENUE,REDACTED PERSONAL INFORMATION,REDACTED PERSONAL INFORMATION
North East Lincolnshire Council,http://statistics.data.gov.uk/id/local-authority/00FC),Children & Family Services,Childrens Services,Placement & Support,Other Agencies,Child Care Payments,PJ104,8/14/2018,614930,325.00,REVENUE,REDACTED PERSONAL INFORMATION,REDACTED PERSONAL INFORMATION
North East Lincolnshire Council,http://statistics.data.gov.uk/id/local-authority/00FC),Children & Family Services,Childrens Services,Placement & Support,Other Agencies,Child Care Payments,PJ104,8/14/2018,614931,346.00,REVENUE,REDACTED PERSONAL INFORMATION,REDACTED PERSONAL INFORMATION
North East Lincolnshire Council,http://statistics.data.gov.uk/id/local-authority/00FC),Children & Family Services,Childrens Services,Placement & Support,Other Agencies,Child Care Payments,PJ104,8/14/2018,614934,692.00,REVENUE,REDACTED PERSONAL INFORMATION,REDACTED PERSONAL INFORMATION
North East Lincolnshire Council,http://statistics.data.gov.uk/id/local-authority/00FC),Children & Family Services,Childrens Services,Placement & Support,Other Agencies,Child Care Payments,PJ104,8/14/2018,614935,312.00,REVENUE,REDACTED PERSONAL INFORMATION,REDACTED PERSONAL INFORMATION
North East Lincolnshire Council,http://statistics.data.gov.uk/id/local-authority/00FC),Children & Family Services,Childrens Services,Placement & Support,Other Agencies,Child Care Payments,PJ104,8/14/2018,614937,346.00,REVENUE,REDACTED PERSONAL INFORMATION,REDACTED PERSONAL INFORMATION
North East Lincolnshire Council,http://statistics.data.gov.uk/id/local-authority/00FC),Children & Family Services,Childrens Services,Placement & Support,Other Agencies,Child Care Payments,PJ104,8/14/2018,614941,1023.00,REVENUE,REDACTED PERSONAL INFORMATION,REDACTED PERSONAL INFORMATION
North East Lincolnshire Council,http://statistics.data.gov.uk/id/local-authority/00FC),Children & Family Services,Childrens Services,Placement & Support,Other Agencies,Child Care Payments,PJ104,8/14/2018,614945,996.00,REVENUE,REDACTED PERSONAL INFORMATION,REDACTED PERSONAL INFORMATION
North East Lincolnshire Council,http://statistics.data.gov.uk/id/local-authority/00FC),Children & Family Services,Childrens Services,Placement & Support,Other Agencies,Child Care Payments,PJ104,8/14/2018,614947,671.00,REVENUE,REDACTED PERSONAL INFORMATION,REDACTED PERSONAL INFORMATION
North East Lincolnshire Council,http://statistics.data.gov.uk/id/local-authority/00FC),Children & Family Services,Childrens Services,Placement & Support,Other Agencies,Child Care Payments,PJ104,8/14/2018,614948,949.00,REVENUE,REDACTED PERSONAL INFORMATION,REDACTED PERSONAL INFORMATION
North East Lincolnshire Council,http://statistics.data.gov.uk/id/local-authority/00FC),Children & Family Services,Childrens Services,Placement & Support,Other Agencies,Child Care Payments,PJ104,8/14/2018,614950,346.00,REVENUE,REDACTED PERSONAL INFORMATION,REDACTED PERSONAL INFORMATION
North East Lincolnshire Council,http://statistics.data.gov.uk/id/local-authority/00FC),Children & Family Services,Childrens Services,Placement & Support,Other Agencies,Child Care Payments,PJ104,8/14/2018,614950,692.00,REVENUE,REDACTED PERSONAL INFORMATION,REDACTED PERSONAL INFORMATION
North East Lincolnshire Council,http://statistics.data.gov.uk/id/local-authority/00FC),Children & Family Services,Childrens Services,Placement & Support,Other Agencies,Child Care Payments,PJ104,8/14/2018,614951,650.00,REVENUE,REDACTED PERSONAL INFORMATION,REDACTED PERSONAL INFORMATION
North East Lincolnshire Council,http://statistics.data.gov.uk/id/local-authority/00FC),Children & Family Services,Childrens Services,Placement & Support,Other Agencies,Child Care Payments,PJ104,8/14/2018,614954,698.00,REVENUE,REDACTED PERSONAL INFORMATION,REDACTED PERSONAL INFORMATION
North East Lincolnshire Council,http://statistics.data.gov.uk/id/local-authority/00FC),Children & Family Services,Childrens Services,Placement & Support,Other Agencies,Child Care Payments,PJ104,8/21/2018,616562,1388.43,REVENUE,REDACTED PERSONAL INFORMATION,REDACTED PERSONAL INFORMATION
North East Lincolnshire Council,http://statistics.data.gov.uk/id/local-authority/00FC),Children & Family Services,Childrens Services,Placement & Support,Other Agencies,Child Care Payments,PJ104,8/21/2018,616563,692.00,REVENUE,REDACTED PERSONAL INFORMATION,REDACTED PERSONAL INFORMATION
North East Lincolnshire Council,http://statistics.data.gov.uk/id/local-authority/00FC),Children & Family Services,Childrens Services,Placement & Support,Other Agencies,Child Care Payments,PJ104,8/21/2018,616565,962.00,REVENUE,REDACTED PERSONAL INFORMATION,REDACTED PERSONAL INFORMATION
North East Lincolnshire Council,http://statistics.data.gov.uk/id/local-authority/00FC),Children & Family Services,Childrens Services,Placement & Support,Other Agencies,Child Care Payments,PJ104,8/21/2018,616570,650.00,REVENUE,REDACTED PERSONAL INFORMATION,REDACTED PERSONAL INFORMATION
North East Lincolnshire Council,http://statistics.data.gov.uk/id/local-authority/00FC),Children & Family Services,Childrens Services,Placement & Support,Other Agencies,Child Care Payments,PJ104,8/21/2018,616571,312.00,REVENUE,REDACTED PERSONAL INFORMATION,REDACTED PERSONAL INFORMATION
North East Lincolnshire Council,http://statistics.data.gov.uk/id/local-authority/00FC),Children & Family Services,Childrens Services,Placement & Support,Other Agencies,Child Care Payments,PJ104,8/21/2018,616573,312.00,REVENUE,REDACTED PERSONAL INFORMATION,REDACTED PERSONAL INFORMATION
North East Lincolnshire Council,http://statistics.data.gov.uk/id/local-authority/00FC),Children & Family Services,Childrens Services,Placement & Support,Other Agencies,Child Care Payments,PJ104,8/21/2018,616578,637.00,REVENUE,REDACTED PERSONAL INFORMATION,REDACTED PERSONAL INFORMATION
North East Lincolnshire Council,http://statistics.data.gov.uk/id/local-authority/00FC),Children & Family Services,Childrens Services,Placement & Support,Other Agencies,Child Care Payments,PJ104,8/21/2018,616589,1271.43,REVENUE,REDACTED PERSONAL INFORMATION,REDACTED PERSONAL INFORMATION
North East Lincolnshire Council,http://statistics.data.gov.uk/id/local-authority/00FC),Children & Family Services,Childrens Services,Placement & Support,Other Agencies,Child Care Payments,PJ104,8/21/2018,616608,650.00,REVENUE,REDACTED PERSONAL INFORMATION,REDACTED PERSONAL INFORMATION
North East Lincolnshire Council,http://statistics.data.gov.uk/id/local-authority/00FC),Children & Family Services,Childrens Services,Placement & Support,Other Agencies,Child Care Payments,PJ104,8/21/2018,616609,996.00,REVENUE,REDACTED PERSONAL INFORMATION,REDACTED PERSONAL INFORMATION
North East Lincolnshire Council,http://statistics.data.gov.uk/id/local-authority/00FC),Children & Family Services,Childrens Services,Placement & Support,Other Agencies,Child Care Payments,PJ104,8/21/2018,616633,692.00,REVENUE,REDACTED PERSONAL INFORMATION,REDACTED PERSONAL INFORMATION
North East Lincolnshire Council,http://statistics.data.gov.uk/id/local-authority/00FC),Children & Family Services,Childrens Services,Placement & Support,Other Agencies,Child Care Payments,PJ104,8/21/2018,616634,325.00,REVENUE,REDACTED PERSONAL INFORMATION,REDACTED PERSONAL INFORMATION
North East Lincolnshire Council,http://statistics.data.gov.uk/id/local-authority/00FC),Children & Family Services,Childrens Services,Placement & Support,Other Agencies,Child Care Payments,PJ104,8/21/2018,616646,624.00,REVENUE,REDACTED PERSONAL INFORMATION,REDACTED PERSONAL INFORMATION
North East Lincolnshire Council,http://statistics.data.gov.uk/id/local-authority/00FC),Children & Family Services,Childrens Services,Placement & Support,Other Agencies,Child Care Payments,PJ104,8/21/2018,616649,1038.14,REVENUE,REDACTED PERSONAL INFORMATION,REDACTED PERSONAL INFORMATION
North East Lincolnshire Council,http://statistics.data.gov.uk/id/local-authority/00FC),Children & Family Services,Childrens Services,Placement & Support,Other Agencies,Child Care Payments,PJ104,8/21/2018,616670,650.00,REVENUE,REDACTED PERSONAL INFORMATION,REDACTED PERSONAL INFORMATION
North East Lincolnshire Council,http://statistics.data.gov.uk/id/local-authority/00FC),Children & Family Services,Childrens Services,Placement & Support,Other Agencies,Child Care Payments,PJ104,8/21/2018,616688,346.00,REVENUE,REDACTED PERSONAL INFORMATION,REDACTED PERSONAL INFORMATION
North East Lincolnshire Council,http://statistics.data.gov.uk/id/local-authority/00FC),Children & Family Services,Childrens Services,Placement & Support,Other Agencies,Child Care Payments,PJ104,8/21/2018,616344,671.00,REVENUE,REDACTED PERSONAL INFORMATION,REDACTED PERSONAL INFORMATION
North East Lincolnshire Council,http://statistics.data.gov.uk/id/local-authority/00FC),Children & Family Services,Childrens Services,Placement & Support,Other Agencies,Child Care Payments,PJ104,8/21/2018,616345,692.00,REVENUE,REDACTED PERSONAL INFORMATION,REDACTED PERSONAL INFORMATION
North East Lincolnshire Council,http://statistics.data.gov.uk/id/local-authority/00FC),Children & Family Services,Childrens Services,Placement & Support,Other Agencies,Child Care Payments,PJ104,8/21/2018,616348,949.00,REVENUE,REDACTED PERSONAL INFORMATION,REDACTED PERSONAL INFORMATION
North East Lincolnshire Council,http://statistics.data.gov.uk/id/local-authority/00FC),Children & Family Services,Childrens Services,Placement & Support,Other Agencies,Child Care Payments,PJ104,8/21/2018,616351,325.00,REVENUE,REDACTED PERSONAL INFORMATION,REDACTED PERSONAL INFORMATION
North East Lincolnshire Council,http://statistics.data.gov.uk/id/local-authority/00FC),Children & Family Services,Childrens Services,Placement & Support,Other Agencies,Child Care Payments,PJ104,8/21/2018,616352,346.00,REVENUE,REDACTED PERSONAL INFORMATION,REDACTED PERSONAL INFORMATION
North East Lincolnshire Council,http://statistics.data.gov.uk/id/local-authority/00FC),Children & Family Services,Childrens Services,Placement & Support,Other Agencies,Child Care Payments,PJ104,8/21/2018,616355,692.00,REVENUE,REDACTED PERSONAL INFORMATION,REDACTED PERSONAL INFORMATION
North East Lincolnshire Council,http://statistics.data.gov.uk/id/local-authority/00FC),Children & Family Services,Childrens Services,Placement & Support,Other Agencies,Child Care Payments,PJ104,8/21/2018,616356,729.86,REVENUE,REDACTED PERSONAL INFORMATION,REDACTED PERSONAL INFORMATION
North East Lincolnshire Council,http://statistics.data.gov.uk/id/local-authority/00FC),Children & Family Services,Childrens Services,Placement & Support,Other Agencies,Child Care Payments,PJ104,8/21/2018,616358,346.00,REVENUE,REDACTED PERSONAL INFORMATION,REDACTED PERSONAL INFORMATION
North East Lincolnshire Council,http://statistics.data.gov.uk/id/local-authority/00FC),Children & Family Services,Childrens Services,Placement & Support,Other Agencies,Child Care Payments,PJ104,8/21/2018,616362,1023.00,REVENUE,REDACTED PERSONAL INFORMATION,REDACTED PERSONAL INFORMATION
North East Lincolnshire Council,http://statistics.data.gov.uk/id/local-authority/00FC),Children & Family Services,Childrens Services,Placement & Support,Other Agencies,Child Care Payments,PJ104,8/21/2018,616366,1887.42,REVENUE,REDACTED PERSONAL INFORMATION,REDACTED PERSONAL INFORMATION
North East Lincolnshire Council,http://statistics.data.gov.uk/id/local-authority/00FC),Children & Family Services,Childrens Services,Placement & Support,Other Agencies,Child Care Payments,PJ104,8/21/2018,616368,671.00,REVENUE,REDACTED PERSONAL INFORMATION,REDACTED PERSONAL INFORMATION
North East Lincolnshire Council,http://statistics.data.gov.uk/id/local-authority/00FC),Children & Family Services,Childrens Services,Placement & Support,Other Agencies,Child Care Payments,PJ104,8/21/2018,616369,949.00,REVENUE,REDACTED PERSONAL INFORMATION,REDACTED PERSONAL INFORMATION
North East Lincolnshire Council,http://statistics.data.gov.uk/id/local-authority/00FC),Children & Family Services,Childrens Services,Placement & Support,Other Agencies,Child Care Payments,PJ104,8/21/2018,616371,1038.00,REVENUE,REDACTED PERSONAL INFORMATION,REDACTED PERSONAL INFORMATION
North East Lincolnshire Council,http://statistics.data.gov.uk/id/local-authority/00FC),Children & Family Services,Childrens Services,Placement & Support,Other Agencies,Child Care Payments,PJ104,8/21/2018,616372,650.00,REVENUE,REDACTED PERSONAL INFORMATION,REDACTED PERSONAL INFORMATION
North East Lincolnshire Council,http://statistics.data.gov.uk/id/local-authority/00FC),Children & Family Services,Childrens Services,Placement & Support,Other Agencies,Child Care Payments,PJ104,8/21/2018,616375,698.00,REVENUE,REDACTED PERSONAL INFORMATION,REDACTED PERSONAL INFORMATION
North East Lincolnshire Council,http://statistics.data.gov.uk/id/local-authority/00FC),Children & Family Services,Childrens Services,Placement & Support,Other Agencies,Child Care Payments,PJ104,8/21/2018,616381,547.85,REVENUE,REDACTED PERSONAL INFORMATION,REDACTED PERSONAL INFORMATION
North East Lincolnshire Council,http://statistics.data.gov.uk/id/local-authority/00FC),Children & Family Services,Childrens Services,Placement & Support,Other Agencies,Child Care Payments,PJ104,8/21/2018,616388,637.00,REVENUE,REDACTED PERSONAL INFORMATION,REDACTED PERSONAL INFORMATION
North East Lincolnshire Council,http://statistics.data.gov.uk/id/local-authority/00FC),Children & Family Services,Childrens Services,Placement & Support,Other Agencies,Child Care Payments,PJ104,8/21/2018,616392,1857.29,REVENUE,REDACTED PERSONAL INFORMATION,REDACTED PERSONAL INFORMATION
North East Lincolnshire Council,http://statistics.data.gov.uk/id/local-authority/00FC),Children & Family Services,Childrens Services,Placement & Support,Other Agencies,Child Care Payments,PJ104,8/21/2018,616395,1017.00,REVENUE,REDACTED PERSONAL INFORMATION,REDACTED PERSONAL INFORMATION
North East Lincolnshire Council,http://statistics.data.gov.uk/id/local-authority/00FC),Children & Family Services,Childrens Services,Placement & Support,Other Agencies,Child Care Payments,PJ104,8/21/2018,616397,692.00,REVENUE,REDACTED PERSONAL INFORMATION,REDACTED PERSONAL INFORMATION
North East Lincolnshire Council,http://statistics.data.gov.uk/id/local-authority/00FC),Children & Family Services,Childrens Services,Placement & Support,Other Agencies,Child Care Payments,PJ104,8/21/2018,616399,373.00,REVENUE,REDACTED PERSONAL INFORMATION,REDACTED PERSONAL INFORMATION
North East Lincolnshire Council,http://statistics.data.gov.uk/id/local-authority/00FC),Children & Family Services,Childrens Services,Placement & Support,Other Agencies,Child Care Payments,PJ104,8/21/2018,616400,373.00,REVENUE,REDACTED PERSONAL INFORMATION,REDACTED PERSONAL INFORMATION
North East Lincolnshire Council,http://statistics.data.gov.uk/id/local-authority/00FC),Children & Family Services,Childrens Services,Placement & Support,Other Agencies,Child Care Payments,PJ104,8/21/2018,616402,637.00,REVENUE,REDACTED PERSONAL INFORMATION,REDACTED PERSONAL INFORMATION
North East Lincolnshire Council,http://statistics.data.gov.uk/id/local-authority/00FC),Children & Family Services,Childrens Services,Placement & Support,Other Agencies,Child Care Payments,PJ104,8/21/2018,616415,1017.00,REVENUE,REDACTED PERSONAL INFORMATION,REDACTED PERSONAL INFORMATION
North East Lincolnshire Council,http://statistics.data.gov.uk/id/local-authority/00FC),Children & Family Services,Childrens Services,Placement & Support,Other Agencies,Child Care Payments,PJ104,8/21/2018,616420,970.00,REVENUE,REDACTED PERSONAL INFORMATION,REDACTED PERSONAL INFORMATION
North East Lincolnshire Council,http://statistics.data.gov.uk/id/local-authority/00FC),Children & Family Services,Childrens Services,Placement & Support,Other Agencies,Child Care Payments,PJ104,8/21/2018,616421,717.44,REVENUE,REDACTED PERSONAL INFORMATION,REDACTED PERSONAL INFORMATION
North East Lincolnshire Council,http://statistics.data.gov.uk/id/local-authority/00FC),Children & Family Services,Childrens Services,Placement & Support,Other Agencies,Child Care Payments,PJ104,8/21/2018,616423,962.00,REVENUE,REDACTED PERSONAL INFORMATION,REDACTED PERSONAL INFORMATION
North East Lincolnshire Council,http://statistics.data.gov.uk/id/local-authority/00FC),Children & Family Services,Childrens Services,Placement & Support,Other Agencies,Child Care Payments,PJ104,8/21/2018,616424,325.00,REVENUE,REDACTED PERSONAL INFORMATION,REDACTED PERSONAL INFORMATION
North East Lincolnshire Council,http://statistics.data.gov.uk/id/local-authority/00FC),Children & Family Services,Childrens Services,Placement & Support,Other Agencies,Child Care Payments,PJ104,8/21/2018,616430,650.00,REVENUE,REDACTED PERSONAL INFORMATION,REDACTED PERSONAL INFORMATION
North East Lincolnshire Council,http://statistics.data.gov.uk/id/local-authority/00FC),Children & Family Services,Childrens Services,Placement & Support,Other Agencies,Child Care Payments,PJ104,8/21/2018,616435,1654.00,REVENUE,REDACTED PERSONAL INFORMATION,REDACTED PERSONAL INFORMATION
North East Lincolnshire Council,http://statistics.data.gov.uk/id/local-authority/00FC),Children & Family Services,Childrens Services,Placement & Support,Other Agencies,Child Care Payments,PJ104,8/21/2018,616455,346.00,REVENUE,REDACTED PERSONAL INFORMATION,REDACTED PERSONAL INFORMATION
North East Lincolnshire Council,http://statistics.data.gov.uk/id/local-authority/00FC),Children & Family Services,Childrens Services,Placement & Support,Other Agencies,Child Care Payments,PJ104,8/21/2018,616461,1504.87,REVENUE,REDACTED PERSONAL INFORMATION,REDACTED PERSONAL INFORMATION
North East Lincolnshire Council,http://statistics.data.gov.uk/id/local-authority/00FC),Children & Family Services,Childrens Services,Placement & Support,Other Agencies,Child Care Payments,PJ104,8/21/2018,616475,1329.00,REVENUE,REDACTED PERSONAL INFORMATION,REDACTED PERSONAL INFORMATION
North East Lincolnshire Council,http://statistics.data.gov.uk/id/local-authority/00FC),Children & Family Services,Childrens Services,Placement & Support,Other Agencies,Child Care Payments,PJ104,8/21/2018,616478,698.00,REVENUE,REDACTED PERSONAL INFORMATION,REDACTED PERSONAL INFORMATION
North East Lincolnshire Council,http://statistics.data.gov.uk/id/local-authority/00FC),Children & Family Services,Childrens Services,Placement & Support,Other Agencies,Child Care Payments,PJ104,8/21/2018,616483,996.00,REVENUE,REDACTED PERSONAL INFORMATION,REDACTED PERSONAL INFORMATION
North East Lincolnshire Council,http://statistics.data.gov.uk/id/local-authority/00FC),Children & Family Services,Childrens Services,Placement & Support,Other Agencies,Child Care Payments,PJ104,8/21/2018,616485,1017.00,REVENUE,REDACTED PERSONAL INFORMATION,REDACTED PERSONAL INFORMATION
North East Lincolnshire Council,http://statistics.data.gov.uk/id/local-authority/00FC),Children & Family Services,Childrens Services,Placement & Support,Other Agencies,Child Care Payments,PJ104,8/21/2018,616497,996.00,REVENUE,REDACTED PERSONAL INFORMATION,REDACTED PERSONAL INFORMATION
North East Lincolnshire Council,http://statistics.data.gov.uk/id/local-authority/00FC),Children & Family Services,Childrens Services,Placement & Support,Other Agencies,Child Care Payments,PJ104,8/21/2018,616504,650.00,REVENUE,REDACTED PERSONAL INFORMATION,REDACTED PERSONAL INFORMATION
North East Lincolnshire Council,http://statistics.data.gov.uk/id/local-authority/00FC),Children & Family Services,Childrens Services,Placement & Support,Other Agencies,Child Care Payments,PJ104,8/21/2018,616706,312.00,REVENUE,REDACTED PERSONAL INFORMATION,REDACTED PERSONAL INFORMATION
North East Lincolnshire Council,http://statistics.data.gov.uk/id/local-authority/00FC),Children & Family Services,Childrens Services,Placement & Support,Other Agencies,Child Care Payments,PJ104,8/21/2018,616507,1348.00,REVENUE,REDACTED PERSONAL INFORMATION,REDACTED PERSONAL INFORMATION
North East Lincolnshire Council,http://statistics.data.gov.uk/id/local-authority/00FC),Children & Family Services,Childrens Services,Placement & Support,Other Agencies,Child Care Payments,PJ104,8/21/2018,616706,325.00,REVENUE,REDACTED PERSONAL INFORMATION,REDACTED PERSONAL INFORMATION
North East Lincolnshire Council,http://statistics.data.gov.uk/id/local-authority/00FC),Children & Family Services,Childrens Services,Placement & Support,Other Agencies,Child Care Payments,PJ104,8/21/2018,616520,1017.00,REVENUE,REDACTED PERSONAL INFORMATION,REDACTED PERSONAL INFORMATION
North East Lincolnshire Council,http://statistics.data.gov.uk/id/local-authority/00FC),Children & Family Services,Childrens Services,Placement & Support,Other Agencies,Child Care Payments,PJ104,8/21/2018,616523,325.00,REVENUE,REDACTED PERSONAL INFORMATION,REDACTED PERSONAL INFORMATION
North East Lincolnshire Council,http://statistics.data.gov.uk/id/local-authority/00FC),Children & Family Services,Childrens Services,Placement & Support,Other Agencies,Child Care Payments,PJ104,8/21/2018,616537,996.00,REVENUE,REDACTED PERSONAL INFORMATION,REDACTED PERSONAL INFORMATION
North East Lincolnshire Council,http://statistics.data.gov.uk/id/local-authority/00FC),Children & Family Services,Childrens Services,Placement & Support,Other Agencies,Child Care Payments,PJ104,8/21/2018,616548,650.00,REVENUE,REDACTED PERSONAL INFORMATION,REDACTED PERSONAL INFORMATION
North East Lincolnshire Council,http://statistics.data.gov.uk/id/local-authority/00FC),Children & Family Services,Childrens Services,Placement & Support,Other Agencies,Child Care Payments,PJ104,8/28/2018,618307,996.00,REVENUE,REDACTED PERSONAL INFORMATION,REDACTED PERSONAL INFORMATION
North East Lincolnshire Council,http://statistics.data.gov.uk/id/local-authority/00FC),Children & Family Services,Childrens Services,Placement & Support,Other Agencies,Child Care Payments,PJ104,8/28/2018,618318,650.00,REVENUE,REDACTED PERSONAL INFORMATION,REDACTED PERSONAL INFORMATION
North East Lincolnshire Council,http://statistics.data.gov.uk/id/local-authority/00FC),Children & Family Services,Childrens Services,Placement & Support,Other Agencies,Child Care Payments,PJ104,8/28/2018,618332,1017.00,REVENUE,REDACTED PERSONAL INFORMATION,REDACTED PERSONAL INFORMATION
North East Lincolnshire Council,http://statistics.data.gov.uk/id/local-authority/00FC),Children & Family Services,Childrens Services,Placement & Support,Other Agencies,Child Care Payments,PJ104,8/28/2018,618333,692.00,REVENUE,REDACTED PERSONAL INFORMATION,REDACTED PERSONAL INFORMATION
North East Lincolnshire Council,http://statistics.data.gov.uk/id/local-authority/00FC),Children & Family Services,Childrens Services,Placement & Support,Other Agencies,Child Care Payments,PJ104,8/28/2018,618335,962.00,REVENUE,REDACTED PERSONAL INFORMATION,REDACTED PERSONAL INFORMATION
North East Lincolnshire Council,http://statistics.data.gov.uk/id/local-authority/00FC),Children & Family Services,Childrens Services,Placement & Support,Other Agencies,Child Care Payments,PJ104,8/28/2018,618340,650.00,REVENUE,REDACTED PERSONAL INFORMATION,REDACTED PERSONAL INFORMATION
North East Lincolnshire Council,http://statistics.data.gov.uk/id/local-authority/00FC),Children & Family Services,Childrens Services,Placement & Support,Other Agencies,Child Care Payments,PJ104,8/28/2018,618341,312.00,REVENUE,REDACTED PERSONAL INFORMATION,REDACTED PERSONAL INFORMATION
North East Lincolnshire Council,http://statistics.data.gov.uk/id/local-authority/00FC),Children & Family Services,Childrens Services,Placement & Support,Other Agencies,Child Care Payments,PJ104,8/28/2018,618348,637.00,REVENUE,REDACTED PERSONAL INFORMATION,REDACTED PERSONAL INFORMATION
North East Lincolnshire Council,http://statistics.data.gov.uk/id/local-authority/00FC),Children & Family Services,Childrens Services,Placement & Support,Other Agencies,Child Care Payments,PJ104,8/28/2018,618359,1004.00,REVENUE,REDACTED PERSONAL INFORMATION,REDACTED PERSONAL INFORMATION
North East Lincolnshire Council,http://statistics.data.gov.uk/id/local-authority/00FC),Children & Family Services,Childrens Services,Placement & Support,Other Agencies,Child Care Payments,PJ104,8/28/2018,618378,650.00,REVENUE,REDACTED PERSONAL INFORMATION,REDACTED PERSONAL INFORMATION
North East Lincolnshire Council,http://statistics.data.gov.uk/id/local-authority/00FC),Children & Family Services,Childrens Services,Placement & Support,Other Agencies,Child Care Payments,PJ104,8/28/2018,618379,996.00,REVENUE,REDACTED PERSONAL INFORMATION,REDACTED PERSONAL INFORMATION
North East Lincolnshire Council,http://statistics.data.gov.uk/id/local-authority/00FC),Children & Family Services,Childrens Services,Placement & Support,Other Agencies,Child Care Payments,PJ104,8/28/2018,618403,692.00,REVENUE,REDACTED PERSONAL INFORMATION,REDACTED PERSONAL INFORMATION
North East Lincolnshire Council,http://statistics.data.gov.uk/id/local-authority/00FC),Children & Family Services,Childrens Services,Placement & Support,Other Agencies,Child Care Payments,PJ104,8/28/2018,618404,325.00,REVENUE,REDACTED PERSONAL INFORMATION,REDACTED PERSONAL INFORMATION
North East Lincolnshire Council,http://statistics.data.gov.uk/id/local-authority/00FC),Children & Family Services,Childrens Services,Placement & Support,Other Agencies,Child Care Payments,PJ104,8/28/2018,618415,624.00,REVENUE,REDACTED PERSONAL INFORMATION,REDACTED PERSONAL INFORMATION
North East Lincolnshire Council,http://statistics.data.gov.uk/id/local-authority/00FC),Children & Family Services,Childrens Services,Placement & Support,Other Agencies,Child Care Payments,PJ104,8/28/2018,618419,949.00,REVENUE,REDACTED PERSONAL INFORMATION,REDACTED PERSONAL INFORMATION
North East Lincolnshire Council,http://statistics.data.gov.uk/id/local-authority/00FC),Children & Family Services,Childrens Services,Placement & Support,Other Agencies,Child Care Payments,PJ104,8/28/2018,618440,650.00,REVENUE,REDACTED PERSONAL INFORMATION,REDACTED PERSONAL INFORMATION
North East Lincolnshire Council,http://statistics.data.gov.uk/id/local-authority/00FC),Children & Family Services,Childrens Services,Placement & Support,Other Agencies,Child Care Payments,PJ104,8/28/2018,618458,346.00,REVENUE,REDACTED PERSONAL INFORMATION,REDACTED PERSONAL INFORMATION
North East Lincolnshire Council,http://statistics.data.gov.uk/id/local-authority/00FC),Children & Family Services,Childrens Services,Placement & Support,Other Agencies,Child Care Payments,PJ104,8/28/2018,618113,671.00,REVENUE,REDACTED PERSONAL INFORMATION,REDACTED PERSONAL INFORMATION
North East Lincolnshire Council,http://statistics.data.gov.uk/id/local-authority/00FC),Children & Family Services,Childrens Services,Placement & Support,Other Agencies,Child Care Payments,PJ104,8/28/2018,618114,692.00,REVENUE,REDACTED PERSONAL INFORMATION,REDACTED PERSONAL INFORMATION
North East Lincolnshire Council,http://statistics.data.gov.uk/id/local-authority/00FC),Children & Family Services,Childrens Services,Placement & Support,Other Agencies,Child Care Payments,PJ104,8/28/2018,618117,949.00,REVENUE,REDACTED PERSONAL INFORMATION,REDACTED PERSONAL INFORMATION
North East Lincolnshire Council,http://statistics.data.gov.uk/id/local-authority/00FC),Children & Family Services,Childrens Services,Placement & Support,Other Agencies,Child Care Payments,PJ104,8/28/2018,618120,325.00,REVENUE,REDACTED PERSONAL INFORMATION,REDACTED PERSONAL INFORMATION
North East Lincolnshire Council,http://statistics.data.gov.uk/id/local-authority/00FC),Children & Family Services,Childrens Services,Placement & Support,Other Agencies,Child Care Payments,PJ104,8/28/2018,618121,346.00,REVENUE,REDACTED PERSONAL INFORMATION,REDACTED PERSONAL INFORMATION
North East Lincolnshire Council,http://statistics.data.gov.uk/id/local-authority/00FC),Children & Family Services,Childrens Services,Placement & Support,Other Agencies,Child Care Payments,PJ104,8/28/2018,618124,692.00,REVENUE,REDACTED PERSONAL INFORMATION,REDACTED PERSONAL INFORMATION
North East Lincolnshire Council,http://statistics.data.gov.uk/id/local-authority/00FC),Children & Family Services,Childrens Services,Placement & Support,Other Agencies,Child Care Payments,PJ104,8/28/2018,618125,806.29,REVENUE,REDACTED PERSONAL INFORMATION,REDACTED PERSONAL INFORMATION
North East Lincolnshire Council,http://statistics.data.gov.uk/id/local-authority/00FC),Children & Family Services,Childrens Services,Placement & Support,Other Agencies,Child Care Payments,PJ104,8/28/2018,618127,346.00,REVENUE,REDACTED PERSONAL INFORMATION,REDACTED PERSONAL INFORMATION
North East Lincolnshire Council,http://statistics.data.gov.uk/id/local-authority/00FC),Children & Family Services,Childrens Services,Placement & Support,Other Agencies,Child Care Payments,PJ104,8/28/2018,618476,637.00,REVENUE,REDACTED PERSONAL INFORMATION,REDACTED PERSONAL INFORMATION
North East Lincolnshire Council,http://statistics.data.gov.uk/id/local-authority/00FC),Children & Family Services,Childrens Services,Placement & Support,Other Agencies,Child Care Payments,PJ104,8/28/2018,618131,1023.00,REVENUE,REDACTED PERSONAL INFORMATION,REDACTED PERSONAL INFORMATION
North East Lincolnshire Council,http://statistics.data.gov.uk/id/local-authority/00FC),Children & Family Services,Childrens Services,Placement & Support,Other Agencies,Child Care Payments,PJ104,8/28/2018,618135,996.00,REVENUE,REDACTED PERSONAL INFORMATION,REDACTED PERSONAL INFORMATION
North East Lincolnshire Council,http://statistics.data.gov.uk/id/local-authority/00FC),Children & Family Services,Childrens Services,Placement & Support,Other Agencies,Child Care Payments,PJ104,8/28/2018,618137,671.00,REVENUE,REDACTED PERSONAL INFORMATION,REDACTED PERSONAL INFORMATION
North East Lincolnshire Council,http://statistics.data.gov.uk/id/local-authority/00FC),Children & Family Services,Childrens Services,Placement & Support,Other Agencies,Child Care Payments,PJ104,8/28/2018,618138,949.00,REVENUE,REDACTED PERSONAL INFORMATION,REDACTED PERSONAL INFORMATION
North East Lincolnshire Council,http://statistics.data.gov.uk/id/local-authority/00FC),Children & Family Services,Childrens Services,Placement & Support,Other Agencies,Child Care Payments,PJ104,8/28/2018,618140,1038.00,REVENUE,REDACTED PERSONAL INFORMATION,REDACTED PERSONAL INFORMATION
North East Lincolnshire Council,http://statistics.data.gov.uk/id/local-authority/00FC),Children & Family Services,Childrens Services,Placement & Support,Other Agencies,Child Care Payments,PJ104,8/28/2018,618141,650.00,REVENUE,REDACTED PERSONAL INFORMATION,REDACTED PERSONAL INFORMATION
North East Lincolnshire Council,http://statistics.data.gov.uk/id/local-authority/00FC),Children & Family Services,Childrens Services,Placement & Support,Other Agencies,Child Care Payments,PJ104,8/28/2018,618144,698.00,REVENUE,REDACTED PERSONAL INFORMATION,REDACTED PERSONAL INFORMATION
North East Lincolnshire Council,http://statistics.data.gov.uk/id/local-authority/00FC),Children & Family Services,Childrens Services,Placement & Support,Other Agencies,Child Care Payments,PJ104,8/28/2018,618150,312.00,REVENUE,REDACTED PERSONAL INFORMATION,REDACTED PERSONAL INFORMATION
North East Lincolnshire Council,http://statistics.data.gov.uk/id/local-authority/00FC),Children & Family Services,Childrens Services,Placement & Support,Other Agencies,Child Care Payments,PJ104,8/28/2018,618157,637.00,REVENUE,REDACTED PERSONAL INFORMATION,REDACTED PERSONAL INFORMATION
North East Lincolnshire Council,http://statistics.data.gov.uk/id/local-authority/00FC),Children & Family Services,Childrens Services,Placement & Support,Other Agencies,Child Care Payments,PJ104,8/28/2018,618161,1017.00,REVENUE,REDACTED PERSONAL INFORMATION,REDACTED PERSONAL INFORMATION
North East Lincolnshire Council,http://statistics.data.gov.uk/id/local-authority/00FC),Children & Family Services,Childrens Services,Placement & Support,Other Agencies,Child Care Payments,PJ104,8/28/2018,618164,1017.00,REVENUE,REDACTED PERSONAL INFORMATION,REDACTED PERSONAL INFORMATION
North East Lincolnshire Council,http://statistics.data.gov.uk/id/local-authority/00FC),Children & Family Services,Childrens Services,Placement & Support,Other Agencies,Child Care Payments,PJ104,8/28/2018,618166,692.00,REVENUE,REDACTED PERSONAL INFORMATION,REDACTED PERSONAL INFORMATION
North East Lincolnshire Council,http://statistics.data.gov.uk/id/local-authority/00FC),Children & Family Services,Childrens Services,Placement & Support,Other Agencies,Child Care Payments,PJ104,8/28/2018,618168,373.00,REVENUE,REDACTED PERSONAL INFORMATION,REDACTED PERSONAL INFORMATION
North East Lincolnshire Council,http://statistics.data.gov.uk/id/local-authority/00FC),Children & Family Services,Childrens Services,Placement & Support,Other Agencies,Child Care Payments,PJ104,8/28/2018,618169,373.00,REVENUE,REDACTED PERSONAL INFORMATION,REDACTED PERSONAL INFORMATION
North East Lincolnshire Council,http://statistics.data.gov.uk/id/local-authority/00FC),Children & Family Services,Childrens Services,Placement & Support,Other Agencies,Child Care Payments,PJ104,8/28/2018,618171,637.00,REVENUE,REDACTED PERSONAL INFORMATION,REDACTED PERSONAL INFORMATION
North East Lincolnshire Council,http://statistics.data.gov.uk/id/local-authority/00FC),Children & Family Services,Childrens Services,Placement & Support,Other Agencies,Child Care Payments,PJ104,8/28/2018,618184,1017.00,REVENUE,REDACTED PERSONAL INFORMATION,REDACTED PERSONAL INFORMATION
North East Lincolnshire Council,http://statistics.data.gov.uk/id/local-authority/00FC),Children & Family Services,Childrens Services,Placement & Support,Other Agencies,Child Care Payments,PJ104,8/28/2018,618189,970.00,REVENUE,REDACTED PERSONAL INFORMATION,REDACTED PERSONAL INFORMATION
North East Lincolnshire Council,http://statistics.data.gov.uk/id/local-authority/00FC),Children & Family Services,Childrens Services,Placement & Support,Other Agencies,Child Care Payments,PJ104,8/28/2018,618190,438.86,REVENUE,REDACTED PERSONAL INFORMATION,REDACTED PERSONAL INFORMATION
North East Lincolnshire Council,http://statistics.data.gov.uk/id/local-authority/00FC),Children & Family Services,Childrens Services,Placement & Support,Other Agencies,Child Care Payments,PJ104,8/28/2018,618192,962.00,REVENUE,REDACTED PERSONAL INFORMATION,REDACTED PERSONAL INFORMATION
North East Lincolnshire Council,http://statistics.data.gov.uk/id/local-authority/00FC),Children & Family Services,Childrens Services,Placement & Support,Other Agencies,Child Care Payments,PJ104,8/28/2018,618200,650.00,REVENUE,REDACTED PERSONAL INFORMATION,REDACTED PERSONAL INFORMATION
North East Lincolnshire Council,http://statistics.data.gov.uk/id/local-authority/00FC),Children & Family Services,Childrens Services,Placement & Support,Other Agencies,Child Care Payments,PJ104,8/28/2018,618205,1654.00,REVENUE,REDACTED PERSONAL INFORMATION,REDACTED PERSONAL INFORMATION
North East Lincolnshire Council,http://statistics.data.gov.uk/id/local-authority/00FC),Children & Family Services,Childrens Services,Placement & Support,Other Agencies,Child Care Payments,PJ104,8/28/2018,618225,346.00,REVENUE,REDACTED PERSONAL INFORMATION,REDACTED PERSONAL INFORMATION
North East Lincolnshire Council,http://statistics.data.gov.uk/id/local-authority/00FC),Children & Family Services,Childrens Services,Placement & Support,Other Agencies,Child Care Payments,PJ104,8/28/2018,618231,346.00,REVENUE,REDACTED PERSONAL INFORMATION,REDACTED PERSONAL INFORMATION
North East Lincolnshire Council,http://statistics.data.gov.uk/id/local-authority/00FC),Children & Family Services,Childrens Services,Placement & Support,Other Agencies,Child Care Payments,PJ104,8/28/2018,618245,1329.00,REVENUE,REDACTED PERSONAL INFORMATION,REDACTED PERSONAL INFORMATION
North East Lincolnshire Council,http://statistics.data.gov.uk/id/local-authority/00FC),Children & Family Services,Childrens Services,Placement & Support,Other Agencies,Child Care Payments,PJ104,8/28/2018,618248,698.00,REVENUE,REDACTED PERSONAL INFORMATION,REDACTED PERSONAL INFORMATION
North East Lincolnshire Council,http://statistics.data.gov.uk/id/local-authority/00FC),Children & Family Services,Childrens Services,Placement & Support,Other Agencies,Child Care Payments,PJ104,8/28/2018,618253,996.00,REVENUE,REDACTED PERSONAL INFORMATION,REDACTED PERSONAL INFORMATION
North East Lincolnshire Council,http://statistics.data.gov.uk/id/local-authority/00FC),Children & Family Services,Childrens Services,Placement & Support,Other Agencies,Child Care Payments,PJ104,8/28/2018,618255,1017.00,REVENUE,REDACTED PERSONAL INFORMATION,REDACTED PERSONAL INFORMATION
North East Lincolnshire Council,http://statistics.data.gov.uk/id/local-authority/00FC),Children & Family Services,Childrens Services,Placement & Support,Other Agencies,Child Care Payments,PJ104,8/28/2018,618267,996.00,REVENUE,REDACTED PERSONAL INFORMATION,REDACTED PERSONAL INFORMATION
North East Lincolnshire Council,http://statistics.data.gov.uk/id/local-authority/00FC),Children & Family Services,Childrens Services,Placement & Support,Other Agencies,Child Care Payments,PJ104,8/28/2018,618274,650.00,REVENUE,REDACTED PERSONAL INFORMATION,REDACTED PERSONAL INFORMATION
North East Lincolnshire Council,http://statistics.data.gov.uk/id/local-authority/00FC),Children & Family Services,Childrens Services,Placement & Support,Other Agencies,Child Care Payments,PJ104,8/28/2018,618277,1348.00,REVENUE,REDACTED PERSONAL INFORMATION,REDACTED PERSONAL INFORMATION
North East Lincolnshire Council,http://statistics.data.gov.uk/id/local-authority/00FC),Children & Family Services,Childrens Services,Placement & Support,Other Agencies,Child Care Payments,PJ104,8/28/2018,618290,1017.00,REVENUE,REDACTED PERSONAL INFORMATION,REDACTED PERSONAL INFORMATION
North East Lincolnshire Council,http://statistics.data.gov.uk/id/local-authority/00FC),Children & Family Services,Childrens Services,Placement & Support,Other Agencies,Child Care Payments,PJ104,8/28/2018,618293,325.00,REVENUE,REDACTED PERSONAL INFORMATION,REDACTED PERSONAL INFORMATION
North East Lincolnshire Council,http://statistics.data.gov.uk/id/local-authority/00FC),Children & Family Services,Childrens Services,Placement & Support,Other Agencies,Child Care Payments,PJ104,8/6/2018,613556,260.00,REVENUE,REDACTED PERSONAL INFORMATION,REDACTED PERSONAL INFORMATION
North East Lincolnshire Council,http://statistics.data.gov.uk/id/local-authority/00FC),Children & Family Services,Childrens Services,Placement & Support,Other Agencies,Child Care Payments,PJ104,8/6/2018,613596,355.00,REVENUE,REDACTED PERSONAL INFORMATION,REDACTED PERSONAL INFORMATION
North East Lincolnshire Council,http://statistics.data.gov.uk/id/local-authority/00FC),Children & Family Services,Childrens Services,Placement & Support,Other Agencies,Child Care Payments,PJ104,8/6/2018,613624,307.00,REVENUE,REDACTED PERSONAL INFORMATION,REDACTED PERSONAL INFORMATION
North East Lincolnshire Council,http://statistics.data.gov.uk/id/local-authority/00FC),Children & Family Services,Childrens Services,Placement & Support,Other Agencies,Child Care Payments,PJ104,8/6/2018,613637,307.00,REVENUE,REDACTED PERSONAL INFORMATION,REDACTED PERSONAL INFORMATION
North East Lincolnshire Council,http://statistics.data.gov.uk/id/local-authority/00FC),Children & Family Services,Childrens Services,Placement & Support,Other Agencies,Child Care Payments,PJ104,8/6/2018,613673,260.00,REVENUE,REDACTED PERSONAL INFORMATION,REDACTED PERSONAL INFORMATION
North East Lincolnshire Council,http://statistics.data.gov.uk/id/local-authority/00FC),Children & Family Services,Childrens Services,Placement & Support,Other Agencies,Child Care Payments,PJ104,8/6/2018,613318,260.00,REVENUE,REDACTED PERSONAL INFORMATION,REDACTED PERSONAL INFORMATION
North East Lincolnshire Council,http://statistics.data.gov.uk/id/local-authority/00FC),Children & Family Services,Childrens Services,Placement & Support,Other Agencies,Child Care Payments,PJ104,8/6/2018,613322,382.00,REVENUE,REDACTED PERSONAL INFORMATION,REDACTED PERSONAL INFORMATION
North East Lincolnshire Council,http://statistics.data.gov.uk/id/local-authority/00FC),Children & Family Services,Childrens Services,Placement & Support,Other Agencies,Child Care Payments,PJ104,8/6/2018,613327,260.00,REVENUE,REDACTED PERSONAL INFORMATION,REDACTED PERSONAL INFORMATION
North East Lincolnshire Council,http://statistics.data.gov.uk/id/local-authority/00FC),Children & Family Services,Childrens Services,Placement & Support,Other Agencies,Child Care Payments,PJ104,8/6/2018,613346,307.00,REVENUE,REDACTED PERSONAL INFORMATION,REDACTED PERSONAL INFORMATION
North East Lincolnshire Council,http://statistics.data.gov.uk/id/local-authority/00FC),Children & Family Services,Childrens Services,Placement & Support,Other Agencies,Child Care Payments,PJ104,8/6/2018,613353,403.00,REVENUE,REDACTED PERSONAL INFORMATION,REDACTED PERSONAL INFORMATION
North East Lincolnshire Council,http://statistics.data.gov.uk/id/local-authority/00FC),Children & Family Services,Childrens Services,Placement & Support,Other Agencies,Child Care Payments,PJ104,8/6/2018,613366,416.00,REVENUE,REDACTED PERSONAL INFORMATION,REDACTED PERSONAL INFORMATION
North East Lincolnshire Council,http://statistics.data.gov.uk/id/local-authority/00FC),Children & Family Services,Childrens Services,Placement & Support,Other Agencies,Child Care Payments,PJ104,8/6/2018,613369,368.29,REVENUE,REDACTED PERSONAL INFORMATION,REDACTED PERSONAL INFORMATION
North East Lincolnshire Council,http://statistics.data.gov.uk/id/local-authority/00FC),Children & Family Services,Childrens Services,Placement & Support,Other Agencies,Child Care Payments,PJ104,8/6/2018,613370,307.00,REVENUE,REDACTED PERSONAL INFORMATION,REDACTED PERSONAL INFORMATION
North East Lincolnshire Council,http://statistics.data.gov.uk/id/local-authority/00FC),Children & Family Services,Childrens Services,Placement & Support,Other Agencies,Child Care Payments,PJ104,8/6/2018,613736,260.00,REVENUE,REDACTED PERSONAL INFORMATION,REDACTED PERSONAL INFORMATION
North East Lincolnshire Council,http://statistics.data.gov.uk/id/local-authority/00FC),Children & Family Services,Childrens Services,Placement & Support,Other Agencies,Child Care Payments,PJ104,8/6/2018,613379,315.71,REVENUE,REDACTED PERSONAL INFORMATION,REDACTED PERSONAL INFORMATION
North East Lincolnshire Council,http://statistics.data.gov.uk/id/local-authority/00FC),Children & Family Services,Childrens Services,Placement & Support,Other Agencies,Child Care Payments,PJ104,8/6/2018,613386,260.00,REVENUE,REDACTED PERSONAL INFORMATION,REDACTED PERSONAL INFORMATION
North East Lincolnshire Council,http://statistics.data.gov.uk/id/local-authority/00FC),Children & Family Services,Childrens Services,Placement & Support,Other Agencies,Child Care Payments,PJ104,8/6/2018,613408,273.00,REVENUE,REDACTED PERSONAL INFORMATION,REDACTED PERSONAL INFORMATION
North East Lincolnshire Council,http://statistics.data.gov.uk/id/local-authority/00FC),Children & Family Services,Childrens Services,Placement & Support,Other Agencies,Child Care Payments,PJ104,8/6/2018,613413,260.00,REVENUE,REDACTED PERSONAL INFORMATION,REDACTED PERSONAL INFORMATION
North East Lincolnshire Council,http://statistics.data.gov.uk/id/local-authority/00FC),Children & Family Services,Childrens Services,Placement & Support,Other Agencies,Child Care Payments,PJ104,8/6/2018,613426,331.14,REVENUE,REDACTED PERSONAL INFORMATION,REDACTED PERSONAL INFORMATION
North East Lincolnshire Council,http://statistics.data.gov.uk/id/local-authority/00FC),Children & Family Services,Childrens Services,Placement & Support,Other Agencies,Child Care Payments,PJ104,8/14/2018,614969,416.00,REVENUE,REDACTED PERSONAL INFORMATION,REDACTED PERSONAL INFORMATION
North East Lincolnshire Council,http://statistics.data.gov.uk/id/local-authority/00FC),Children & Family Services,Childrens Services,Placement & Support,Other Agencies,Child Care Payments,PJ104,8/14/2018,614972,424.00,REVENUE,REDACTED PERSONAL INFORMATION,REDACTED PERSONAL INFORMATION
North East Lincolnshire Council,http://statistics.data.gov.uk/id/local-authority/00FC),Children & Family Services,Childrens Services,Placement & Support,Other Agencies,Child Care Payments,PJ104,8/14/2018,614973,307.00,REVENUE,REDACTED PERSONAL INFORMATION,REDACTED PERSONAL INFORMATION
North East Lincolnshire Council,http://statistics.data.gov.uk/id/local-authority/00FC),Children & Family Services,Childrens Services,Placement & Support,Other Agencies,Child Care Payments,PJ104,8/14/2018,614982,260.00,REVENUE,REDACTED PERSONAL INFORMATION,REDACTED PERSONAL INFORMATION
North East Lincolnshire Council,http://statistics.data.gov.uk/id/local-authority/00FC),Children & Family Services,Childrens Services,Placement & Support,Other Agencies,Child Care Payments,PJ104,8/14/2018,614989,260.00,REVENUE,REDACTED PERSONAL INFORMATION,REDACTED PERSONAL INFORMATION
North East Lincolnshire Council,http://statistics.data.gov.uk/id/local-authority/00FC),Children & Family Services,Childrens Services,Placement & Support,Other Agencies,Child Care Payments,PJ104,8/14/2018,615009,273.00,REVENUE,REDACTED PERSONAL INFORMATION,REDACTED PERSONAL INFORMATION
North East Lincolnshire Council,http://statistics.data.gov.uk/id/local-authority/00FC),Children & Family Services,Childrens Services,Placement & Support,Other Agencies,Child Care Payments,PJ104,8/14/2018,615014,260.00,REVENUE,REDACTED PERSONAL INFORMATION,REDACTED PERSONAL INFORMATION
North East Lincolnshire Council,http://statistics.data.gov.uk/id/local-authority/00FC),Children & Family Services,Childrens Services,Placement & Support,Other Agencies,Child Care Payments,PJ104,8/14/2018,615028,424.00,REVENUE,REDACTED PERSONAL INFORMATION,REDACTED PERSONAL INFORMATION
North East Lincolnshire Council,http://statistics.data.gov.uk/id/local-authority/00FC),Children & Family Services,Childrens Services,Placement & Support,Other Agencies,Child Care Payments,PJ104,8/14/2018,615089,594.29,REVENUE,REDACTED PERSONAL INFORMATION,REDACTED PERSONAL INFORMATION
North East Lincolnshire Council,http://statistics.data.gov.uk/id/local-authority/00FC),Children & Family Services,Childrens Services,Placement & Support,Other Agencies,Child Care Payments,PJ104,8/14/2018,615159,260.00,REVENUE,REDACTED PERSONAL INFORMATION,REDACTED PERSONAL INFORMATION
North East Lincolnshire Council,http://statistics.data.gov.uk/id/local-authority/00FC),Children & Family Services,Childrens Services,Placement & Support,Other Agencies,Child Care Payments,PJ104,8/14/2018,615199,355.00,REVENUE,REDACTED PERSONAL INFORMATION,REDACTED PERSONAL INFORMATION
North East Lincolnshire Council,http://statistics.data.gov.uk/id/local-authority/00FC),Children & Family Services,Childrens Services,Placement & Support,Other Agencies,Child Care Payments,PJ104,8/14/2018,615226,307.00,REVENUE,REDACTED PERSONAL INFORMATION,REDACTED PERSONAL INFORMATION
North East Lincolnshire Council,http://statistics.data.gov.uk/id/local-authority/00FC),Children & Family Services,Childrens Services,Placement & Support,Other Agencies,Child Care Payments,PJ104,8/14/2018,615239,307.00,REVENUE,REDACTED PERSONAL INFORMATION,REDACTED PERSONAL INFORMATION
North East Lincolnshire Council,http://statistics.data.gov.uk/id/local-authority/00FC),Children & Family Services,Childrens Services,Placement & Support,Other Agencies,Child Care Payments,PJ104,8/14/2018,615275,300.86,REVENUE,REDACTED PERSONAL INFORMATION,REDACTED PERSONAL INFORMATION
North East Lincolnshire Council,http://statistics.data.gov.uk/id/local-authority/00FC),Children & Family Services,Childrens Services,Placement & Support,Other Agencies,Child Care Payments,PJ104,8/14/2018,614921,260.00,REVENUE,REDACTED PERSONAL INFORMATION,REDACTED PERSONAL INFORMATION
North East Lincolnshire Council,http://statistics.data.gov.uk/id/local-authority/00FC),Children & Family Services,Childrens Services,Placement & Support,Other Agencies,Child Care Payments,PJ104,8/14/2018,614925,382.00,REVENUE,REDACTED PERSONAL INFORMATION,REDACTED PERSONAL INFORMATION
North East Lincolnshire Council,http://statistics.data.gov.uk/id/local-authority/00FC),Children & Family Services,Childrens Services,Placement & Support,Other Agencies,Child Care Payments,PJ104,8/14/2018,614930,260.00,REVENUE,REDACTED PERSONAL INFORMATION,REDACTED PERSONAL INFORMATION
North East Lincolnshire Council,http://statistics.data.gov.uk/id/local-authority/00FC),Children & Family Services,Childrens Services,Placement & Support,Other Agencies,Child Care Payments,PJ104,8/14/2018,614949,307.00,REVENUE,REDACTED PERSONAL INFORMATION,REDACTED PERSONAL INFORMATION
North East Lincolnshire Council,http://statistics.data.gov.uk/id/local-authority/00FC),Children & Family Services,Childrens Services,Placement & Support,Other Agencies,Child Care Payments,PJ104,8/14/2018,614956,403.00,REVENUE,REDACTED PERSONAL INFORMATION,REDACTED PERSONAL INFORMATION
North East Lincolnshire Council,http://statistics.data.gov.uk/id/local-authority/00FC),Children & Family Services,Childrens Services,Placement & Support,Other Agencies,Child Care Payments,PJ104,8/14/2018,615340,260.00,REVENUE,REDACTED PERSONAL INFORMATION,REDACTED PERSONAL INFORMATION
North East Lincolnshire Council,http://statistics.data.gov.uk/id/local-authority/00FC),Children & Family Services,Childrens Services,Placement & Support,Other Agencies,Child Care Payments,PJ104,8/21/2018,616581,260.00,REVENUE,REDACTED PERSONAL INFORMATION,REDACTED PERSONAL INFORMATION
North East Lincolnshire Council,http://statistics.data.gov.uk/id/local-authority/00FC),Children & Family Services,Childrens Services,Placement & Support,Other Agencies,Child Care Payments,PJ104,8/21/2018,616766,260.00,REVENUE,REDACTED PERSONAL INFORMATION,REDACTED PERSONAL INFORMATION
